Workbook

Sheet Principal
B1: EEFF - Instituciones
B2: Versión: 5.4
B4: Grupo Institucional: | C4: Organos Desconcentrados
B5: Nombre de Institución: | C5: Instituto Nacional de Innovación y Transferencia en Tecnología Agropecuaria (INTA)
B6: Fecha de Presentación al: | C6: 31 de diciembre
B7: Periodo: | C7: 2016
B8: Firmante Nº1: | C8: Jorge Sandoval Chaves
B9: Firmante Nº2: | C9: Isabel Alvarado Alpízar
B10: Firmante Nº3: | C10: Carlos Araya Fernández
G22: Consejo Nacional de la Política Pública de la Persona Joven (CPJ) | H22: Instituto de Desarrollo Agrario (IDA) | I22: Municipalidad de Alfaro Ruíz | J22: Empresa de Servicios Públicos de Heredia SA (ESPH)
G23: Consejo Nacional de Vialidad (CONAVI) | H23: Instituto de Fomento y Asesoría Municipal (IFAM) | I23: Municipalidad de Alvarado | J23: Empresa Hidroelectrica los Negros SA EHLN SA
G24: Consejo de Salud Ocupacional (CSO) | H24: Instituto Mixto de Ayuda Social (IMAS) | I24: Municipalidad de Aserrí | J24: Junta Administrativa del Servicio Eléctrico de Cartago (JASEC)
G25: Consejo de Seguridad Vial (COSEVI) | H25: Instituto Nacional de Aprendizaje (INA) | I25: Municipalidad de Atenas
G26: Consejo Superior de Educación (CSE) | H26: Instituto Nacional de Estadística y Censos (INEC) | I26: Municipalidad de Bagaces
G27: Consejo Técnico de Asistencia Médico Social (CTAMS) | H27: Instituto Nacional de las Mujeres (INAMU) | I27: Municipalidad de Barva
G28: Consejo Técnico de Aviación Civil (CTAC) | H28: Instituto Tecnológico de Costa Rica (ITCR) | I28: Municipalidad de Belén
G29: Consejo de Transporte Público (CTP) | H29: Junta Administrativa Colegio San Luis Gonzaga (JACSLG) | I29: Municipalidad de Buenos Aires
G30: Dirección Ejecutora de Proyectos de Mideplan (DEP) | H30: Junta de Desarrollo Regional de la Zona Sur de la Provincia de Puntarenas (JUDESUR) | I30: Municipalidad de Cañas
G31: Dirección de Geología y Minas | H31: Junta de Pensiones y Jubilaciones del Magisterio Nacional (JUPEMA) | I31: Municipalidad de Carrillo
G32: Dirección Nacional de Centros de Educación y Nutrición y de Centros Infantiles de Atención Integral (Dirección de CEN-CINAI) | H32: Oficina Nacional de Semillas (ONS) | I32: Municipalidad de Cartago
G33: Dirección Nacional de Notariado | H33: Patronato Nacional de la Infancia (PANI) | I33: Municipalidad de Corredores
G34: Fideicomiso del Proyecto de Crédito y Desarrollo Agrícola para Pequeños Productores de la Zona Norte (PPZN) | H34: Programa Integral de Mercadeo Agropecuario (PIMA) | I34: Municipalidad de Coto Brus
G35: Fondo de Desarrollo Social y Asignaciones Familiares (FODESAF) | H35: Servicio Nacional de Aguas Subterráneas, Riego y Avenamiento (SENARA) | I35: Municipalidad de Curridabat
G36: Fondo Especial del Servicio Nacional de Guardacostas | H36: Superintendencia de Telecomunicaciones (SUTEL) | I36: Municipalidad de Desamparados
G37: Fondo Nacional de Becas (FONABE) | H37: Universidad de Costa Rica (UCR) | I37: Municipalidad de Dota
G38: Fondo Nacional de Financiamiento Forestal (FONAFIFO) | H38: Universidad Estatal a Distancia (UNED) | I38: Municipalidad de El Guarco
G39: Fondo de Preinversión de Mideplan | H39: Universidad Nacional (UNA) | I39: Municipalidad de Escazú
G40: Fondo Nacional de Becas de Solidaridad Social | H40: Universidad Técnica Nacional | I40: Municipalidad de Esparza
G41: Fundación Nacional de Clubes 4-S (FUNAC) | I41: Municipalidad de Flores
G42: Instituto sobre Alcoholismo y Farmacodependencia (IAFA) | I42: Municipalidad de Garabito
G43: Instituto Costarricense sobre Drogas (ICD) | I43: Municipalidad de Goicoechea
G44: Instituto Costarricense de Investigación y Enseñanza en Nutrición y Salud (INCIENSA) | I44: Municipalidad de Golfito
G45: Instituto Meteorológico Nacional (IMN) | I45: Municipalidad de Grecia
G46: Instituto Nacional de Innovación y Transferencia en Tecnología Agropecuaria (INTA) | I46: Municipalidad de Guácimo
G47: Junta Administrativa del Archivo Nacional (JAAN) | I47: Municipalidad de Guatuso
G48: Junta Administrativa de la Dirección General de Migración y Extranjería (JADGME) | I48: Municipalidad de Heredia
G49: Junta Administrativa de la Imprenta Nacional (JAIN) | I49: Municipalidad de Hojancha
G50: Junta Directiva Del Parque Recreativo Nacional Playas de Manuel Antonio | I50: Municipalidad de Jiménez
G51: Junta Administrativa del Registro Nacional | I51: Municipalidad de La Cruz
G52: Laboratorio Costarricense de Metrología (LACOMET) | I52: Municipalidad de La Unión
G53: Museo de Arte Costarricense (MAC) | I53: Municipalidad de León Cortés
G54: Museo de Arte y Diseño Contemporáneo (MADC) | I54: Municipalidad de Liberia
G55: Museo Histórico Cultural Juan Santamaría | I55: Municipalidad de Limón
G56: Museo Nacional de Costa Rica (MNCR) | I56: Municipalidad de Los Chiles
G57: Museo Dr. Rafael Ángel Calderón Guardia | I57: Municipalidad de Matina
G58: Oficina de Cooperación Internacional de la Salud (OCIS) | I58: Municipalidad de Montes de Oca
G59: Patronato de Construcciones, Instalaciones y Adquisiciones de Bienes | I59: Municipalidad de Montes de Oro
G60: Patronato Nacional de Ciegos (PANACI) | I60: Municipalidad de Mora
G61: Patronato Nacional de Rehabilitación (PANARE) | I61: Municipalidad de Moravia
G62: Parque Marino del Pacífico | I62: Municipalidad de Nandayure
G63: Servicio Fitosanitario del Estado | I63: Municipalidad de Naranjo
G64: Servicio Nacional de Salud Animal (SENASA) | I64: Municipalidad de Nicoya
G65: Sistema Nacional de Áreas de Conservación (SINAC) | I65: Municipalidad de Oreamuno
G66: Teatro Nacional (TNCR) | I66: Municipalidad de Orotina
G67: Teatro Popular Melico Salazar (TPMS) | I67: Municipalidad de Osa
G68: Tribunal Registral Administrativo (TRA) | I68: Municipalidad de Palmares
G69: Unidad Coordinadora del Programa de Mejoramiento de la Calidad de la Educación General Básica (PROMECE) | I69: Municipalidad de Paraíso
G70: Unidad de Coordinación del Proyecto Limón Ciudad Puerto | I70: Municipalidad de Parrita
G71: Unidad Ejecutora Programa Regularización del Catastro y Registro | I71: Municipalidad de Pérez Zeledón
I72: Municipalidad de Poás
I73: Municipalidad de Pococí
I74: Municipalidad de Puntarenas
I75: Municipalidad de Puriscal
I76: Municipalidad de San Carlos
I77: Municipalidad de San Isidro
I78: Municipalidad de San José
I79: Municipalidad de San Mateo
I80: Municipalidad de San Pablo
I81: Municipalidad de San Rafael
I82: Municipalidad de San Ramón
I83: Municipalidad de Santa Ana
I84: Municipalidad de Santa Barbara
I85: Municipalidad de Santa Cruz
I86: Municipalidad de Santo Domingo
I87: Municipalidad de Sarapiquí
I88: Municipalidad de Siquirres
I89: Municipalidad de Talamanca
I90: Municipalidad de Tarrazú
I91: Municipalidad de Tibás
I92: Municipalidad de Tilarán
I93: Municipalidad de Turrialba
I94: Municipalidad de Turrubares
I95: Municipalidad de Upala
I96: Municipalidad de Valverde Vega
I97: Municipalidad de Vásquez de Coronado

Sheet Periodos de presentacion (hidden)
C1: Fechas de presentacion | E1: Periodos
C2: 31 de marzo | E2: 2013
C3: 30 de junio | E3: =+E2+1 -> 2014
C4: 30 de septiembre | E4: =+E3+1 -> 2015
C5: 31 de diciembre | E5: 2016
E6: 2017
E7: 2018
E8: 2019
E9: 2020
E10: 2021
E11: 2022
E12: 2023
E13: 2024
E14: 2025
E15: 2026
E16: 2027
E17: 2028
E18: 2029
E19: 2030
E20: 2031
E21: 2032
E22: 2033
E23: 2034
E24: 2035
E25: 2036
E26: 2037
E27: 2038
E28: 2039
E29: 2040
E30: 2041
E31: 2042
E32: 2043
E33: 2044
E34: 2045
E35: 2046
E36: 2047
E37: 2048
E38: 2049
E39: 2050
E40: 2051
E41: 2052
E42: 2053
E43: 2054
E44: 2055
E45: 2056
E46: 2057
E47: 2058
E48: 2059
E49: 2060
E50: 2061
E51: 2062
E52: 2063
E53: 2064
E54: 2065
E55: 2066
E56: 2067
E57: 2068
E58: 2069
E59: 2070

Sheet Balance General (hidden)
A1: Estado de Situaciòn Financiera
A2: =Principal!C6&" de "&Principal!C7 -> 31 de diciembre de 2016
A3: (en miles de colones)
A4: =IFERROR(Principal!C4,"") -> Organos Desconcentrados
A5: =IFERROR(Principal!C5,"") -> Instituto Nacional de Innovación y Transferencia en Tecnología Agropecuaria (INTA)
A6: ACTIVO
A7: Activo Corriente | C7: Periodo Actual | D7: Periodo Anterior
A8: Caja y Banco Cajero | B8: 3 | C8: =Bancos!B10+Bancos!B11 -> 1280550.37 | D8: 1198114.13
A9: Caja y Banco - Fondos Especiales | B9: 3 | C9: =+Bancos!B12 -> 7601.09 | D9: 4556.46
A10: Cuentas por Cobrar | B10: 4 | C10: 5637.3 | D10: 4225.39
A11: Menos: Provisión Cobranza Dudosa | B11: 5 | C11: =+PROVISIONES!B16 -> -164.25 | D11: -42
A12: Existencias | B12: 6 | C12: =+EXISTENCIAS!B12 -> 109000.85 | D12: 38457.89
A13: Menos : Provisión Existencias | B13: 7 | C13: =+PROVISIONES!B18 -> 0
A14: Mercancias en Tránsito | B14: 8 | C14: =+'MERCANCIA EN TRANSITO'!B12 -> 0
A15: Gastos Pagados por Anticipado | B15: 9 | C15: =+'GTOS PAGADOS X ANTICIPADO'!B12 -> 2036.47 | D15: 1785.85
A16: Inversiones Corto Plazo | B16: 10 | C16: 0
A17: Total Activo Corriente | C17: =SUM(C8:C16) -> 1404661.83 | D17: =SUM(D8:D16) -> 1247097.72
A19: Activo No Corriente Fijo
A20: Documentos por Cobrar Largo Plazo | B20: 11 | C20: 0
A21: Cuentas por Cobrar Largo Plazo | B21: 12 | C21: 9340.14 | D21: 9063.44
A22: Menos: Provisión Cobranza Dudosa | B22: 13 | C22: =+PROVISIONES!B17 -> -8322.16 | D22: -6508.11
A23: Total Activo no Corriente Fijo | C23: =SUM(C20:C22) -> 1017.98 | D23: =SUM(D20:D22) -> 2555.33
A25: Activos Financieros
A26: Préstamos | B26: 14 | C26: 0
A27: Menos: Provisión Cobranza Dudosa | B27: 15 | C27: =+PROVISIONES!B19 -> 0
A28: Adquisición de Valores | B28: 16 | C28: 0
A29: Otros Activos Financieros | B29: 17 | C29: 0
A30: Total Activos Financieros | C30: =SUM(C26:C29) -> 0 | D30: =SUM(D26:D29) -> 0
A32: Activos no Financieros
A33: Bienes Duraderos
A34: Maquinaria, Equipo y Mobiliario | B34: 18 | C34: =+'Activos no Financieros'!M19 -> 2376395.68 | D34: =+'Activos no Financieros'!B19 -> 2100486.64
A35: Menos: Depreciación Acumulada | B35: 19 | C35: =+'Activos no Financieros'!I110 -> -1356172.98 | D35: =+'Activos no Financieros'!B110 -> -1124953.28
A36: Construcciones, Adiciones y Mejoras | B36: 20 | C36: =+'Activos no Financieros'!J43 -> 574133.05 | D36: =+'Activos no Financieros'!B43 -> 574133.05
A38: Bienes Preexistentes
A39: Terrenos | B39: 21 | C39: =+'Activos no Financieros'!K59 -> 0 | D39: =+'Activos no Financieros'!B59 -> 0
A40: Edificios | B40: =+B39+1 -> 22 | C40: =+'Activos no Financieros'!K60 -> 41177.06 | D40: =+'Activos no Financieros'!B60 -> 41177.06
A41: Menos: Depreciación Acumulada | B41: =+B40+1 -> 23 | C41: =+'Activos no Financieros'!I128+'Activos no Financieros'!I134+'Activos no Financieros'!I135 -> -13183.94 | D41: =+'Activos no Financieros'!B128+'Activos no Financieros'!B134+'Activos no Financieros'!B135 -> -11120.91
A42: Otras Obras | B42: =+B41+1 -> 24 | C42: =+'Activos no Financieros'!K61 -> 0 | D42: =+'Activos no Financieros'!B61 -> 0
A43: Menos: Depreciación Acumulada | B43: =+B42+1 -> 25 | C43: =+'Activos no Financieros'!I136 -> 0 | D43: =+'Activos no Financieros'!B136 -> 0
A44: Bienes Duraderos Diversos
A45: Otro Bienes Duraderos | B45: =+B43+1 -> 26 | C45: =+'Activos no Financieros'!K81 -> 1565012.85 | D45: =+'Activos no Financieros'!B81 -> 1998647.78
A46: Semovientes | B46: =+B45+1 -> 27 | C46: =+'Activos no Financieros'!K79 -> 209568.08 | D46: =+'Activos no Financieros'!B79 -> 246525.23
A47: Menos: Amortización y Agotamiento | B47: =+B46+1 -> 28 | C47: =+'Activos no Financieros'!I139++'Activos no Financieros'!I140 -> 0 | D47: =+'Activos no Financieros'!B139++'Activos no Financieros'!B140 -> 0
A48: Piezas y obras de colección | B48: =+B47+1 -> 29 | C48: =+'Activos no Financieros'!K80 -> 0 | D48: =+'Activos no Financieros'!B80 -> 0
A49: Bienes de Uso Público | B49: =+B48+1 -> 30 | C49: =+'Activos no Financieros'!K82 -> 0 | D49: =+'Activos no Financieros'!B82 -> 0
A50: Activos Intangibles
A51: Patentes | B51: =+B49+1 -> 31 | C51: =+'Activos no Financieros'!K159 -> 0 | D51: =+'Activos no Financieros'!B159 -> 0
A52: Derechos | B52: =+B51+1 -> 32 | C52: =+'Activos no Financieros'!K160 -> 0 | D52: =+'Activos no Financieros'!B160 -> 0
A53: Depósitos | B53: =+B52+1 -> 33 | C53: =+'Activos no Financieros'!K161 -> 0 | D53: =+'Activos no Financieros'!B161 -> 0
A54: Licencias | B54: =+B53+1 -> 34 | C54: =+'Activos no Financieros'!K162 -> 7035.07 | D54: =+'Activos no Financieros'!B162 -> 18213.56
A55: Decomisos | B55: =+B54+1 -> 35 | C55: =+'Activos no Financieros'!K163 -> 0 | D55: =+'Activos no Financieros'!B163 -> 0
A56: Total Activos no Financieros | C56: =SUM(C34:C55) -> 3403964.87 | D56: =SUM(D34:D55) -> 3843109.13
A58: Total Activo No Corriente | C58: =C23+C30+C56 -> 3404982.85 | D58: =D23+D30+D56 -> 3845664.46
A60: TOTAL ACTIVO | C60: =C17+C58 -> 4809644.68 | D60: =D17+D58 -> 5092762.18
A64: PASIVO Y PATRIMONIO
A65: Pasivo Corriente
A66: Cuentas por Pagar | B66: =+B55+1 -> 36 | C66: 22165.79 | D66: 22365.47
A67: Retenciones por pagar | B67: =+B66+1 -> 37 | C67: 11849.32 | D67: 8970.73
A68: gastos acumulados por pagar | B68: =+B67+1 -> 38 | C68: =+'GASTOS ACUMULADOS PAGAR'!B12 -> 0
A69: Endeudamiento Corto Plazo | B69: =+B68+1 -> 39 | C69: 0
A70: Endeudamiento a Largo Plazo - Porción Corriente (monto a pagar en el periodo) | B70: =+B69+1 -> 40 | C70: 0
A71: Provisiones | B71: =+B70+1 -> 41 | C71: =+PROVISIONES!B21 -> 0
A72: Total Pasivo Corriente | C72: =SUM(C66:C71) -> 34015.11 | D72: =SUM(D66:D71) -> 31336.2
A74: Pasivo No Corriente
A75: Cuentas por pagar Largo Plazo | B75: =+B71+1 -> 42 | C75: 0
A76: Endeudamiento Largo Plazo | B76: =+B75+1 -> 43 | C76: 0
A77: Provisiones para Benef. Sociales | B77: =+B76+1 -> 44 | C77: =+PROVISIONES!B22 -> 0
A78: Ingresos Cobrados por Anticipado | B78: =+B77+1 -> 45 | C78: =+'ING. COBRADOS X ANTICIPADO'!B12 -> 9000
A79: Jubilaciones | B79: =+B78+1 -> 46 | C79: =+JUBILACIONES!B12 -> 0
A80: Otras Cuentas del Pasivo | B80: =+B79+1 -> 47 | C80: =+'OTRAS CUENTAS DE PASIVO'!B12 -> 0
A81: Total Pasivo No Corriente | C81: =SUM(C75:C80) -> 9000 | D81: =SUM(D75:D80) -> 0
A83: TOTAL PASIVO | C83: =C72+C81 -> 43015.11 | D83: =D72+D81 -> 31336.2
A85: PATRIMONIO
A86: Hacienda Pública | B86: =+B80+1 -> 48 | C86: ='Estado de Cambios en el Patri'!B17 -> 3688220.21 | D86: 3688220.21
A87: Reservas | B87: =+B86+1 -> 49 | C87: ='Estado de Cambios en el Patri'!C17+'Estado de Cambios en el Patri'!D17 -> 0
A88: Resultados Acumulados | B88: =+B87+1 -> 50 | C88: ='Estado de Cambios en el Patri'!E17-'Estado de Cambios en el Patri'!E16 -> 1392831.79 | D88: 1739981.18
A89: Resultados del periodo | B89: =+B88+1 -> 51 | C89: ='Estado de Resultados'!C47 -> -314422.43 | D89: -366775.41
A90: TOTAL PATRIMONIO | C90: =SUM(C86:C89) -> 4766629.57 | D90: =SUM(D86:D89) -> 5061425.98
A92: TOTAL PASIVO Y PATRIMONIO | C92: =C83+C90 -> 4809644.68 | D92: =D83+D90 -> 5092762.18
C93: =+C60-C92 -> 0 | D93: =+D60-D92 -> 0
A96: ="Elaborado por: "&Principal!C8 -> Elaborado por: Jorge Sandoval Chaves | C96: ="Revisado por: " & Principal!C9 -> Revisado por: Isabel Alvarado Alpízar
A100: ="Aprobado por: "&Principal!C10 -> Aprobado por: Carlos Araya Fernández

Sheet Estado de Resultados (hidden)
A1: Estado de Rendimientos Financieros
A2: =Principal!C6&" de "&Principal!C7 -> 31 de diciembre de 2016
A3: (en miles de colones)
A4: =Principal!C4 -> Organos Desconcentrados
A5: =Principal!C5 -> Instituto Nacional de Innovación y Transferencia en Tecnología Agropecuaria (INTA)
A6: Ingresos Corrientes | C6: =+'Balance General'!C7 -> Periodo Actual | D6: =+'Balance General'!D7 -> Periodo Anterior
A7: Ingresos Tributarios | B7: 1 | C7: 0 | D7: 14936.21
A8: Contribuciones Sociales | B8: 2 | C8: =+'OTROS INGRESOS Y CONTRIBUCIONES'!B16 -> 0
A9: Ingresos No Tributarios | B9: 3 | C9: 317679.76 | D9: 240656.65
A10: Transferencias Corrientes y Capital | B10: 4 | C10: 1132758.19 | D10: 705891.73
A11: Total Ingresos Corrientes | C11: =SUM(C7:C10) -> 1450437.95 | D11: =SUM(D7:D10) -> 961484.59
A13: Gastos Corrientes
A14: Remuneraciones | B14: 5 | C14: =+'GASTOS CORRIENTES'!B16 -> 195004.72 | D14: 214577.24
A15: Servicios | B15: 6 | C15: =+'GASTOS CORRIENTES'!B17 -> 650690.2 | D15: 563914.18
A16: Materiales y Suministros | B16: 7 | C16: =+'GASTOS CORRIENTES'!B18 -> 174384.97 | D16: 236309.91
A17: Intereses y Comisiones | B17: 8 | C17: =+'GASTOS CORRIENTES'!B19 -> 559.71 | D17: 226.6
A18: Transferencias Corrientes y Capital | B18: 9 | C18: 36819.35 | D18: 45024.64
A19: Cuentas Especiales | B19: 10 | C19: =+'GASTOS CORRIENTES'!B20 -> 0
A20: Total Gastos Corrientes | C20: =SUM(C14:C19) -> 1057458.95 | D20: =SUM(D14:D19) -> 1060052.57
A22: Superávit ( Déficit ) Corriente | C22: =+C11-C20 -> 392979 | D22: =+D11-D20 -> -98567.98
A24: Otros Ingresos y Gastos
A25: Otros Ingresos
A26: Ganancias en Venta de Activos Fijos | B26: 11 | C26: =+'OTROS INGRESOS Y CONTRIBUCIONES'!B17 -> 0
A27: Diferencias Positivas Tipo de Cambio | B27: 12 | C27: =+'OTROS INGRESOS Y CONTRIBUCIONES'!B18 -> 2521.42 | D27: 1512.32
A28: Ganancia por Reclasificación de Activos Fijos | B28: 13 | C28: =+'OTROS INGRESOS Y CONTRIBUCIONES'!B19 -> 0
A29: Otros Ingresos | B29: 14 | C29: =+'OTROS INGRESOS Y CONTRIBUCIONES'!B20 -> 7249.07 | D29: 27704.09
A30: Total Otros Ingresos | C30: =SUM(C26:C29) -> 9770.49 | D30: =SUM(D26:D29) -> 29216.41
A32: Otros Gastos
A33: Pérdida en Venta o Retiro de Activos Fijos | B33: 15 | C33: =+'OTROS GASTOS'!B16 -> 0
A34: Diferencias Negativas Tipo de Cambio | B34: 16 | C34: =+'OTROS GASTOS'!B17 -> 165.85 | D34: 790.01
A35: Gastos de Depreciación, Agotamiento | B35: 17 | C35: =+'OTROS GASTOS'!B18 -> 244461.19 | D35: 224616.52
A36: Gastos Diferido de Intangibles | B36: 18 | C36: =+'OTROS GASTOS'!B19 -> 0
A37: Pérdidas por Reclasificaciones de Activos Fijos | B37: 19 | C37: =+'OTROS GASTOS'!B20 -> 0
A38: Pérdidas por Cuentas Incobrables | B38: 20 | C38: =+'OTROS GASTOS'!B21 -> 0
A39: Pérdidas en Existencias | B39: 21 | C39: =+'OTROS GASTOS'!B22 -> 0
A40: Otros Gastos | B40: 22 | C40: =+'OTROS GASTOS'!B23 -> 472544.88 | D40: 72017.31
A41: Total Otros Gastos | C41: =SUM(C33:C40) -> 717171.92 | D41: =SUM(D33:D40) -> 297423.84
A43: Superávit ( Déficit ) de Otros Ingresos y Gastos | C43: =C30-C41 -> -707401.43 | D43: =D30-D41 -> -268207.43
A45: Impuesto de renta | B45: 23 | C45: =+'OTROS GASTOS'!B24 -> 0
A46: Reservas | B46: 24 | C46: =+'OTROS GASTOS'!B25 -> 0
A47: Superávit ( Déficit ) Neto del Periodo | B47: 25 | C47: =C22+C43-C45-C46 -> -314422.43 | D47: =D22+D43-D45-D46 -> -366775.41
A51: =IF(Firmante1 = "","Falta Nombre","Elaborado por: " & Firmante1) -> Elaborado por: Jorge Sandoval Chaves | C51: =IF(Firmante2 = "","Falta Nombre","Revisado por: " & Firmante2) -> Revisado por: Isabel Alvarado Alpízar
A54: =IF(Firmante3 = "","Falta Nombre","Aprobado por: " & Firmante3) -> Aprobado por: Carlos Araya Fernández

Sheet Estado de Flujo de Efectivo (hidden)
A1: Estado de Flujo de Efectivo
A2: =Principal!C6&" de "&Principal!C7 -> 31 de diciembre de 2016
A3: (en miles de colones)
A4: =Principal!C4 -> Organos Desconcentrados
A5: =Principal!C5 -> Instituto Nacional de Innovación y Transferencia en Tecnología Agropecuaria (INTA)
A6: A. Actividades de Operación | C6: =+'Balance General'!C7 -> Periodo Actual | D6: =+'Balance General'!D7 -> Periodo Anterior
A7: 1. Entradas de Efectivo
A8: Cobro de Ingresos Tributarios | B8: 1 | D8: 14936.21
A9: Recibo de Contribuciones Sociales | B9: 2
A10: Venta de Bienes y Servicios | B10: 3 | C10: 315130.81 | D10: 240236.65
A11: Cobro de Derechos y Traspasos | B11: 4
A12: Intereses, Multas y Sanciones Cobradas | B12: 5 | C12: 991.71 | D12: 204.29
A13: Transferencias Corrientes Recibidas | B13: 6 | C13: 1132758.18 | D13: 705891.73
A14: Otros Cobros | B14: 7 | C14: 6257.36 | D14: 15994.8
A15: Diferencias de Tipo de Cambio | B15: 8 | C15: 2521.42 | D15: 1209.17
A16: Total Entrada de Efectivo | C16: =SUM(C8:C15) -> 1457659.48 | D16: =SUM(D8:D15) -> 978472.85
A18: 2. Salidas de Efectivo
A19: Pago de Remuneraciones | B19: 9 | C19: 195217.78 | D19: 212321.56
A20: Pago a Proveedores y Acreedores | B20: 10 | C20: 807540.51 | D20: 766018.53
A21: Transferencias Corrientes Entregadas | B21: 11 | C21: 36322.99 | D21: 45024.64
A22: Jubilación | B22: 12
A23: Intereses, Comisiones y Multas | B23: 13 | C23: 576.16 | D23: 226.6
A24: Diferencias de Tipo de Cambio | B24: 14 | C24: 165.85 | D24: 790.01
A25: Otros Pagos | B25: 15 | D25: 7756.94
A26: Total Salidas de Efectivo | C26: =SUM(C19:C25) -> 1039823.29 | D26: =SUM(D19:D25) -> 1032138.28
A28: Total Entradas / Salidas Netas Actividades de Operación | C28: =C16-C26 -> 417836.19 | D28: =D16-D26 -> -53665.43
A30: B. Actividades de Inversión
A31: 1. Entradas de Efectivo
A32: Venta de Bienes Duraderos | B32: 16
A33: Venta de Valores e Inversiones | B33: 17
A34: Otros | B34: 18
A35: Total Entradas de Efectivo | C35: =SUM(C32:C34) -> 0 | D35: =SUM(D32:D34) -> 0
A37: 2. Salidas de Efectivo
A38: Compra de Maquinaria, Equipo y Mobiliario | B38: 19 | C38: 314939.34 | D38: 181038.48
A39: Compra de Bienes | B39: 20 | D39: 12000
A40: Pago de Construcciones, Adiciones y Mejoras | B40: 21 | C40: 17785.28 | D40: 34065.78
A41: Compra de Valores e Inversiones | B41: 22
A42: Otros | B42: 23
A43: Total Salida de Efectivo | C43: =SUM(C38:C42) -> 332724.62 | D43: =SUM(D38:D42) -> 227104.26
A45: Total Entradas / Salidas Netas Actividades de Inversión | C45: =C35-C43 -> -332724.62 | D45: =D35-D43 -> -227104.26
A47: C. Actividades de Financiación
A48: 1. Entradas de Efectivo
A49: Donaciones de Capital en efectivo Recibidas | B49: 24
A50: Transferencias de Capital Recibidas | B50: 25
A51: Préstamos Internos y/o Externos | B51: 26
A52: Amortización de préstamos e Intereses | B52: 27
A53: Otros | B53: 28 | C53: 12951.77 | D53: 11211.48
A54: Total Entradas de Efectivo | C54: =SUM(C49:C53) -> 12951.77 | D54: =SUM(D49:D53) -> 11211.48
A56: 2. Salidas de Efectivo
A57: Donaciones de Capital en efectivo Entregadas | B57: 29
A58: Transferencias de Capital Entregadas | B58: 30
A59: Amortización de préstamos e Intereses | B59: 31
A60: Préstamos Internos y/o Externos | B60: 32
A61: Otros | B61: 33 | C61: 12582.47 | D61: 3343.15
A62: Total Salidas de Efectivo | C62: =SUM(C57:C61) -> 12582.47 | D62: =SUM(D57:D61) -> 3343.15
A64: Total Entradas / Salidas Netas Actividades de Financiación | C64: =C54-C62 -> 369.3 | D64: =D54-D62 -> 7868.33
A66: D. Total Entradas / Salidas Netas en Efectivo | C66: =C28+C45+C64 -> 85480.87 | D66: =D28+D45+D64 -> -272901.36
A68: E. Más: Saldo inicial de Caja | C68: =D70 -> 1202670.59 | D68: 1475571.95
A70: F. Igual: Saldo final de Caja | C70: =C66+C68 -> 1288151.46 | D70: =D66+D68 -> 1202670.59
A74: ="Elaborado por: "&Principal!C8 -> Elaborado por: Jorge Sandoval Chaves | C74: ="Revisado por: "&Principal!C9 -> Revisado por: Isabel Alvarado Alpízar
A77: ="Aprobado por:"&Principal!C10 -> Aprobado por:Carlos Araya Fernández

Sheet Estado de Cambios en el Patri (hidden)
A1: Estado de Cambios en el Patrimonio Neto
A2: =Principal!C6&" de "&Principal!C7 -> 31 de diciembre de 2016
A3: (en miles de colones)
A4: =Principal!C4 -> Organos Desconcentrados
A5: =Principal!C5 -> Instituto Nacional de Innovación y Transferencia en Tecnología Agropecuaria (INTA)
A6: Descripción de la Cuenta | B6: Hacienda Pública | C6: Excedente de Reevaluación | D6: Reservas | E6: Superávit (Déficit) Acumulado | F6: Total
A7: Saldo al año anterior | B7: 3688220.21 | C7: 0 | D7: ='Balance General'!D87 -> 0 | E7: 1373205.77 | F7: =SUM(B7:E7) -> 5061425.98
A8: Cambios en la Política Contable | F8: =SUM(B8:E8) -> 0
A9: Saldos | B9: =B7+B8 -> 3688220.21 | C9: =C7+C8 -> 0 | D9: =D7+D8 -> 0 | E9: =E7+E8 -> 1373205.77 | F9: =SUM(B9:E9) -> 5061425.98
A10: Excedente ó Déficit de Reevaluación de Bienes Duraderos | F10: =+SUM(B10:E10) -> 0
A11: Superávit ó Déficit en Revaluación de Propiedad | F11: 0
A12: Superávit ó Déficit en Revaluación de Inversiones | F12: 0
A13: Donaciones (Efectivo y Especie) | F13: 0
A14: Ajuste de superávit acumulado. | E14: 19626.02 | F14: 19626.02
A15: Ganancias y Pérdidas Netas No Reconocidas en el Estado de Resultados | F15: 0
A16: Superávit ó Déficit Neto del Ejercicio | E16: ='Estado de Resultados'!C47 -> -314422.43 | F16: -314422.43
A17: Saldo | B17: =SUM(B9:B16) -> 3688220.21 | C17: =SUM(C9:C16) -> 0 | D17: =SUM(D9:D16) -> 0 | E17: =SUM(E9:E16) -> 1078409.36 | F17: =SUM(F9:F16) -> 4766629.57
B21: ="Elaborado por: "&Principal!C8 -> Elaborado por: Jorge Sandoval Chaves | E21: ="Revisado por: "&Principal!C9 -> Revisado por: Isabel Alvarado Alpízar
B25: ="Aprobado por: "&Principal!C10 -> Aprobado por: Carlos Araya Fernández

Sheet Proceso Judicial-Actor (hidden)
A1: =Principal!C5 -> Instituto Nacional de Innovación y Transferencia en Tecnología Agropecuaria (INTA)
A4: Nº de Expediente judicial | B4: Nombre Actor | C4: Motivo de la demanda | D4: Pretención Inicial | I4: Resolución en firme | N4: Fecha de recepción de pago | O4: Monto recibido | R4: Monedas
D5: Fecha | E5: Monto | F5: Moneda | G5: Tipo de Cambio | H5: Monto colones | I5: Fecha | J5: Monto | K5: Moneda | L5: Tipo de Cambio | M5: Monto colones | R5: Colones
A107: . | D107: Total en colones | H107: =IFERROR(SUM(H6:H106),0) -> 0 | I107: Total en colones | M107: =IFERROR(SUM(M6:M106),0) -> 0
A110: Hecho por: | D110: Revisado por: | H110: Aprobado por:

Sheet Proceso Judicial-Demandado (hidden)
A1: =Principal!C5 -> Instituto Nacional de Innovación y Transferencia en Tecnología Agropecuaria (INTA)
A4: Nº de Expediente judicial | B4: Nombre demandado | C4: Motivo de la demanda | D4: Pretención Inicial | I4: Resolución provisional | N4: Resolución en firme | S4: Fecha Ejecución Presupuestaria | T4: Fecha de pago | U4: Monto cancelado | W4: Monedas
D5: Fecha | E5: Monto | F5: Moneda | G5: Tipo de Cambio | H5: Monto colones | I5: Fecha | J5: Monto | K5: Moneda | L5: Tipo de Cambio | M5: Monto colones | N5: Fecha | O5: Monto | P5: Moneda | Q5: Tipo de Cambio | R5: Monto colones | W5: Colones
A6: 10-001886-0166-LA-8 | B6: INTA | C6: Laboral | D6: 2010-12-08 | E6: ¢ 5.027.935,70 | H6: 5027935.7 | W6: Dólares
A7: 14-000504-0929-LA | B7: INTA | C7: Laboral | D7: 2014-05-20 | E7: Inestimable
A8: 14-000576-0929-LA | B8: INTA | C8: Laboral | D8: 2014-06-05 | E8: Inestimable
A9: 14-000577-0929-LA | B9: INTA | C9: Laboral | D9: 2014-06-05 | E9: Inestimable
A10: 14-000578-0929-LA | B10: INTA | C10: Laboral | D10: 2014-06-05 | E10: Inestimable
A11: 14-000579-0929-LA | B11: INTA | C11: Laboral | D11: 2014-06-05 | E11: Inestimable
A12: 14-000580-0929-LA | B12: INTA | C12: Laboral | D12: 2014-06-05 | E12: Inestimable
A13: 14-000581-0929-LA | B13: INTA | C13: Laboral | D13: 2014-06-05 | E13: Inestimable
A14: 14-000587-0929-LA | B14: INTA | C14: Laboral | D14: 2014-06-06 | E14: Inestimable
A15: 14-002634-1178-LA | B15: INTA | C15: Laboral | D15: 2015-01-26 | E15: 3,876,240,00 | H15: 3876240
A16: 14-008685-1027-CA | B16: INTA | C16: Contencioso-Laboral | D16: 2014-10-15 | E16: ¢900.000,00 | H16: 900000
A17: 14-003384-11778-LA | B17: INTA | C17: Laboral | D17: 2016-05-01 | E17: Inestimable
A18: 10-000061-1025-LA | B18: INTA | C18: Laboral | D18: año 2010 | E18: Inestimable
A19: 16-000872-0494 | B19: Erick Delgado Núñez | C19: Tránsito | D19: 2016-01-01 | E19: Inestimable
A20: 13-003119-1178-LA-7 | B20: INTA | C20: Laboral | D20: 2016-03-01 | E20: Inestimable
A21: . | D21: Total en colones | H21: =IFERROR(SUM(H6:H20),0) -> 9804175.7 | I21: Total en colones | M21: =IFERROR(SUM(M6:M20),0) -> 0 | N21: Total en colones | R21: =IFERROR(SUM(R6:R20),0) -> 0
A24: Hecho por: | D24: Revisado por: | H24: Aprobado por:

Sheet anexo cuentas por cobrar C.P. (hidden)
A2: =Principal!C5 -> Instituto Nacional de Innovación y Transferencia en Tecnología Agropecuaria (INTA)
A3: Auxiliar de Cuentas por Cobrar Corto Plazo (C.P.)
A4: en miles de colones.
A5: =Principal!C6&" de "&Principal!C7 -> 31 de diciembre de 2016
A7: Detalle | B7: Monto
A9: Empleados.
A10: Sector Privado | B10: 5637.3
A11: Sector Publico. (*1) | B11: =SUM(B29:B350) -> 0
A12: Total. (*2) | B12: =IFERROR(SUM(B9:B11),0) -> 5637.3
A14: (*1) dicho auxiliar debe cerrar con el detalle del auxiliar de Bancos.
A15: (*2) dicho auxiliar debe cerrar con las Cuentas por Cobrar CP en el Estado de Situación Financiera.
A18: Diferencia en Sector Público | B18: =IFERROR(+B11-B351,0) -> 0
A19: Diferencia con Estado de Situación Financiera | B19: =B12-'Balance General'!C10 -> 0
A23: =Principal!C5 -> Instituto Nacional de Innovación y Transferencia en Tecnología Agropecuaria (INTA)
A24: Detalle Auxiliar de Cuentas por Cobrar Corto Plazo (C.P.)
A25: en miles de colones.
A26: =Principal!C6&" de "&Principal!C7 -> 31 de diciembre de 2016
A28: Nombre de la Institución del Sector Público | B28: Monto | C28: Conciliado con dicha Institución | D28: Monto que les reportó la Institución | E28: Diferencia | F28: Por que la Diferencia
E29: =B29-D29 -> 0
E30: =B30-D30 -> 0
E31: 0
E32: 0
E33: 0
E34: 0
E35: 0
E36: 0
E37: 0
E38: 0
E39: 0
E40: 0
E41: 0
E42: 0
E43: 0
E44: 0
E45: 0
E46: 0
E47: 0
E48: 0
E49: 0
E50: 0
E51: 0
E52: 0
E53: 0
E54: 0
E55: 0
E56: 0
E57: 0
E58: 0
E59: 0
E60: 0
E61: 0
E62: 0
E63: 0
E64: 0
E65: 0
E66: 0
E67: 0
E68: 0
E69: 0
E70: 0
E71: 0
E72: 0
E73: 0
E74: 0
E75: 0
E76: 0
E77: 0
E78: 0
E79: 0
E80: 0
E81: 0
E82: 0
E83: 0
E84: 0
E85: 0
E86: 0
E87: 0
E88: 0
E89: 0
E90: 0
E91: 0
E92: 0
E93: 0
E94: =B94-D94 -> 0
E95: 0
E96: 0
E97: 0
E98: 0
E99: 0
E100: 0
E101: 0
E102: 0
E103: 0
E104: 0
E105: 0
E106: 0
E107: 0
E108: 0
E109: 0
E110: 0
E111: 0
E112: 0
E113: 0
E114: 0
E115: 0
E116: 0
E117: 0
E118: 0
E119: 0
E120: 0
E121: 0
E122: 0
E123: 0
E124: 0
E125: 0
E126: 0
E127: 0
E128: 0
E129: 0
E130: 0
E131: 0
E132: 0
E133: 0
E134: 0
E135: 0
E136: 0
E137: 0
E138: 0
E139: 0
E140: 0
E141: 0
E142: 0
E143: 0
E144: 0
E145: 0
E146: 0
E147: 0
E148: 0
E149: 0
E150: 0
E151: 0
E152: 0
E153: 0
E154: 0
E155: 0
E156: 0
E157: 0
E158: =B158-D158 -> 0
E159: 0
E160: 0
E161: 0
E162: 0
E163: 0
E164: 0
E165: 0
E166: 0
E167: 0
E168: 0
E169: 0
E170: 0
E171: 0
E172: 0
E173: 0
E174: 0
E175: 0
E176: 0
E177: 0
E178: 0
E179: 0
E180: 0
E181: 0
E182: 0
E183: 0
E184: 0
E185: 0
E186: 0
E187: 0
E188: 0
E189: 0
E190: 0
E191: 0
E192: 0
E193: 0
E194: 0
E195: 0
E196: 0
E197: 0
E198: 0
E199: 0
E200: 0
E201: 0
E202: 0
E203: 0
E204: 0
E205: 0
E206: 0
E207: 0
E208: 0
E209: 0
E210: 0
... 145 more rows

Sheet anexo Inversiones a C.P. (hidden)
A2: =Principal!C5 -> Instituto Nacional de Innovación y Transferencia en Tecnología Agropecuaria (INTA)
A3: Auxiliar de Inversiones Corto Plazo (C.P.)
A4: en miles de colones.
A5: =Principal!C6&" de "&Principal!C7 -> 31 de diciembre de 2016
A7: Detalle | B7: Monto
A9: Empleados.
A10: Sector Privado | B10: 0
A11: Sector Publico. (*1) | B11: =SUM(B29:B350) -> 0
A12: Total. (*2) | B12: =SUM(B9:B11) -> 0
A14: (*1) dicho auxiliar debe cerrar con el detalle del auxiliar de Bancos.
A15: (*2) Dicho auxiliar debe cerrar con las Inversiones C.P. en el Estado de Situación Financiera.
A18: Diferencia en Sector Público | B18: =IFERROR(B11-B351,0) -> 0
A19: Diferencia con Estado de Situación Financiera | B19: =IFERROR(B12-'Balance General'!C16,0) -> 0
A23: =Principal!C5 -> Instituto Nacional de Innovación y Transferencia en Tecnología Agropecuaria (INTA)
A24: Detalle Auxiliar de Inversiones Corto Plazo (C.P.)
A25: en miles de colones.
A26: =Principal!C6&" de "&Principal!C7 -> 31 de diciembre de 2016
A28: Nombre de la Institución del Sector Público | B28: Monto | C28: Conciliado con dicha Institución | D28: Monto que les reportó la Institución | E28: Diferencia | F28: Por que la Diferencia
E29: =B29-D29 -> 0
E30: =B30-D30 -> 0
E31: 0
E32: 0
E33: 0
E34: 0
E35: 0
E36: 0
E37: 0
E38: 0
E39: 0
E40: 0
E41: 0
E42: 0
E43: 0
E44: 0
E45: 0
E46: 0
E47: 0
E48: 0
E49: 0
E50: 0
E51: 0
E52: 0
E53: 0
E54: 0
E55: 0
E56: 0
E57: 0
E58: 0
E59: 0
E60: 0
E61: 0
E62: 0
E63: 0
E64: 0
E65: 0
E66: 0
E67: 0
E68: 0
E69: 0
E70: 0
E71: 0
E72: 0
E73: 0
E74: 0
E75: 0
E76: 0
E77: 0
E78: 0
E79: 0
E80: 0
E81: 0
E82: 0
E83: 0
E84: 0
E85: 0
E86: 0
E87: 0
E88: 0
E89: 0
E90: 0
E91: 0
E92: 0
E93: 0
E94: =B94-D94 -> 0
E95: 0
E96: 0
E97: 0
E98: 0
E99: 0
E100: 0
E101: 0
E102: 0
E103: 0
E104: 0
E105: 0
E106: 0
E107: 0
E108: 0
E109: 0
E110: 0
E111: 0
E112: 0
E113: 0
E114: 0
E115: 0
E116: 0
E117: 0
E118: 0
E119: 0
E120: 0
E121: 0
E122: 0
E123: 0
E124: 0
E125: 0
E126: 0
E127: 0
E128: 0
E129: 0
E130: 0
E131: 0
E132: 0
E133: 0
E134: 0
E135: 0
E136: 0
E137: 0
E138: 0
E139: 0
E140: 0
E141: 0
E142: 0
E143: 0
E144: 0
E145: 0
E146: 0
E147: 0
E148: 0
E149: 0
E150: 0
E151: 0
E152: 0
E153: 0
E154: 0
E155: 0
E156: 0
E157: 0
E158: =B158-D158 -> 0
E159: 0
E160: 0
E161: 0
E162: 0
E163: 0
E164: 0
E165: 0
E166: 0
E167: 0
E168: 0
E169: 0
E170: 0
E171: 0
E172: 0
E173: 0
E174: 0
E175: 0
E176: 0
E177: 0
E178: 0
E179: 0
E180: 0
E181: 0
E182: 0
E183: 0
E184: 0
E185: 0
E186: 0
E187: 0
E188: 0
E189: 0
E190: 0
E191: 0
E192: 0
E193: 0
E194: 0
E195: 0
E196: 0
E197: 0
E198: 0
E199: 0
E200: 0
E201: 0
E202: 0
E203: 0
E204: 0
E205: 0
E206: 0
E207: 0
E208: 0
E209: 0
E210: 0
... 145 more rows

Sheet anexo Documentos por Cobrar L.P (hidden)
A2: =Principal!C5 -> Instituto Nacional de Innovación y Transferencia en Tecnología Agropecuaria (INTA)
A3: Auxiliar de Documentos por Cobrar Largo Plazo (LP.)
A4: en miles de colones.
A5: =Principal!C6&" de "&Principal!C7 -> 31 de diciembre de 2016
A7: Detalle | B7: Monto
A9: Empleados.
A10: Sector Privado
A11: Sector Publico. (*1) | B11: =SUM(B29:B350) -> 0
A12: Total. (*2) | B12: =SUM(B9:B11) -> 0
A14: (*1) dicho auxiliar debe cerrar con el detalle del auxiliar de Bancos.
A15: (*2) Dicho auxiliar debe cerrar con las Documentos por Cobrar LP. en el Estado de Situación Financiera.
A18: Diferencia en Sector Público | B18: =IFERROR(B11-B351,0) -> 0
A19: Diferencia con Estado de Situación Financiera | B19: =IFERROR(B12-'Balance General'!C20,0) -> 0
A23: =Principal!C5 -> Instituto Nacional de Innovación y Transferencia en Tecnología Agropecuaria (INTA)
A24: Detalle Auxiliar de Documentos por Cobrar Largo Plazo (LP.)
A25: en miles de colones.
A26: =Principal!C6&" de "&Principal!C7 -> 31 de diciembre de 2016
A28: Nombre de la Institución del Sector Público | B28: Monto | C28: Conciliado con dicha Institución | D28: Monto que les reportó la Institución | E28: Diferencia | F28: Por que la Diferencia
E29: =B29-D29 -> 0
E30: =B30-D30 -> 0
E31: 0
E32: 0
E33: 0
E34: 0
E35: 0
E36: 0
E37: 0
E38: 0
E39: 0
E40: 0
E41: 0
E42: 0
E43: 0
E44: 0
E45: 0
E46: 0
E47: 0
E48: 0
E49: 0
E50: 0
E51: 0
E52: 0
E53: 0
E54: 0
E55: 0
E56: 0
E57: 0
E58: 0
E59: 0
E60: 0
E61: 0
E62: 0
E63: 0
E64: 0
E65: 0
E66: 0
E67: 0
E68: 0
E69: 0
E70: 0
E71: 0
E72: 0
E73: 0
E74: 0
E75: 0
E76: 0
E77: 0
E78: 0
E79: 0
E80: 0
E81: 0
E82: 0
E83: 0
E84: 0
E85: 0
E86: 0
E87: 0
E88: 0
E89: 0
E90: 0
E91: 0
E92: 0
E93: 0
E94: =B94-D94 -> 0
E95: 0
E96: 0
E97: 0
E98: 0
E99: 0
E100: 0
E101: 0
E102: 0
E103: 0
E104: 0
E105: 0
E106: 0
E107: 0
E108: 0
E109: 0
E110: 0
E111: 0
E112: 0
E113: 0
E114: 0
E115: 0
E116: 0
E117: 0
E118: 0
E119: 0
E120: 0
E121: 0
E122: 0
E123: 0
E124: 0
E125: 0
E126: 0
E127: 0
E128: 0
E129: 0
E130: 0
E131: 0
E132: 0
E133: 0
E134: 0
E135: 0
E136: 0
E137: 0
E138: 0
E139: 0
E140: 0
E141: 0
E142: 0
E143: 0
E144: 0
E145: 0
E146: 0
E147: 0
E148: 0
E149: 0
E150: 0
E151: 0
E152: 0
E153: 0
E154: 0
E155: 0
E156: 0
E157: 0
E158: =B158-D158 -> 0
E159: 0
E160: 0
E161: 0
E162: 0
E163: 0
E164: 0
E165: 0
E166: 0
E167: 0
E168: 0
E169: 0
E170: 0
E171: 0
E172: 0
E173: 0
E174: 0
E175: 0
E176: 0
E177: 0
E178: 0
E179: 0
E180: 0
E181: 0
E182: 0
E183: 0
E184: 0
E185: 0
E186: 0
E187: 0
E188: 0
E189: 0
E190: 0
E191: 0
E192: 0
E193: 0
E194: 0
E195: 0
E196: 0
E197: 0
E198: 0
E199: 0
E200: 0
E201: 0
E202: 0
E203: 0
E204: 0
E205: 0
E206: 0
E207: 0
E208: 0
E209: 0
E210: 0
... 145 more rows

Sheet anexo cuentas por Cobrar L.P. (hidden)
A2: =+Principal!C5 -> Instituto Nacional de Innovación y Transferencia en Tecnología Agropecuaria (INTA)
A3: Auxiliar de Cuentas por Cobrar Largo Plazo (LP.)
A4: en miles de colones.
A5: =Principal!C6&" de "&Principal!C7 -> 31 de diciembre de 2016
A7: Detalle | B7: Monto
A9: Empleados.
A10: Sector Privado | B10: 9340.14
A11: Sector Publico. (*1) | B11: =SUM(B29:B350) -> 0
A12: Total. (*2) | B12: =SUM(B9:B11) -> 9340.14
A14: (*1) dicho auxiliar debe cerrar con el detalle del auxiliar de Bancos.
A15: (*2) Dicho auxiliar debe cerrar con las Cuentas por Cobrar LP. en el Estado de Situación Financiera.
A18: Diferencia en Sector Público | B18: =IFERROR(B11-B351,0) -> 0
A19: Diferencia con Estado de Situación Financiera | B19: =IFERROR(B12-'Balance General'!C21,0) -> 0
A23: =+Principal!C5 -> Instituto Nacional de Innovación y Transferencia en Tecnología Agropecuaria (INTA)
A24: Detalle Auxiliar de Cuentas por Cobrar Largo Plazo (LP.)
A25: en miles de colones.
A26: =Principal!C6&" de "&Principal!C7 -> 31 de diciembre de 2016
A28: Nombre de la Institución del Sector Público | B28: Monto | C28: Conciliado con dicha Institución | D28: Monto que les reportó la Institución | E28: Diferencia | F28: Por que la Diferencia
E29: =B29-D29 -> 0
E30: =B30-D30 -> 0
E31: 0
E32: 0
E33: 0
E34: 0
E35: 0
E36: 0
E37: 0
E38: 0
E39: 0
E40: 0
E41: 0
E42: 0
E43: 0
E44: 0
E45: 0
E46: 0
E47: 0
E48: 0
E49: 0
E50: 0
E51: 0
E52: 0
E53: 0
E54: 0
E55: 0
E56: 0
E57: 0
E58: 0
E59: 0
E60: 0
E61: 0
E62: 0
E63: 0
E64: 0
E65: 0
E66: 0
E67: 0
E68: 0
E69: 0
E70: 0
E71: 0
E72: 0
E73: 0
E74: 0
E75: 0
E76: 0
E77: 0
E78: 0
E79: 0
E80: 0
E81: 0
E82: 0
E83: 0
E84: 0
E85: 0
E86: 0
E87: 0
E88: 0
E89: 0
E90: 0
E91: 0
E92: 0
E93: 0
E94: =B94-D94 -> 0
E95: 0
E96: 0
E97: 0
E98: 0
E99: 0
E100: 0
E101: 0
E102: 0
E103: 0
E104: 0
E105: 0
E106: 0
E107: 0
E108: 0
E109: 0
E110: 0
E111: 0
E112: 0
E113: 0
E114: 0
E115: 0
E116: 0
E117: 0
E118: 0
E119: 0
E120: 0
E121: 0
E122: 0
E123: 0
E124: 0
E125: 0
E126: 0
E127: 0
E128: 0
E129: 0
E130: 0
E131: 0
E132: 0
E133: 0
E134: 0
E135: 0
E136: 0
E137: 0
E138: 0
E139: 0
E140: 0
E141: 0
E142: 0
E143: 0
E144: 0
E145: 0
E146: 0
E147: 0
E148: 0
E149: 0
E150: 0
E151: 0
E152: 0
E153: 0
E154: 0
E155: 0
E156: 0
E157: 0
E158: =B158-D158 -> 0
E159: 0
E160: 0
E161: 0
E162: 0
E163: 0
E164: 0
E165: 0
E166: 0
E167: 0
E168: 0
E169: 0
E170: 0
E171: 0
E172: 0
E173: 0
E174: 0
E175: 0
E176: 0
E177: 0
E178: 0
E179: 0
E180: 0
E181: 0
E182: 0
E183: 0
E184: 0
E185: 0
E186: 0
E187: 0
E188: 0
E189: 0
E190: 0
E191: 0
E192: 0
E193: 0
E194: 0
E195: 0
E196: 0
E197: 0
E198: 0
E199: 0
E200: 0
E201: 0
E202: 0
E203: 0
E204: 0
E205: 0
E206: 0
E207: 0
E208: 0
E209: 0
E210: 0
... 145 more rows

Sheet GASTOS ACUMULADOS PAGAR (hidden)
A2: =+Principal!C5 -> Instituto Nacional de Innovación y Transferencia en Tecnología Agropecuaria (INTA)
A3: Auxiliar de Acumulados por Pagar
A4: en miles de colones.
A5: =Principal!C6&" de "&Principal!C7 -> 31 de diciembre de 2016
A7: Detalle | B7: Monto
A9: Empleados.
A10: Sector Privado | B10: 0
A11: Sector Publico. (*1) | B11: =SUM(B23:B344) -> 0
A12: Total. (*2) | B12: =IFERROR(SUM(B9:B11),0) -> 0
A17: =+Principal!C5 -> Instituto Nacional de Innovación y Transferencia en Tecnología Agropecuaria (INTA)
A18: Detalle Auxiliar
A19: en miles de colones.
A20: =Principal!C6&" de "&Principal!C7 -> 31 de diciembre de 2016
A22: Nombre de la Institución del Sector Público | B22: Monto | C22: Conciliado con dicha Institución | D22: Monto que les reportó la Institución | E22: Diferencia | F22: Por que la Diferencia
E23: =B23-D23 -> 0
E24: =B24-D24 -> 0
E25: 0
E26: 0
E27: 0
E28: 0
E29: 0
E30: 0
E31: 0
E32: 0
E33: 0
E34: 0
E35: 0
E36: 0
E37: 0
E38: 0
E39: 0
E40: 0
E41: 0
E42: 0
E43: 0
E44: 0
E45: 0
E46: 0
E47: 0
E48: 0
E49: 0
E50: 0
E51: 0
E52: 0
E53: 0
E54: 0
E55: 0
E56: 0
E57: 0
E58: 0
E59: 0
E60: 0
E61: 0
E62: 0
E63: 0
E64: 0
E65: 0
E66: 0
E67: 0
E68: 0
E69: 0
E70: 0
E71: 0
E72: 0
E73: 0
E74: 0
E75: 0
E76: 0
E77: 0
E78: 0
E79: 0
E80: 0
E81: 0
E82: 0
E83: 0
E84: 0
E85: 0
E86: 0
E87: 0
E88: =B88-D88 -> 0
E89: 0
E90: 0
E91: 0
E92: 0
E93: 0
E94: 0
E95: 0
E96: 0
E97: 0
E98: 0
E99: 0
E100: 0
E101: 0
E102: 0
E103: 0
E104: 0
E105: 0
E106: 0
E107: 0
E108: 0
E109: 0
E110: 0
E111: 0
E112: 0
E113: 0
E114: 0
E115: 0
E116: 0
E117: 0
E118: 0
E119: 0
E120: 0
E121: 0
E122: 0
E123: 0
E124: 0
E125: 0
E126: 0
E127: 0
E128: 0
E129: 0
E130: 0
E131: 0
E132: 0
E133: 0
E134: 0
E135: 0
E136: 0
E137: 0
E138: 0
E139: 0
E140: 0
E141: 0
E142: 0
E143: 0
E144: 0
E145: 0
E146: 0
E147: 0
E148: 0
E149: 0
E150: 0
E151: 0
E152: =B152-D152 -> 0
E153: 0
E154: 0
E155: 0
E156: 0
E157: 0
E158: 0
E159: 0
E160: 0
E161: 0
E162: 0
E163: 0
E164: 0
E165: 0
E166: 0
E167: 0
E168: 0
E169: 0
E170: 0
E171: 0
E172: 0
E173: 0
E174: 0
E175: 0
E176: 0
E177: 0
E178: 0
E179: 0
E180: 0
E181: 0
E182: 0
E183: 0
E184: 0
E185: 0
E186: 0
E187: 0
E188: 0
E189: 0
E190: 0
E191: 0
E192: 0
E193: 0
E194: 0
E195: 0
E196: 0
E197: 0
E198: 0
E199: 0
E200: 0
E201: 0
E202: 0
E203: 0
E204: 0
E205: 0
E206: 0
E207: 0
E208: 0
... 141 more rows

Sheet anexo Préstamos (hidden)
A2: =+Principal!C5 -> Instituto Nacional de Innovación y Transferencia en Tecnología Agropecuaria (INTA)
A3: Auxiliar de Préstamos
A4: en miles de colones.
A5: =Principal!C6&" de "&Principal!C7 -> 31 de diciembre de 2016
A7: Detalle | B7: Monto
A9: Empleados.
A10: Sector Privado
A11: Sector Publico. (*1) | B11: =SUM(B29:B350) -> 0
A12: Total. (*2) | B12: =SUM(B9:B11) -> 0
A14: (*1) dicho auxiliar debe cerrar con el detalle del auxiliar de Bancos.
A15: (*2) Dicho auxiliar debe cerrar con los Préstamos en el Estado de Situación Financiera.
A18: Diferencia en Sector Público | B18: =IFERROR(B11-B351,0) -> 0
A19: Diferencia con Estado de Situación Financiera | B19: =IFERROR(B12-'Balance General'!C26,0) -> 0
A23: =+Principal!C5 -> Instituto Nacional de Innovación y Transferencia en Tecnología Agropecuaria (INTA)
A24: Detalle Auxiliar de Bancos Sector Público
A25: en miles de colones.
A26: =Principal!C6&" de "&Principal!C7 -> 31 de diciembre de 2016
A28: Nombre de la Institución del Sector Público | B28: Monto | C28: Conciliado con dicha Institución | D28: Monto que les reportó la Institución | E28: Diferencia | F28: Por que la Diferencia
E29: =B29-D29 -> 0
E30: =B30-D30 -> 0
E31: 0
E32: 0
E33: 0
E34: 0
E35: 0
E36: 0
E37: 0
E38: 0
E39: 0
E40: 0
E41: 0
E42: 0
E43: 0
E44: 0
E45: 0
E46: 0
E47: 0
E48: 0
E49: 0
E50: 0
E51: 0
E52: 0
E53: 0
E54: 0
E55: 0
E56: 0
E57: 0
E58: 0
E59: 0
E60: 0
E61: 0
E62: 0
E63: 0
E64: 0
E65: 0
E66: 0
E67: 0
E68: 0
E69: 0
E70: 0
E71: 0
E72: 0
E73: 0
E74: 0
E75: 0
E76: 0
E77: 0
E78: 0
E79: 0
E80: 0
E81: 0
E82: 0
E83: 0
E84: 0
E85: 0
E86: 0
E87: 0
E88: 0
E89: 0
E90: 0
E91: 0
E92: 0
E93: 0
E94: =B94-D94 -> 0
E95: 0
E96: 0
E97: 0
E98: 0
E99: 0
E100: 0
E101: 0
E102: 0
E103: 0
E104: 0
E105: 0
E106: 0
E107: 0
E108: 0
E109: 0
E110: 0
E111: 0
E112: 0
E113: 0
E114: 0
E115: 0
E116: 0
E117: 0
E118: 0
E119: 0
E120: 0
E121: 0
E122: 0
E123: 0
E124: 0
E125: 0
E126: 0
E127: 0
E128: 0
E129: 0
E130: 0
E131: 0
E132: 0
E133: 0
E134: 0
E135: 0
E136: 0
E137: 0
E138: 0
E139: 0
E140: 0
E141: 0
E142: 0
E143: 0
E144: 0
E145: 0
E146: 0
E147: 0
E148: 0
E149: 0
E150: 0
E151: 0
E152: 0
E153: 0
E154: 0
E155: 0
E156: 0
E157: 0
E158: =B158-D158 -> 0
E159: 0
E160: 0
E161: 0
E162: 0
E163: 0
E164: 0
E165: 0
E166: 0
E167: 0
E168: 0
E169: 0
E170: 0
E171: 0
E172: 0
E173: 0
E174: 0
E175: 0
E176: 0
E177: 0
E178: 0
E179: 0
E180: 0
E181: 0
E182: 0
E183: 0
E184: 0
E185: 0
E186: 0
E187: 0
E188: 0
E189: 0
E190: 0
E191: 0
E192: 0
E193: 0
E194: 0
E195: 0
E196: 0
E197: 0
E198: 0
E199: 0
E200: 0
E201: 0
E202: 0
E203: 0
E204: 0
E205: 0
E206: 0
E207: 0
E208: 0
E209: 0
E210: 0
... 145 more rows

Sheet Anexo Adquisición de Valores (hidden)
A2: =+Principal!C5 -> Instituto Nacional de Innovación y Transferencia en Tecnología Agropecuaria (INTA)
A3: Auxiliar de Adquisición de Valores
A4: en miles de colones.
A5: =Principal!C6&" de "&Principal!C7 -> 31 de diciembre de 2016
A7: Detalle | B7: Monto
A9: Empleados.
A10: Sector Privado
A11: Sector Publico. (*1) | B11: =SUM(B29:B350) -> 0
A12: Total. (*2) | B12: =SUM(B9:B11) -> 0
A14: (*1) dicho auxiliar debe cerrar con el detalle del auxiliar de Bancos.
A15: (*2) Dicho auxiliar debe cerrar con las Adquisición de Valores en el Estado de Situación Financiera.
A18: Diferencia en Sector Público | B18: =IFERROR(B11-B351,0) -> 0
A19: Diferencia con Estado de Situación Financiera | B19: =IFERROR(B12-'Balance General'!C28,0) -> 0
A23: =+Principal!C5 -> Instituto Nacional de Innovación y Transferencia en Tecnología Agropecuaria (INTA)
A24: Detalle Auxiliar de Adquisición de Valores
A25: en miles de colones.
A26: =Principal!C6&" de "&Principal!C7 -> 31 de diciembre de 2016
A28: Nombre de la Institución del Sector Público | B28: Monto | C28: Conciliado con dicha Institución | D28: Monto que les reportó la Institución | E28: Diferencia | F28: Por que la Diferencia
E29: =B29-D29 -> 0
E30: =B30-D30 -> 0
E31: 0
E32: 0
E33: 0
E34: 0
E35: 0
E36: 0
E37: 0
E38: 0
E39: 0
E40: 0
E41: 0
E42: 0
E43: 0
E44: 0
E45: 0
E46: 0
E47: 0
E48: 0
E49: 0
E50: 0
E51: 0
E52: 0
E53: 0
E54: 0
E55: 0
E56: 0
E57: 0
E58: 0
E59: 0
E60: 0
E61: 0
E62: 0
E63: 0
E64: 0
E65: 0
E66: 0
E67: 0
E68: 0
E69: 0
E70: 0
E71: 0
E72: 0
E73: 0
E74: 0
E75: 0
E76: 0
E77: 0
E78: 0
E79: 0
E80: 0
E81: 0
E82: 0
E83: 0
E84: 0
E85: 0
E86: 0
E87: 0
E88: 0
E89: 0
E90: 0
E91: 0
E92: 0
E93: 0
E94: =B94-D94 -> 0
E95: 0
E96: 0
E97: 0
E98: 0
E99: 0
E100: 0
E101: 0
E102: 0
E103: 0
E104: 0
E105: 0
E106: 0
E107: 0
E108: 0
E109: 0
E110: 0
E111: 0
E112: 0
E113: 0
E114: 0
E115: 0
E116: 0
E117: 0
E118: 0
E119: 0
E120: 0
E121: 0
E122: 0
E123: 0
E124: 0
E125: 0
E126: 0
E127: 0
E128: 0
E129: 0
E130: 0
E131: 0
E132: 0
E133: 0
E134: 0
E135: 0
E136: 0
E137: 0
E138: 0
E139: 0
E140: 0
E141: 0
E142: 0
E143: 0
E144: 0
E145: 0
E146: 0
E147: 0
E148: 0
E149: 0
E150: 0
E151: 0
E152: 0
E153: 0
E154: 0
E155: 0
E156: 0
E157: 0
E158: =B158-D158 -> 0
E159: 0
E160: 0
E161: 0
E162: 0
E163: 0
E164: 0
E165: 0
E166: 0
E167: 0
E168: 0
E169: 0
E170: 0
E171: 0
E172: 0
E173: 0
E174: 0
E175: 0
E176: 0
E177: 0
E178: 0
E179: 0
E180: 0
E181: 0
E182: 0
E183: 0
E184: 0
E185: 0
E186: 0
E187: 0
E188: 0
E189: 0
E190: 0
E191: 0
E192: 0
E193: 0
E194: 0
E195: 0
E196: 0
E197: 0
E198: 0
E199: 0
E200: 0
E201: 0
E202: 0
E203: 0
E204: 0
E205: 0
E206: 0
E207: 0
E208: 0
E209: 0
E210: 0
... 145 more rows

Sheet Otros Activos Financieros (hidden)
A2: =+Principal!C5 -> Instituto Nacional de Innovación y Transferencia en Tecnología Agropecuaria (INTA)
A3: Auxiliar de Otros Activos Financieros
A4: en miles de colones.
A5: =Principal!C6&" de "&Principal!C7 -> 31 de diciembre de 2016
A7: Detalle | B7: Monto
A9: Empleados.
A10: Sector Privado | B10: 0
A11: Sector Publico. (*1) | B11: =SUM(B29:B350) -> 0
A12: Total. (*2) | B12: =SUM(B9:B11) -> 0
A14: (*1) dicho auxiliar debe cerrar con el detalle del auxiliar de Bancos.
A15: (*2) Dicho auxiliar debe cerrar con los Otros Activos Financieros en el Estado de Situación Financiera.
A18: Diferencia en Sector Público | B18: =IFERROR(B11-B351,0) -> 0
A19: Diferencia con Estado de Situación Financiera | B19: =IFERROR(B12-'Balance General'!C29,0) -> 0
A23: =+Principal!C5 -> Instituto Nacional de Innovación y Transferencia en Tecnología Agropecuaria (INTA)
A24: Detalle Auxiliar de Otros Activos Financieros
A25: en miles de colones.
A26: =Principal!C6&" de "&Principal!C7 -> 31 de diciembre de 2016
A28: Nombre de la Institución del Sector Público | B28: Monto | C28: Conciliado con dicha Institución | D28: Monto que les reportó la Institución | E28: Diferencia | F28: Por que la Diferencia
E29: =B29-D29 -> 0
E30: =B30-D30 -> 0
E31: 0
E32: 0
E33: 0
E34: 0
E35: 0
E36: 0
E37: 0
E38: 0
E39: 0
E40: 0
E41: 0
E42: 0
E43: 0
E44: 0
E45: 0
E46: 0
E47: 0
E48: 0
E49: 0
E50: 0
E51: 0
E52: 0
E53: 0
E54: 0
E55: 0
E56: 0
E57: 0
E58: 0
E59: 0
E60: 0
E61: 0
E62: 0
E63: 0
E64: 0
E65: 0
E66: 0
E67: 0
E68: 0
E69: 0
E70: 0
E71: 0
E72: 0
E73: 0
E74: 0
E75: 0
E76: 0
E77: 0
E78: 0
E79: 0
E80: 0
E81: 0
E82: 0
E83: 0
E84: 0
E85: 0
E86: 0
E87: 0
E88: 0
E89: 0
E90: 0
E91: 0
E92: 0
E93: 0
E94: =B94-D94 -> 0
E95: 0
E96: 0
E97: 0
E98: 0
E99: 0
E100: 0
E101: 0
E102: 0
E103: 0
E104: 0
E105: 0
E106: 0
E107: 0
E108: 0
E109: 0
E110: 0
E111: 0
E112: 0
E113: 0
E114: 0
E115: 0
E116: 0
E117: 0
E118: 0
E119: 0
E120: 0
E121: 0
E122: 0
E123: 0
E124: 0
E125: 0
E126: 0
E127: 0
E128: 0
E129: 0
E130: 0
E131: 0
E132: 0
E133: 0
E134: 0
E135: 0
E136: 0
E137: 0
E138: 0
E139: 0
E140: 0
E141: 0
E142: 0
E143: 0
E144: 0
E145: 0
E146: 0
E147: 0
E148: 0
E149: 0
E150: 0
E151: 0
E152: 0
E153: 0
E154: 0
E155: 0
E156: 0
E157: 0
E158: =B158-D158 -> 0
E159: 0
E160: 0
E161: 0
E162: 0
E163: 0
E164: 0
E165: 0
E166: 0
E167: 0
E168: 0
E169: 0
E170: 0
E171: 0
E172: 0
E173: 0
E174: 0
E175: 0
E176: 0
E177: 0
E178: 0
E179: 0
E180: 0
E181: 0
E182: 0
E183: 0
E184: 0
E185: 0
E186: 0
E187: 0
E188: 0
E189: 0
E190: 0
E191: 0
E192: 0
E193: 0
E194: 0
E195: 0
E196: 0
E197: 0
E198: 0
E199: 0
E200: 0
E201: 0
E202: 0
E203: 0
E204: 0
E205: 0
E206: 0
E207: 0
E208: 0
E209: 0
E210: 0
... 145 more rows

Sheet anexo cuentas por pagar (hidden)
A2: =+Principal!C5 -> Instituto Nacional de Innovación y Transferencia en Tecnología Agropecuaria (INTA)
A3: Auxiliar de Cuentas por Pagar Corto Plazo (C.P.)
A4: en miles de colones.
A5: =Principal!C6&" de "&Principal!C7 -> 31 de diciembre de 2016
A7: Detalle | B7: Monto
A9: Empleados.
A10: Sector Privado | B10: 22165.79
A11: Sector Publico. (*1) | B11: =SUM(B29:B350) -> 0
A12: Total. (*2) | B12: =IFERROR(SUM(B9:B11),0) -> 22165.79
A14: (*1) dicho auxiliar debe cerrar con el detalle del auxiliar de Bancos.
A15: (*2) Dicho auxiliar debe cerrar con las Cuentas por Pagar en el Estado de Situación Financiera.
A18: Diferencia en Sector Público | B18: =IFERROR(B11-B351,0) -> 0
A19: Diferencia con Estado de Situación Financiera | B19: =IFERROR(B12-'Balance General'!C66,0) -> 0
A23: =+Principal!C5 -> Instituto Nacional de Innovación y Transferencia en Tecnología Agropecuaria (INTA)
A24: Detalle Auxiliar de Cuentas por Pagar Corto Plazo (C.P.)
A25: en miles de colones.
A26: =Principal!C6&" de "&Principal!C7 -> 31 de diciembre de 2016
A28: Nombre de la Institución del Sector Público | B28: Monto | C28: Conciliado con dicha Institución | D28: Monto que les reportó la Institución | E28: Diferencia | F28: Por que la Diferencia
E29: =B29-D29 -> 0
E30: =B30-D30 -> 0
E31: 0
E32: 0
E33: 0
E34: 0
E35: 0
E36: 0
E37: 0
E38: 0
E39: 0
E40: 0
E41: 0
E42: 0
E43: 0
E44: 0
E45: 0
E46: 0
E47: 0
E48: 0
E49: 0
E50: 0
E51: 0
E52: 0
E53: 0
E54: 0
E55: 0
E56: 0
E57: 0
E58: 0
E59: 0
E60: 0
E61: 0
E62: 0
E63: 0
E64: 0
E65: 0
E66: 0
E67: 0
E68: 0
E69: 0
E70: 0
E71: 0
E72: 0
E73: 0
E74: 0
E75: 0
E76: 0
E77: 0
E78: 0
E79: 0
E80: 0
E81: 0
E82: 0
E83: 0
E84: 0
E85: 0
E86: 0
E87: 0
E88: 0
E89: 0
E90: 0
E91: 0
E92: 0
E93: 0
E94: =B94-D94 -> 0
E95: 0
E96: 0
E97: 0
E98: 0
E99: 0
E100: 0
E101: 0
E102: 0
E103: 0
E104: 0
E105: 0
E106: 0
E107: 0
E108: 0
E109: 0
E110: 0
E111: 0
E112: 0
E113: 0
E114: 0
E115: 0
E116: 0
E117: 0
E118: 0
E119: 0
E120: 0
E121: 0
E122: 0
E123: 0
E124: 0
E125: 0
E126: 0
E127: 0
E128: 0
E129: 0
E130: 0
E131: 0
E132: 0
E133: 0
E134: 0
E135: 0
E136: 0
E137: 0
E138: 0
E139: 0
E140: 0
E141: 0
E142: 0
E143: 0
E144: 0
E145: 0
E146: 0
E147: 0
E148: 0
E149: 0
E150: 0
E151: 0
E152: 0
E153: 0
E154: 0
E155: 0
E156: 0
E157: 0
E158: =B158-D158 -> 0
E159: 0
E160: 0
E161: 0
E162: 0
E163: 0
E164: 0
E165: 0
E166: 0
E167: 0
E168: 0
E169: 0
E170: 0
E171: 0
E172: 0
E173: 0
E174: 0
E175: 0
E176: 0
E177: 0
E178: 0
E179: 0
E180: 0
E181: 0
E182: 0
E183: 0
E184: 0
E185: 0
E186: 0
E187: 0
E188: 0
E189: 0
E190: 0
E191: 0
E192: 0
E193: 0
E194: 0
E195: 0
E196: 0
E197: 0
E198: 0
E199: 0
E200: 0
E201: 0
E202: 0
E203: 0
E204: 0
E205: 0
E206: 0
E207: 0
E208: 0
E209: 0
E210: 0
... 145 more rows

Sheet anexo retenciones por pagar (hidden)
A2: =+Principal!C5 -> Instituto Nacional de Innovación y Transferencia en Tecnología Agropecuaria (INTA)
A3: Auxiliar de Retenciones por Pagar
A4: en miles de colones.
A5: =Principal!C6&" de "&Principal!C7 -> 31 de diciembre de 2016
A7: Detalle | B7: Monto
A9: Empleados.
A10: Sector Privado | B10: 1350.76
A11: Sector Publico. (*1) | B11: =SUM(B29:B350) -> 10498.56
A12: Total. (*2) | B12: =IFERROR(SUM(B9:B11),0) -> 11849.32
A14: (*1) dicho auxiliar debe cerrar con el detalle del auxiliar de Bancos.
A15: (*2) Dicho auxiliar debe cerrar con las Retenciones por Pagar en el Estado de Situación Financiera.
A18: Diferencia en Sector Público | B18: =IFERROR(B11-B351,0) -> 0
A19: Diferencia con Estado de Situación Financiera | B19: =IFERROR(B12-'Balance General'!C67,0) -> 1.818989404e-12
A23: =+Principal!C5 -> Instituto Nacional de Innovación y Transferencia en Tecnología Agropecuaria (INTA)
A24: Detalle Auxiliar de Retenciones por Pagar
A25: en miles de colones.
A26: =Principal!C6&" de "&Principal!C7 -> 31 de diciembre de 2016
A28: Nombre de la Institución del Sector Público | B28: Monto | C28: Conciliado con dicha Institución | D28: Monto que les reportó la Institución | E28: Diferencia | F28: Por que la Diferencia
A29: Ministerio de Hacienda | B29: 9240.61 | D29: 9240.61 | E29: =B29-D29 -> 0
A30: Caja Costarricense de Seguro Social (CCSS) | B30: 1257.95 | D30: 1257.95 | E30: =B30-D30 -> 0
E31: 0
E32: 0
E33: 0
E34: 0
E35: 0
E36: 0
E37: 0
E38: 0
E39: 0
E40: 0
E41: 0
E42: 0
E43: 0
E44: 0
E45: 0
E46: 0
E47: 0
E48: 0
E49: 0
E50: 0
E51: 0
E52: 0
E53: 0
E54: 0
E55: 0
E56: 0
E57: 0
E58: 0
E59: 0
E60: 0
E61: 0
E62: 0
E63: 0
E64: 0
E65: 0
E66: 0
E67: 0
E68: 0
E69: 0
E70: 0
E71: 0
E72: 0
E73: 0
E74: 0
E75: 0
E76: 0
E77: 0
E78: 0
E79: 0
E80: 0
E81: 0
E82: 0
E83: 0
E84: 0
E85: 0
E86: 0
E87: 0
E88: 0
E89: 0
E90: 0
E91: 0
E92: 0
E93: 0
E94: =B94-D94 -> 0
E95: 0
E96: 0
E97: 0
E98: 0
E99: 0
E100: 0
E101: 0
E102: 0
E103: 0
E104: 0
E105: 0
E106: 0
E107: 0
E108: 0
E109: 0
E110: 0
E111: 0
E112: 0
E113: 0
E114: 0
E115: 0
E116: 0
E117: 0
E118: 0
E119: 0
E120: 0
E121: 0
E122: 0
E123: 0
E124: 0
E125: 0
E126: 0
E127: 0
E128: 0
E129: 0
E130: 0
E131: 0
E132: 0
E133: 0
E134: 0
E135: 0
E136: 0
E137: 0
E138: 0
E139: 0
E140: 0
E141: 0
E142: 0
E143: 0
E144: 0
E145: 0
E146: 0
E147: 0
E148: 0
E149: 0
E150: 0
E151: 0
E152: 0
E153: 0
E154: 0
E155: 0
E156: 0
E157: 0
E158: =B158-D158 -> 0
E159: 0
E160: 0
E161: 0
E162: 0
E163: 0
E164: 0
E165: 0
E166: 0
E167: 0
E168: 0
E169: 0
E170: 0
E171: 0
E172: 0
E173: 0
E174: 0
E175: 0
E176: 0
E177: 0
E178: 0
E179: 0
E180: 0
E181: 0
E182: 0
E183: 0
E184: 0
E185: 0
E186: 0
E187: 0
E188: 0
E189: 0
E190: 0
E191: 0
E192: 0
E193: 0
E194: 0
E195: 0
E196: 0
E197: 0
E198: 0
E199: 0
E200: 0
E201: 0
E202: 0
E203: 0
E204: 0
E205: 0
E206: 0
E207: 0
E208: 0
E209: 0
E210: 0
... 145 more rows

Sheet anexo Endeudamiento C.P (hidden)
A2: =+Principal!C5 -> Instituto Nacional de Innovación y Transferencia en Tecnología Agropecuaria (INTA)
A3: Auxiliar de Endeudamiento a Corto Plazo (C.P.)
A4: en miles de colones.
A5: =Principal!C6&" de "&Principal!C7 -> 31 de diciembre de 2016
A7: Detalle | B7: Monto
A9: Empleados.
A10: Sector Privado
A11: Sector Publico. (*1) | B11: =SUM(B29:B350) -> 0
A12: Total. (*2) | B12: =IFERROR(SUM(B9:B11),0) -> 0
A14: (*1) dicho auxiliar debe cerrar con el detalle del auxiliar de Bancos.
A15: (*2) Dicho auxiliar debe cerrar con el Endeudamiento a C.P en el Estado de Situación Financiera.
A18: Diferencia en Sector Público | B18: =IFERROR(B11-B351,0) -> 0
A19: Diferencia con Estado de Situación Financiera | B19: =IFERROR('Balance General'!C69,0) -> 0
A23: =+Principal!C5 -> Instituto Nacional de Innovación y Transferencia en Tecnología Agropecuaria (INTA)
A24: Detalle Auxiliar de Endeudamiento a Corto Plazo (C.P.)
A25: en miles de colones.
A26: =Principal!C6&" de "&Principal!C7 -> 31 de diciembre de 2016
A28: Nombre de la Institución del Sector Público | B28: Monto | C28: Conciliado con dicha Institución | D28: Monto que les reportó la Institución | E28: Diferencia | F28: Por que la Diferencia
E29: =B29-D29 -> 0
E30: =B30-D30 -> 0
E31: 0
E32: 0
E33: 0
E34: 0
E35: 0
E36: 0
E37: 0
E38: 0
E39: 0
E40: 0
E41: 0
E42: 0
E43: 0
E44: 0
E45: 0
E46: 0
E47: 0
E48: 0
E49: 0
E50: 0
E51: 0
E52: 0
E53: 0
E54: 0
E55: 0
E56: 0
E57: 0
E58: 0
E59: 0
E60: 0
E61: 0
E62: 0
E63: 0
E64: 0
E65: 0
E66: 0
E67: 0
E68: 0
E69: 0
E70: 0
E71: 0
E72: 0
E73: 0
E74: 0
E75: 0
E76: 0
E77: 0
E78: 0
E79: 0
E80: 0
E81: 0
E82: 0
E83: 0
E84: 0
E85: 0
E86: 0
E87: 0
E88: 0
E89: 0
E90: 0
E91: 0
E92: 0
E93: 0
E94: =B94-D94 -> 0
E95: 0
E96: 0
E97: 0
E98: 0
E99: 0
E100: 0
E101: 0
E102: 0
E103: 0
E104: 0
E105: 0
E106: 0
E107: 0
E108: 0
E109: 0
E110: 0
E111: 0
E112: 0
E113: 0
E114: 0
E115: 0
E116: 0
E117: 0
E118: 0
E119: 0
E120: 0
E121: 0
E122: 0
E123: 0
E124: 0
E125: 0
E126: 0
E127: 0
E128: 0
E129: 0
E130: 0
E131: 0
E132: 0
E133: 0
E134: 0
E135: 0
E136: 0
E137: 0
E138: 0
E139: 0
E140: 0
E141: 0
E142: 0
E143: 0
E144: 0
E145: 0
E146: 0
E147: 0
E148: 0
E149: 0
E150: 0
E151: 0
E152: 0
E153: 0
E154: 0
E155: 0
E156: 0
E157: 0
E158: =B158-D158 -> 0
E159: 0
E160: 0
E161: 0
E162: 0
E163: 0
E164: 0
E165: 0
E166: 0
E167: 0
E168: 0
E169: 0
E170: 0
E171: 0
E172: 0
E173: 0
E174: 0
E175: 0
E176: 0
E177: 0
E178: 0
E179: 0
E180: 0
E181: 0
E182: 0
E183: 0
E184: 0
E185: 0
E186: 0
E187: 0
E188: 0
E189: 0
E190: 0
E191: 0
E192: 0
E193: 0
E194: 0
E195: 0
E196: 0
E197: 0
E198: 0
E199: 0
E200: 0
E201: 0
E202: 0
E203: 0
E204: 0
E205: 0
E206: 0
E207: 0
E208: 0
E209: 0
E210: 0
... 145 more rows

Sheet anexo Endeud L.P. corriente (hidden)
A2: =+Principal!C5 -> Instituto Nacional de Innovación y Transferencia en Tecnología Agropecuaria (INTA)
A3: Auxiliar de Endeudamiento a Largo Plazo Corriente (LP.)
A4: en miles de colones.
A5: =Principal!C6&" de "&Principal!C7 -> 31 de diciembre de 2016
A7: Detalle | B7: Monto
A9: Empleados.
A10: Sector Privado
A11: Sector Publico. (*1) | B11: =SUM(B29:B350) -> 0
A12: Total. (*2) | B12: =SUM(B9:B11) -> 0
A14: (*1) dicho auxiliar debe cerrar con el detalle del auxiliar de Bancos.
A15: (*2) Dicho auxiliar debe cerrar con el Endeudamiento LP. Corriente en el Estado de Situación Financiera.
A18: Diferencia en Sector Público | B18: =IFERROR(B11-B351,0) -> 0
A19: Diferencia con Estado de Situación Financiera | B19: =IFERROR(B12-'Balance General'!C70,0) -> 0
A23: =+Principal!C5 -> Instituto Nacional de Innovación y Transferencia en Tecnología Agropecuaria (INTA)
A24: Detalle Auxiliar de Endeudamiento a Largo Plazo Corriente (LP.)
A25: en miles de colones.
A26: =Principal!C6&" de "&Principal!C7 -> 31 de diciembre de 2016
A28: Nombre de la Institución del Sector Público | B28: Monto | C28: Conciliado con dicha Institución | D28: Monto que les reportó la Institución | E28: Diferencia | F28: Por que la Diferencia
E29: =B29-D29 -> 0
E30: =B30-D30 -> 0
E31: 0
E32: 0
E33: 0
E34: 0
E35: 0
E36: 0
E37: 0
E38: 0
E39: 0
E40: 0
E41: 0
E42: 0
E43: 0
E44: 0
E45: 0
E46: 0
E47: 0
E48: 0
E49: 0
E50: 0
E51: 0
E52: 0
E53: 0
E54: 0
E55: 0
E56: 0
E57: 0
E58: 0
E59: 0
E60: 0
E61: 0
E62: 0
E63: 0
E64: 0
E65: 0
E66: 0
E67: 0
E68: 0
E69: 0
E70: 0
E71: 0
E72: 0
E73: 0
E74: 0
E75: 0
E76: 0
E77: 0
E78: 0
E79: 0
E80: 0
E81: 0
E82: 0
E83: 0
E84: 0
E85: 0
E86: 0
E87: 0
E88: 0
E89: 0
E90: 0
E91: 0
E92: 0
E93: 0
E94: =B94-D94 -> 0
E95: 0
E96: 0
E97: 0
E98: 0
E99: 0
E100: 0
E101: 0
E102: 0
E103: 0
E104: 0
E105: 0
E106: 0
E107: 0
E108: 0
E109: 0
E110: 0
E111: 0
E112: 0
E113: 0
E114: 0
E115: 0
E116: 0
E117: 0
E118: 0
E119: 0
E120: 0
E121: 0
E122: 0
E123: 0
E124: 0
E125: 0
E126: 0
E127: 0
E128: 0
E129: 0
E130: 0
E131: 0
E132: 0
E133: 0
E134: 0
E135: 0
E136: 0
E137: 0
E138: 0
E139: 0
E140: 0
E141: 0
E142: 0
E143: 0
E144: 0
E145: 0
E146: 0
E147: 0
E148: 0
E149: 0
E150: 0
E151: 0
E152: 0
E153: 0
E154: 0
E155: 0
E156: 0
E157: 0
E158: =B158-D158 -> 0
E159: 0
E160: 0
E161: 0
E162: 0
E163: 0
E164: 0
E165: 0
E166: 0
E167: 0
E168: 0
E169: 0
E170: 0
E171: 0
E172: 0
E173: 0
E174: 0
E175: 0
E176: 0
E177: 0
E178: 0
E179: 0
E180: 0
E181: 0
E182: 0
E183: 0
E184: 0
E185: 0
E186: 0
E187: 0
E188: 0
E189: 0
E190: 0
E191: 0
E192: 0
E193: 0
E194: 0
E195: 0
E196: 0
E197: 0
E198: 0
E199: 0
E200: 0
E201: 0
E202: 0
E203: 0
E204: 0
E205: 0
E206: 0
E207: 0
E208: 0
E209: 0
E210: 0
... 145 more rows

Sheet anexo Cuentas por Pagar L.P. (hidden)
A2: =+Principal!C5 -> Instituto Nacional de Innovación y Transferencia en Tecnología Agropecuaria (INTA)
A3: Auxiliar de Cuentas por Pagar largo Plazo (LP.)
A4: en miles de colones.
A5: =Principal!C6&" de "&Principal!C7 -> 31 de diciembre de 2016
A7: Detalle | B7: Monto
A9: Empleados.
A10: Sector Privado
A11: Sector Publico. (*1) | B11: =SUM(B29:B350) -> 0
A12: Total. (*2) | B12: =IFERROR(SUM(B9:B11),0) -> 0
A14: (*1) dicho auxiliar debe cerrar con el detalle del auxiliar de Bancos.
A15: (*2) Dicho auxiliar debe cerrar con las Cuentas por Pagar LP. en el Estado de Situación Financiera.
A18: Diferencia en Sector Público | B18: =IFERROR(B11-B351,0) -> 0
A19: Diferencia con Estado de Situación Financiera | B19: =IFERROR(B12-'Balance General'!C75,0) -> 0
A23: =+Principal!C5 -> Instituto Nacional de Innovación y Transferencia en Tecnología Agropecuaria (INTA)
A24: Detalle Auxiliar de Cuentas por Pagar largo Plazo (LP.)
A25: en miles de colones.
A26: =Principal!C6&" de "&Principal!C7 -> 31 de diciembre de 2016
A28: Nombre de la Institución del Sector Público | B28: Monto | C28: Conciliado con dicha Institución | D28: Monto que les reportó la Institución | E28: Diferencia | F28: Por que la Diferencia
E29: =B29-D29 -> 0
E30: =B30-D30 -> 0
E31: 0
E32: 0
E33: 0
E34: 0
E35: 0
E36: 0
E37: 0
E38: 0
E39: 0
E40: 0
E41: 0
E42: 0
E43: 0
E44: 0
E45: 0
E46: 0
E47: 0
E48: 0
E49: 0
E50: 0
E51: 0
E52: 0
E53: 0
E54: 0
E55: 0
E56: 0
E57: 0
E58: 0
E59: 0
E60: 0
E61: 0
E62: 0
E63: 0
E64: 0
E65: 0
E66: 0
E67: 0
E68: 0
E69: 0
E70: 0
E71: 0
E72: 0
E73: 0
E74: 0
E75: 0
E76: 0
E77: 0
E78: 0
E79: 0
E80: 0
E81: 0
E82: 0
E83: 0
E84: 0
E85: 0
E86: 0
E87: 0
E88: 0
E89: 0
E90: 0
E91: 0
E92: 0
E93: 0
E94: =B94-D94 -> 0
E95: 0
E96: 0
E97: 0
E98: 0
E99: 0
E100: 0
E101: 0
E102: 0
E103: 0
E104: 0
E105: 0
E106: 0
E107: 0
E108: 0
E109: 0
E110: 0
E111: 0
E112: 0
E113: 0
E114: 0
E115: 0
E116: 0
E117: 0
E118: 0
E119: 0
E120: 0
E121: 0
E122: 0
E123: 0
E124: 0
E125: 0
E126: 0
E127: 0
E128: 0
E129: 0
E130: 0
E131: 0
E132: 0
E133: 0
E134: 0
E135: 0
E136: 0
E137: 0
E138: 0
E139: 0
E140: 0
E141: 0
E142: 0
E143: 0
E144: 0
E145: 0
E146: 0
E147: 0
E148: 0
E149: 0
E150: 0
E151: 0
E152: 0
E153: 0
E154: 0
E155: 0
E156: 0
E157: 0
E158: =B158-D158 -> 0
E159: 0
E160: 0
E161: 0
E162: 0
E163: 0
E164: 0
E165: 0
E166: 0
E167: 0
E168: 0
E169: 0
E170: 0
E171: 0
E172: 0
E173: 0
E174: 0
E175: 0
E176: 0
E177: 0
E178: 0
E179: 0
E180: 0
E181: 0
E182: 0
E183: 0
E184: 0
E185: 0
E186: 0
E187: 0
E188: 0
E189: 0
E190: 0
E191: 0
E192: 0
E193: 0
E194: 0
E195: 0
E196: 0
E197: 0
E198: 0
E199: 0
E200: 0
E201: 0
E202: 0
E203: 0
E204: 0
E205: 0
E206: 0
E207: 0
E208: 0
E209: 0
E210: 0
... 145 more rows

Sheet anexo Endeud L.P No Corriente (hidden)
A2: =+Principal!C5 -> Instituto Nacional de Innovación y Transferencia en Tecnología Agropecuaria (INTA)
A3: Auxiliar de Endeudamiento LP. no corriente
A4: en miles de colones.
A5: =Principal!C6&" de "&Principal!C7 -> 31 de diciembre de 2016
A7: Detalle | B7: Monto
A9: Empleados.
A10: Sector Privado
A11: Sector Publico. (*1) | B11: =SUM(B29:B350) -> 0
A12: Total. (*2) | B12: =IFERROR(SUM(B9:B11),0) -> 0
A14: (*1) dicho auxiliar debe cerrar con el detalle del auxiliar de Bancos.
A15: (*2) Dicho auxiliar debe cerrar con el Endeudamiento LP. en el Estado de Situación Financiera.
A18: Diferencia en Sector Público | B18: =IFERROR(B11-B351,0) -> 0
A19: Diferencia con Estado de Situación Financiera | B19: =IFERROR(B12-'Balance General'!C76,0) -> 0
A23: =+Principal!C5 -> Instituto Nacional de Innovación y Transferencia en Tecnología Agropecuaria (INTA)
A24: Detalle Auxiliar de Endeudamiento LP. no corriente
A25: en miles de colones.
A26: =Principal!C6&" de "&Principal!C7 -> 31 de diciembre de 2016
A28: Nombre de la Institución del Sector Público | B28: Monto | C28: Conciliado con dicha Institución | D28: Monto que les reportó la Institución | E28: Diferencia | F28: Por que la Diferencia
E29: =B29-D29 -> 0
E30: =B30-D30 -> 0
E31: 0
E32: 0
E33: 0
E34: 0
E35: 0
E36: 0
E37: 0
E38: 0
E39: 0
E40: 0
E41: 0
E42: 0
E43: 0
E44: 0
E45: 0
E46: 0
E47: 0
E48: 0
E49: 0
E50: 0
E51: 0
E52: 0
E53: 0
E54: 0
E55: 0
E56: 0
E57: 0
E58: 0
E59: 0
E60: 0
E61: 0
E62: 0
E63: 0
E64: 0
E65: 0
E66: 0
E67: 0
E68: 0
E69: 0
E70: 0
E71: 0
E72: 0
E73: 0
E74: 0
E75: 0
E76: 0
E77: 0
E78: 0
E79: 0
E80: 0
E81: 0
E82: 0
E83: 0
E84: 0
E85: 0
E86: 0
E87: 0
E88: 0
E89: 0
E90: 0
E91: 0
E92: 0
E93: 0
E94: =B94-D94 -> 0
E95: 0
E96: 0
E97: 0
E98: 0
E99: 0
E100: 0
E101: 0
E102: 0
E103: 0
E104: 0
E105: 0
E106: 0
E107: 0
E108: 0
E109: 0
E110: 0
E111: 0
E112: 0
E113: 0
E114: 0
E115: 0
E116: 0
E117: 0
E118: 0
E119: 0
E120: 0
E121: 0
E122: 0
E123: 0
E124: 0
E125: 0
E126: 0
E127: 0
E128: 0
E129: 0
E130: 0
E131: 0
E132: 0
E133: 0
E134: 0
E135: 0
E136: 0
E137: 0
E138: 0
E139: 0
E140: 0
E141: 0
E142: 0
E143: 0
E144: 0
E145: 0
E146: 0
E147: 0
E148: 0
E149: 0
E150: 0
E151: 0
E152: 0
E153: 0
E154: 0
E155: 0
E156: 0
E157: 0
E158: =B158-D158 -> 0
E159: 0
E160: 0
E161: 0
E162: 0
E163: 0
E164: 0
E165: 0
E166: 0
E167: 0
E168: 0
E169: 0
E170: 0
E171: 0
E172: 0
E173: 0
E174: 0
E175: 0
E176: 0
E177: 0
E178: 0
E179: 0
E180: 0
E181: 0
E182: 0
E183: 0
E184: 0
E185: 0
E186: 0
E187: 0
E188: 0
E189: 0
E190: 0
E191: 0
E192: 0
E193: 0
E194: 0
E195: 0
E196: 0
E197: 0
E198: 0
E199: 0
E200: 0
E201: 0
E202: 0
E203: 0
E204: 0
E205: 0
E206: 0
E207: 0
E208: 0
E209: 0
E210: 0
... 145 more rows

Sheet anexo transf recibidas (hidden)
A2: =+Principal!C5 -> Instituto Nacional de Innovación y Transferencia en Tecnología Agropecuaria (INTA)
A3: Auxiliar de Transferencias Corrientes y Capital Recibidas (Ingreso)
A4: en miles de colones.
A5: =Principal!C6&" de "&Principal!C7 -> 31 de diciembre de 2016
A7: Detalle | B7: Monto
A9: Empleados.
A10: Sector Privado | B10: 22302
A11: Sector Publico. (*1) | B11: =SUM(B29:B350) -> 1110456.19
A12: Total. (*2) | B12: =IFERROR(SUM(B9:B11),0) -> 1132758.19
A14: (*1) dicho auxiliar debe cerrar con el detalle del auxiliar de Bancos.
A15: (*2) Dicho auxiliar debe cerrar con las Transferencias Recibidas (Ingreso) en el Estado del Rendimiento Financiero.
A18: Diferencia en Sector Público | B18: =IFERROR(B11-B351,0) -> 0
A19: Diferencia con Estado del Rendimiento Financiero | B19: =IFERROR(B12-'Estado de Resultados'!C10,0) -> 0
A23: =+Principal!C5 -> Instituto Nacional de Innovación y Transferencia en Tecnología Agropecuaria (INTA)
A24: Detalle Auxiliar de Transferencias Corrientes y Capital Recibidas (Ingreso)
A25: en miles de colones.
A26: =Principal!C6&" de "&Principal!C7 -> 31 de diciembre de 2016
A28: Nombre de la Institución del Sector Público | B28: Monto | C28: Conciliado con dicha Institución | D28: Monto que les reportó la Institución | E28: Diferencia | F28: Por que la Diferencia
A29: Instituto Costarricense de Pesca y Acuicultura (INCOPESCA) | B29: 5503.89 | C29: SI | D29: 5503.89 | E29: =B29-D29 -> 0
A30: Servicio Fitosanitario del Estado | B30: 45571.16 | C30: SI | D30: 45571.16 | E30: =B30-D30 -> 0
A31: Ministerio de Hacienda | B31: 839766.03 | C31: SI | D31: 839766.03 | E31: 0
A32: Servicio Nacional de Aguas Subterráneas, Riego y Avenamiento (SENARA) | B32: 219615.11 | C32: SI | D32: 219615.11 | E32: 0
E33: 0
E34: 0
E35: 0
E36: 0
E37: 0
E38: 0
E39: 0
E40: 0
E41: 0
E42: 0
E43: 0
E44: 0
E45: 0
E46: 0
E47: 0
E48: 0
E49: 0
E50: 0
E51: 0
E52: 0
E53: 0
E54: 0
E55: 0
E56: 0
E57: 0
E58: 0
E59: 0
E60: 0
E61: 0
E62: 0
E63: 0
E64: 0
E65: 0
E66: 0
E67: 0
E68: 0
E69: 0
E70: 0
E71: 0
E72: 0
E73: 0
E74: 0
E75: 0
E76: 0
E77: 0
E78: 0
E79: 0
E80: 0
E81: 0
E82: 0
E83: 0
E84: 0
E85: 0
E86: 0
E87: 0
E88: 0
E89: 0
E90: 0
E91: 0
E92: 0
E93: 0
E94: =B94-D94 -> 0
E95: 0
E96: 0
E97: 0
E98: 0
E99: 0
E100: 0
E101: 0
E102: 0
E103: 0
E104: 0
E105: 0
E106: 0
E107: 0
E108: 0
E109: 0
E110: 0
E111: 0
E112: 0
E113: 0
E114: 0
E115: 0
E116: 0
E117: 0
E118: 0
E119: 0
E120: 0
E121: 0
E122: 0
E123: 0
E124: 0
E125: 0
E126: 0
E127: 0
E128: 0
E129: 0
E130: 0
E131: 0
E132: 0
E133: 0
E134: 0
E135: 0
E136: 0
E137: 0
E138: 0
E139: 0
E140: 0
E141: 0
E142: 0
E143: 0
E144: 0
E145: 0
E146: 0
E147: 0
E148: 0
E149: 0
E150: 0
E151: 0
E152: 0
E153: 0
E154: 0
E155: 0
E156: 0
E157: 0
E158: =B158-D158 -> 0
E159: 0
E160: 0
E161: 0
E162: 0
E163: 0
E164: 0
E165: 0
E166: 0
E167: 0
E168: 0
E169: 0
E170: 0
E171: 0
E172: 0
E173: 0
E174: 0
E175: 0
E176: 0
E177: 0
E178: 0
E179: 0
E180: 0
E181: 0
E182: 0
E183: 0
E184: 0
E185: 0
E186: 0
E187: 0
E188: 0
E189: 0
E190: 0
E191: 0
E192: 0
E193: 0
E194: 0
E195: 0
E196: 0
E197: 0
E198: 0
E199: 0
E200: 0
E201: 0
E202: 0
E203: 0
E204: 0
E205: 0
E206: 0
E207: 0
E208: 0
E209: 0
E210: 0
... 145 more rows

Sheet Ingresos Tributarios (hidden)
A2: =+Principal!C5 -> Instituto Nacional de Innovación y Transferencia en Tecnología Agropecuaria (INTA)
A3: Auxiliar de Ingresos Tributarios
A4: en miles de colones.
A5: =Principal!C6&" de "&Principal!C7 -> 31 de diciembre de 2016
A7: Detalle | B7: Monto
A9: Empleados.
A10: Sector Privado | B10: 0
A11: Sector Publico. (*1) | B11: =SUM(B29:B349) -> 0
A12: Total. (*2) | B12: =IFERROR(SUM(B9:B11),0) -> 0
A14: (*1) dicho auxiliar debe cerrar con el detalle del auxiliar de Bancos.
A15: (*2) Dicho auxiliar debe cerrar con los Ingresos Tributarios del Estado del Rendimiento Financiero.
A18: Diferencia en Sector Público | B18: =IFERROR(B11-B351,0) -> 0
A19: Diferencia con Estado del Rendimiento Financiero | B19: =IFERROR(B12-'Estado de Resultados'!C7,0) -> 0
A23: =+Principal!C5 -> Instituto Nacional de Innovación y Transferencia en Tecnología Agropecuaria (INTA)
A24: Detalle Auxiliar de Ingresos Tributarios
A25: en miles de colones.
A26: =Principal!C6&" de "&Principal!C7 -> 31 de diciembre de 2016
A28: Nombre de la Institución del Sector Público | B28: Monto | C28: Conciliado con dicha Institución | D28: Monto que les reportó la Institución | E28: Diferencia | F28: Por que la Diferencia
E29: =B29-D29 -> 0
E30: =B30-D30 -> 0
E31: 0
E32: 0
E33: 0
E34: 0
E35: 0
E36: 0
E37: 0
E38: 0
E39: 0
E40: 0
E41: 0
E42: 0
E43: 0
E44: 0
E45: 0
E46: 0
E47: 0
E48: 0
E49: 0
E50: 0
E51: 0
E52: 0
E53: 0
E54: 0
E55: 0
E56: 0
E57: 0
E58: 0
E59: 0
E60: 0
E61: 0
E62: 0
E63: 0
E64: 0
E65: 0
E66: 0
E67: 0
E68: 0
E69: 0
E70: 0
E71: 0
E72: 0
E73: 0
E74: 0
E75: 0
E76: 0
E77: 0
E78: 0
E79: 0
E80: 0
E81: 0
E82: 0
E83: 0
E84: 0
E85: 0
E86: 0
E87: 0
E88: 0
E89: 0
E90: 0
E91: 0
E92: 0
E93: 0
E94: =B94-D94 -> 0
E95: 0
E96: 0
E97: 0
E98: 0
E99: 0
E100: 0
E101: 0
E102: 0
E103: 0
E104: 0
E105: 0
E106: 0
E107: 0
E108: 0
E109: 0
E110: 0
E111: 0
E112: 0
E113: 0
E114: 0
E115: 0
E116: 0
E117: 0
E118: 0
E119: 0
E120: 0
E121: 0
E122: 0
E123: 0
E124: 0
E125: 0
E126: 0
E127: 0
E128: 0
E129: 0
E130: 0
E131: 0
E132: 0
E133: 0
E134: 0
E135: 0
E136: 0
E137: 0
E138: 0
E139: 0
E140: 0
E141: 0
E142: 0
E143: 0
E144: 0
E145: 0
E146: 0
E147: 0
E148: 0
E149: 0
E150: 0
E151: 0
E152: 0
E153: 0
E154: 0
E155: 0
E156: 0
E157: 0
E158: =B158-D158 -> 0
E159: 0
E160: 0
E161: 0
E162: 0
E163: 0
E164: 0
E165: 0
E166: 0
E167: 0
E168: 0
E169: 0
E170: 0
E171: 0
E172: 0
E173: 0
E174: 0
E175: 0
E176: 0
E177: 0
E178: 0
E179: 0
E180: 0
E181: 0
E182: 0
E183: 0
E184: 0
E185: 0
E186: 0
E187: 0
E188: 0
E189: 0
E190: 0
E191: 0
E192: 0
E193: 0
E194: 0
E195: 0
E196: 0
E197: 0
E198: 0
E199: 0
E200: 0
E201: 0
E202: 0
E203: 0
E204: 0
E205: 0
E206: 0
E207: 0
E208: 0
E209: 0
E210: 0
... 145 more rows

Sheet Ingresos No Tributarios (hidden)
A2: =+Principal!C5 -> Instituto Nacional de Innovación y Transferencia en Tecnología Agropecuaria (INTA)
A3: Auxiliar de Ingresos No Tributarios
A4: en miles de colones.
A5: =Principal!C6&" de "&Principal!C7 -> 31 de diciembre de 2016
A7: Detalle | B7: Monto
A9: Empleados.
A10: Sector Privado | B10: 317679.76
A11: Sector Publico. (*1) | B11: =SUM(B29:B350) -> 0
A12: Total. (*2) | B12: =IFERROR(SUM(B9:B11),0) -> 317679.76
A14: (*1) dicho auxiliar debe cerrar con el detalle del auxiliar de Bancos.
A15: (*2) Dicho auxiliar debe cerrar con los Ingresos No Tributarios en el Estado del Rendimiento Financiero.
A18: Diferencia en Sector Público | B18: =IFERROR(B11-B351,0) -> 0
A19: Diferencia con Estado del Rendimiento Financiero | B19: =IFERROR(B12-'Estado de Resultados'!C9,0) -> 0
A23: =+Principal!C5 -> Instituto Nacional de Innovación y Transferencia en Tecnología Agropecuaria (INTA)
A24: Detalle Auxiliar de Ingresos No Tributarios
A25: en miles de colones.
A26: =Principal!C6&" de "&Principal!C7 -> 31 de diciembre de 2016
A28: Nombre de la Institución del Sector Público | B28: Monto | C28: Conciliado con dicha Institución | D28: Monto que les reportó la Institución | E28: Diferencia | F28: Por que la Diferencia
E29: =B29-D29 -> 0
E30: =B30-D30 -> 0
E31: 0
E32: 0
E33: 0
E34: 0
E35: 0
E36: 0
E37: 0
E38: 0
E39: 0
E40: 0
E41: 0
E42: 0
E43: 0
E44: 0
E45: 0
E46: 0
E47: 0
E48: 0
E49: 0
E50: 0
E51: 0
E52: 0
E53: 0
E54: 0
E55: 0
E56: 0
E57: 0
E58: 0
E59: 0
E60: 0
E61: 0
E62: 0
E63: 0
E64: 0
E65: 0
E66: 0
E67: 0
E68: 0
E69: 0
E70: 0
E71: 0
E72: 0
E73: 0
E74: 0
E75: 0
E76: 0
E77: 0
E78: 0
E79: 0
E80: 0
E81: 0
E82: 0
E83: 0
E84: 0
E85: 0
E86: 0
E87: 0
E88: 0
E89: 0
E90: 0
E91: 0
E92: 0
E93: 0
E94: =B94-D94 -> 0
E95: 0
E96: 0
E97: 0
E98: 0
E99: 0
E100: 0
E101: 0
E102: 0
E103: 0
E104: 0
E105: 0
E106: 0
E107: 0
E108: 0
E109: 0
E110: 0
E111: 0
E112: 0
E113: 0
E114: 0
E115: 0
E116: 0
E117: 0
E118: 0
E119: 0
E120: 0
E121: 0
E122: 0
E123: 0
E124: 0
E125: 0
E126: 0
E127: 0
E128: 0
E129: 0
E130: 0
E131: 0
E132: 0
E133: 0
E134: 0
E135: 0
E136: 0
E137: 0
E138: 0
E139: 0
E140: 0
E141: 0
E142: 0
E143: 0
E144: 0
E145: 0
E146: 0
E147: 0
E148: 0
E149: 0
E150: 0
E151: 0
E152: 0
E153: 0
E154: 0
E155: 0
E156: 0
E157: 0
E158: =B158-D158 -> 0
E159: 0
E160: 0
E161: 0
E162: 0
E163: 0
E164: 0
E165: 0
E166: 0
E167: 0
E168: 0
E169: 0
E170: 0
E171: 0
E172: 0
E173: 0
E174: 0
E175: 0
E176: 0
E177: 0
E178: 0
E179: 0
E180: 0
E181: 0
E182: 0
E183: 0
E184: 0
E185: 0
E186: 0
E187: 0
E188: 0
E189: 0
E190: 0
E191: 0
E192: 0
E193: 0
E194: 0
E195: 0
E196: 0
E197: 0
E198: 0
E199: 0
E200: 0
E201: 0
E202: 0
E203: 0
E204: 0
E205: 0
E206: 0
E207: 0
E208: 0
E209: 0
E210: 0
... 145 more rows

Sheet anexo transf entregadas (hidden)
A2: =+Principal!C5 -> Instituto Nacional de Innovación y Transferencia en Tecnología Agropecuaria (INTA)
A3: Auxiliar de Transferencias Corrientes y Capital Entregadas (Gasto)
A4: en miles de colones.
A5: =Principal!C6&" de "&Principal!C7 -> 31 de diciembre de 2016
A7: Detalle | B7: Monto
A9: Empleados.
A10: Sector Privado | B10: 2725.72
A11: Sector Publico. (*1) | B11: =SUM(B29:B350) -> 34093.63
A12: Total. (*2) | B12: =IFERROR(SUM(B9:B11),0) -> 36819.35
A14: (*1) dicho auxiliar debe cerrar con el detalle del auxiliar de Bancos.
A15: (*2) Dicho auxiliar debe cerrar con las Transferencias Entregadas (gastos) en el Estado del Rendimiento Financiero.
A18: Diferencia en Sector Público | B18: =IFERROR(B11-B351,0) -> 0
A19: Diferencia con Estado del Rendimiento Financiero | B19: =IFERROR(B12-'Estado de Resultados'!C18,0) -> 0
A23: =+Principal!C5 -> Instituto Nacional de Innovación y Transferencia en Tecnología Agropecuaria (INTA)
A24: Detalle Auxiliar de Transferencias Corrientes y Capital Entregadas (Gasto)
A25: en miles de colones.
A26: =Principal!C6&" de "&Principal!C7 -> 31 de diciembre de 2016
A28: Nombre de la Institución del Sector Público | B28: Monto | C28: Conciliado con dicha Institución | D28: Monto que les reportó la Institución | E28: Diferencia | F28: Por que la Diferencia
A29: Comisión Nacional de Prevención de Riesgos y Atención de Emergencias (CNE) | B29: 34093.63 | C29: SI | D29: 34093.63 | E29: =B29-D29 -> 0
E30: =B30-D30 -> 0
E31: 0
E32: 0
E33: 0
E34: 0
E35: 0
E36: 0
E37: 0
E38: 0
E39: 0
E40: 0
E41: 0
E42: 0
E43: 0
E44: 0
E45: 0
E46: 0
E47: 0
E48: 0
E49: 0
E50: 0
E51: 0
E52: 0
E53: 0
E54: 0
E55: 0
E56: 0
E57: 0
E58: 0
E59: 0
E60: 0
E61: 0
E62: 0
E63: 0
E64: 0
E65: 0
E66: 0
E67: 0
E68: 0
E69: 0
E70: 0
E71: 0
E72: 0
E73: 0
E74: 0
E75: 0
E76: 0
E77: 0
E78: 0
E79: 0
E80: 0
E81: 0
E82: 0
E83: 0
E84: 0
E85: 0
E86: 0
E87: 0
E88: 0
E89: 0
E90: 0
E91: 0
E92: 0
E93: 0
E94: =B94-D94 -> 0
E95: 0
E96: 0
E97: 0
E98: 0
E99: 0
E100: 0
E101: 0
E102: 0
E103: 0
E104: 0
E105: 0
E106: 0
E107: 0
E108: 0
E109: 0
E110: 0
E111: 0
E112: 0
E113: 0
E114: 0
E115: 0
E116: 0
E117: 0
E118: 0
E119: 0
E120: 0
E121: 0
E122: 0
E123: 0
E124: 0
E125: 0
E126: 0
E127: 0
E128: 0
E129: 0
E130: 0
E131: 0
E132: 0
E133: 0
E134: 0
E135: 0
E136: 0
E137: 0
E138: 0
E139: 0
E140: 0
E141: 0
E142: 0
E143: 0
E144: 0
E145: 0
E146: 0
E147: 0
E148: 0
E149: 0
E150: 0
E151: 0
E152: 0
E153: 0
E154: 0
E155: 0
E156: 0
E157: 0
E158: =B158-D158 -> 0
E159: 0
E160: 0
E161: 0
E162: 0
E163: 0
E164: 0
E165: 0
E166: 0
E167: 0
E168: 0
E169: 0
E170: 0
E171: 0
E172: 0
E173: 0
E174: 0
E175: 0
E176: 0
E177: 0
E178: 0
E179: 0
E180: 0
E181: 0
E182: 0
E183: 0
E184: 0
E185: 0
E186: 0
E187: 0
E188: 0
E189: 0
E190: 0
E191: 0
E192: 0
E193: 0
E194: 0
E195: 0
E196: 0
E197: 0
E198: 0
E199: 0
E200: 0
E201: 0
E202: 0
E203: 0
E204: 0
E205: 0
E206: 0
E207: 0
E208: 0
E209: 0
E210: 0
... 145 more rows

Sheet Activos no Financieros (hidden)
A1: =+Principal!C5 -> Instituto Nacional de Innovación y Transferencia en Tecnología Agropecuaria (INTA)
A2: Bienes Duraderos
A3: Maquinaria, Equipo y Mobiliario
A4: (en miles de colones)
A7: Concepto | C7: Movimiento durante el periodo Económico | M7: Saldo al
B8: Saldo al (*1) | C8: Aumentos | H8: Disminuciones | M8: Periodo actual
B9: Periodo Anterior | C9: Compras | D9: Donaciones | E9: Reclasificaciones periodos anteriores | F9: Otros (*) | G9: Total Aumentos | H9: Traslado a Infraestructura Pública | I9: Retiro por Venta | J9: Reclasificaciones periodos anteriores | K9: Otros (*) | L9: Total Disminuciones
A10: Maquinaria y Equipo para la producción | B10: 502668.3 | C10: 49945.22 | G10: =SUM(C10:F10) -> 49945.22 | J10: 0 | L10: =+SUM(H10:K10) -> 0 | M10: =+B10+G10-L10 -> 552613.52
A11: Equipo de transporte | B11: 665154.37 | C11: 151264.65 | G11: =SUM(C11:F11) -> 151264.65 | L11: =+SUM(H11:K11) -> 0 | M11: 816419.02
A12: Equipo de Comunicación | B12: 30546.57 | G12: 0 | J12: 95 | L12: =+SUM(H12:K12) -> 95 | M12: 30451.57
A13: Equipo y Mobiliario de Oficina | B13: 152345.47 | C13: 2439.83 | G13: 2439.83 | J13: 0 | L13: 0 | M13: 154785.3
A14: Equipo y Programas de Cómputo | B14: 179010.28 | C14: 38972.51 | G14: 38972.51 | L14: 0 | M14: 217982.79
A15: Equipo Sanitario, de laboratorio e Investigación | B15: 478299.16 | C15: 9136.85 | G15: 9136.85 | L15: 0 | M15: 487436.01
A16: Equipo y Mobiliario Educacional, Deportivo y Recreativo | B16: 104.75 | G16: 0 | L16: 0 | M16: 104.75
A17: Maquinaria y Equipo Diverso | B17: 92357.74 | C17: 24244.98 | G17: 24244.98 | L17: 0 | M17: 116602.72
G18: 0 | L18: 0 | M18: 0
A19: TOTALES | B19: =SUM(B10:B18) -> 2100486.64 | C19: =SUM(C10:C18) -> 276004.04 | D19: 0 | E19: 0 | F19: 0 | G19: 276004.04 | H19: 0 | I19: 0 | J19: 95 | K19: 0 | L19: 95 | M19: 2376395.68
A20: Diferencia con Estado de Situación Financiera | B20: =IFERROR(B19-'Balance General'!D34,0) -> 0 | L20: Diferencia con Estado de Situación Financiera | M20: =IFERROR(M19-'Balance General'!C34,0) -> 0
A21: (*1) debe cerrar con Bienes Duraderos en la sección de Maquinaria, Equipo y Mobiliario del Estado de Situación Financiera.
A24: =+Principal!C5 -> Instituto Nacional de Innovación y Transferencia en Tecnología Agropecuaria (INTA)
A25: Bienes Duraderos
A26: Construcciones, Adiciones y Mejoras
A27: (en miles de colones)
A31: Concepto | C31: Movimiento durante el periodo Económico | J31: Saldo al
B32: Saldo al (*2) | C32: Aumentos | G32: Disminuciones | J32: =+M8 -> Periodo actual
B33: =+B9 -> Periodo Anterior | C33: Traslado de construcciones en curso | D33: Adiciones y Mejoras | E33: Otros | F33: Total Aumentos | G33: Costo de Obra Destruida | H33: Otros | I33: Total Disminuciones
A34: Edificios | B34: 0 | C34: 0 | D34: 0 | F34: =SUM(C34:E34) -> 0 | H34: 0 | I34: =SUM(G34:H34) -> 0 | J34: =+B34+F34-I34 -> 0
A35: Vías de comunicación terrestre. | B35: 0 | F35: =SUM(C35:E35) -> 0 | I35: =SUM(G35:H35) -> 0 | J35: 0
A36: Vías Férreas | B36: 0 | F36: 0 | I36: 0 | J36: 0
A37: Obras Marítimas y Fluviales | B37: 0 | F37: 0 | I37: 0 | J37: 0
A38: Aeropuertos | B38: 0 | F38: 0 | I38: 0 | J38: 0
A39: Obras Urbanísticas | B39: 0 | F39: 0 | I39: 0 | J39: 0
A40: Instalaciones | B40: 0 | F40: 0 | I40: 0 | J40: 0
A41: Otras Construcciones, Adiciones y Mejoras | B41: 574133.05 | F41: 0 | G41: 0 | I41: 0 | J41: 574133.05
F42: 0 | I42: 0 | J42: 0
A43: TOTALES | B43: =SUM(B34:B41) -> 574133.05 | C43: =SUM(C34:C41) -> 0 | D43: 0 | E43: 0 | F43: 0 | G43: 0 | H43: 0 | I43: 0 | J43: =SUM(J34:J41) -> 574133.05
A44: Diferencia con Estado de Situación Financiera | B44: =IFERROR(B43-'Balance General'!D36,0) -> 0 | I44: Diferencia con Estado de Situación Financiera | J44: =IFERROR(J43-'Balance General'!C36,0) -> 0
A45: * Otros / Debe ser explicado
A46: (*2) debe cerrar con Bienes Duraderos en la sección de Construcciones, Adiciones y Mejoras del Estado de Situación Financiera.
A50: =+Principal!C5 -> Instituto Nacional de Innovación y Transferencia en Tecnología Agropecuaria (INTA)
A51: Bienes Duraderos
A52: Bienes Preexistentes
A53: (en miles de colones)
A55: Concepto | B55: Saldo al (*3) | C55: Movimientos durante el Periodo Económico | K55: Saldo al
B56: =+B33 -> Periodo Anterior | C56: Aumentos | H56: Disminuciones | K56: =+J32 -> Periodo actual
C57: Compra | D57: Valuaciones | E57: Donaciones | F57: Otros (*) | G57: Total Aumentos | H57: Venta, Retiro, Cambio, Donación | I57: Otros (*) | J57: Total Disminuciones
A59: Terrenos | B59: 0 | C59: 0 | G59: =+SUM(C59:F59) -> 0 | J59: =+SUM(H59:I59) -> 0 | K59: =+B59+G59-J59 -> 0
A60: Edificios | B60: 41177.06 | C60: 0 | G60: =+SUM(C60:F60) -> 0 | J60: =+SUM(H60:I60) -> 0 | K60: =+B60+G60-J60 -> 41177.06
A61: Otras Obras Preexistentes | B61: 0 | G61: =+SUM(C61:F61) -> 0 | J61: =+SUM(H61:I61) -> 0 | K61: =+B61+G61-J61 -> 0
G62: =+SUM(C62:F62) -> 0 | J62: =+SUM(H62:I62) -> 0
A63: Totales | B63: =SUM(B59:B62) -> 41177.06 | C63: =+SUM(C59:C62) -> 0 | D63: 0 | E63: 0 | F63: 0 | G63: 0 | H63: 0 | I63: 0 | J63: 0 | K63: 41177.06
A64: Diferencia con Estado de Situación Financiera | B64: =B63-('Balance General'!D39+'Balance General'!D40+'Balance General'!D42) -> 0 | J64: Diferencia con Estado de Situación Financiera | K64: =K63-('Balance General'!C39+'Balance General'!C40+'Balance General'!C42) -> 0
A65: * Otros / Debe ser explicado
A66: (*3) debe cerrar con Bienes Preexistentes en la secciones de Terrenos, Edificios Preexistentes y Otras Obras del Estado de Situación Financiera.
A70: =+Principal!C5 -> Instituto Nacional de Innovación y Transferencia en Tecnología Agropecuaria (INTA)
A71: Bienes Duraderos
A72: Bienes Duraderos Diversos
A73: (en miles de colones)
A76: Concepto | C76: Movimientos durante el Periodo Económico | K76: Saldo al
B77: Saldo al (*4) | C77: Aumentos | H77: Disminuciones | K77: =+K56 -> Periodo actual
B78: =+B56 -> Periodo Anterior | C78: Compra | D78: Valuaciones | E78: Donaciones | F78: Otros | G78: Total Aumentos | H78: Liquidaciones de Cargos Diferidos | I78: Otros | J78: Total Disminuciones
A79: Semovientes | B79: 246525.23 | E79: 0 | G79: =+SUM(C79:F79) -> 0 | I79: 36957.15 | J79: =+SUM(H79:I79) -> 36957.15 | K79: =+B79+G79-J79 -> 209568.08
A80: Piezas y Obras de Colección | B80: 0 | G80: =+SUM(C80:F80) -> 0 | J80: =+SUM(H80:I80) -> 0 | K80: =+B80+G80-J80 -> 0
A81: Otros Bienes Duraderos | B81: 1998647.78 | G81: =+SUM(C81:F81) -> 0 | I81: 433634.93 | J81: =+SUM(H81:I81) -> 433634.93 | K81: =+B81+G81-J81 -> 1565012.85
A82: Bienes de Uso Público | B82: 0 | G82: =+SUM(C82:F82) -> 0 | J82: =+SUM(H82:I82) -> 0 | K82: =+B82+G82-J82 -> 0
A84: Totales | B84: =+SUM(B79:B82) -> 2245173.01 | C84: =+SUM(C79:C82) -> 0 | D84: 0 | E84: 0 | F84: 0 | G84: 0 | H84: 0 | I84: 470592.08 | J84: 470592.08 | K84: =+SUM(K79:K82) -> 1774580.93
A85: Diferencia con Estado de Situación Financiera | B85: =B84-('Balance General'!D46+'Balance General'!D48+'Balance General'!D45+'Balance General'!D49) -> 0 | J85: Diferencia con Estado de Situación Financiera | K85: =K84-('Balance General'!C46+'Balance General'!C48+'Balance General'!C45+'Balance General'!C49) -> 0
A86: * Otros / Debe ser explicado
A87: (*4) debe cerrar con Bienes Duraderos Diversos en la secciones de Bienes Duraderos Diversos, Semovientes y Piezas y Obras de Colección del Estado de Situación Financiera.
A90: =+Principal!C5 -> Instituto Nacional de Innovación y Transferencia en Tecnología Agropecuaria (INTA)
A91: Bienes Duraderos
A92: Depreciación Bienes Duraderos
A93: (miles de colones)
A96: Concepto | B96: Saldo al (*5) | C96: Movimientos durante el Período Económico | I96: Saldo al
B97: =+B78 -> Periodo Anterior | C97: Disminuciones | F97: Aumentos | I97: =+K77 -> Periodo actual
C98: Rebajas por ventas | D98: Otros (*) | E98: Total Disminuciones | F98: Otros (*) | G98: Provisión del ejercicio | H98: Total Aumentos
A99: Depreciación
A100: Maquinaria y Equipo para la producción | B100: -154722.98 | E100: =+SUM(C100:D100) -> 0 | G100: -51703.03 | H100: =+SUM(F100:G100) -> -51703.03 | I100: =+B100+H100-E100 -> -206426.01
A101: Equipo de Transporte | B101: -387338.82 | E101: =+SUM(C101:D101) -> 0 | G101: -65178.81 | H101: =+SUM(F101:G101) -> -65178.81 | I101: =+B101+H101-E101 -> -452517.63
A102: Equipo de Comunicación | B102: -12862.39 | E102: 0 | G102: -2686.77 | H102: -2686.77 | I102: -15549.16
A103: Equipo y Mobiliario de Oficina | B103: -56203.38 | E103: 0 | G103: -14153.23 | H103: -14153.23 | I103: -70356.61
A104: Equipo y Programas de Cómputo | B104: -132293.48 | E104: 0 | G104: -16561.93 | H104: -16561.93 | I104: -148855.41
A105: Equipo Sanitario, de laboratorio e investigación | B105: -199453.86 | E105: 0 | G105: -45516.22 | H105: -45516.22 | I105: -244970.08
A106: Equipo y Mobiliario Educacional, Deportivo y Recreativo | B106: -53.83 | E106: 0 | G106: -6.44 | H106: -6.44 | I106: -60.27
A107: Maquinaria y Equipo Diverso | B107: -40139.77 | E107: 0 | G107: -7409.35 | H107: -7409.35 | I107: -47549.12
A108: Otras Construcciones, Adiciones y Mejoras | B108: -141884.77 | E108: 0 | G108: -28003.92 | H108: -28003.92 | I108: -169888.69
A110: Totales | B110: =SUM(B99:B109) -> -1124953.28 | C110: 0 | D110: 0 | E110: 0 | F110: 0 | G110: -231219.7 | H110: -231219.7 | I110: -1356172.98
A112: * Otros / Debe ser explicado
A114: (*5) debe cerrar con Depreciaciones Acumuladas en forma global al igual que la amortización y agotamiento del Estado de Situación Financiera.
A118: =+Principal!C5 -> Instituto Nacional de Innovación y Transferencia en Tecnología Agropecuaria (INTA)
A119: Bienes Duraderos
A120: Depreciación Bienes Preexistentes
A121: (miles de colones)
A124: Concepto | B124: Saldo al (*5) | C124: Movimientos durante el Período Económico | I124: Saldo al
B125: =+B97 -> Periodo Anterior | C125: Disminuciones | F125: Aumentos | I125: =+I97 -> Periodo actual
C126: Rebajas por ventas | D126: Otros (*) | E126: Total Disminuciones | F126: Otros (*) | G126: Provisión del ejercicio | H126: Total Aumentos
A127: Depreciación
A128: Edificios | B128: 0 | E128: =+SUM(C128:D128) -> 0 | H128: =+SUM(F128:G128) -> 0 | I128: =+B128+H128-E128 -> 0
A129: Vías de Comunicación Terrestres | B129: 0 | E129: 0 | H129: 0 | I129: 0
A130: Vías Férreas | B130: 0 | E130: 0 | H130: 0 | I130: 0
A131: Obras Marítimas y fluviales | B131: 0 | E131: 0 | H131: 0 | I131: 0
A132: Aeropuertos | B132: 0 | E132: 0 | H132: 0 | I132: 0
A133: Obras Urbanísticas | B133: 0 | E133: 0 | H133: 0 | I133: 0
A134: Instalaciones | B134: 0 | E134: 0 | H134: 0 | I134: 0
A135: Edificios | B135: -11120.91 | E135: 0 | G135: -2063.03 | H135: -2063.03 | I135: -13183.94
A136: Otras Obras Preexistentes | B136: 0 | E136: 0 | H136: 0 | I136: 0
E137: 0 | H137: 0 | I137: 0
A138: Agotamiento y/o Amortización | E138: 0 | H138: 0 | I138: 0
A139: Semovientes | B139: 0 | E139: 0 | H139: 0 | I139: 0
A140: Otros (*) | E140: 0 | H140: 0 | I140: 0
A142: Totales | B142: =SUM(B127:B141) -> -11120.91 | C142: 0 | D142: 0 | E142: 0 | F142: 0 | G142: -2063.03 | H142: -2063.03 | I142: -13183.94
A144: * Otros / Debe ser explicado
A146: (*5) debe cerrar con Depreciaciones Acumuladas en forma global al igual que la amortización y agotamiento del Estado de Situación Financiera.
A150: =+Principal!C5 -> Instituto Nacional de Innovación y Transferencia en Tecnología Agropecuaria (INTA)
A151: Bienes Duraderos
A152: ACTIVOS INTANGIBLES
A153: (en miles de colones)
A156: Concepto | C156: Movimientos durante el Periodo Económico | K156: Saldo al
B157: Saldo al (*4) | C157: Aumentos | H157: Disminuciones | K157: =+I97 -> Periodo actual
B158: =+B97 -> Periodo Anterior | C158: Compra | D158: Valuaciones | E158: Donaciones | F158: Otros | G158: Total Aumentos | H158: Liquidaciones de Cargos Diferidos | I158: Otros | J158: Total Disminuciones
A159: Patentes | B159: 0 | E159: 0 | G159: =+SUM(C159:F159) -> 0 | J159: =+SUM(H159:I159) -> 0 | K159: =+B159+G159-J159 -> 0
A160: Derechos | B160: 0 | G160: =+SUM(C160:F160) -> 0 | J160: =+SUM(H160:I160) -> 0 | K160: =+B160+G160-J160 -> 0
A161: Depósitos | B161: 0 | G161: =+SUM(C161:F161) -> 0 | J161: =+SUM(H161:I161) -> 0 | K161: =+B161+G161-J161 -> 0
A162: Licencias | B162: 18213.56 | G162: =+SUM(C162:F162) -> 0 | I162: 11178.49 | J162: =+SUM(H162:I162) -> 11178.49 | K162: =+B162+G162-J162 -> 7035.07
A163: Decomisos | B163: 0 | G163: =+SUM(C163:F163) -> 0 | J163: =+SUM(H163:I163) -> 0 | K163: =+B163+G163-J163 -> 0
A165: Totales | B165: =+SUM(B159:B163) -> 18213.56 | C165: =+SUM(C159:C163) -> 0 | D165: 0 | E165: 0 | F165: 0 | G165: 0 | H165: 0 | I165: 11178.49 | J165: 11178.49 | K165: =+SUM(K159:K163) -> 7035.07
A166: Diferencia con Estado de Situación Financiera | B166: =B165-('Balance General'!D51+'Balance General'!D52+'Balance General'!D53+'Balance General'!D54+'Balance General'!D55) -> 0 | J166: Diferencia con Estado de Situación Financiera | K166: =K165-('Balance General'!C51+'Balance General'!C52+'Balance General'!C53+'Balance General'!C54+'Balance General'!C55) -> 0

Sheet Instituciones (hidden)
A1: Ministerio de Hacienda | B1: =C1 -> Poder Ejecutivo | C1: Poder Ejecutivo | D1: Poder Ejecutivo
A2: Academia Nacional de Ciencias | B2: =C2 -> Poderes de la Republica | C2: Poderes de la Republica | D2: Asamblea Legislativa
A3: Agencia de Protección de Datos de los Habitantes (PRODHAB) | B3: =C8 -> Organos Desconcentrados | D3: Contraloría General de la República (CGR)
A4: Asamblea Legislativa | B4: =C73 -> Instituciones Descentralizadas No Empresariales | D4: Defensoría de los Habitantes de la República
A5: Autoridad Reguladora de Servicios Públicos (ARESEP) | B5: =C107 -> Municipalidades | D5: Poder Ejecutivo
A6: Banco Crédito Agrícola de Cartago (BCAC) | B6: =C196 -> Empresas Públicas No Financieras Nacionales | D6: Poder Judicial
A7: Banco de Costa Rica (BCR) | B7: =C209 -> Empresas Públicas No Financieras Municipales | D7: Tribunal Supremo de Elecciones (TSE)
A8: Banco Hipotecario de la Vivienda (BANHVI) | B8: =C212 -> Instituciones Públicas Financieras No Bancarias | C8: Organos Desconcentrados | D8: Agencia de Protección de Datos de los Habitantes (PRODHAB)
A9: Banco Internacional de Costa Rica S.A (BICSA) | B9: =C216 -> Otras Instituciones | D9: Casa de Cultura de Puntarenas
A10: Banco Nacional de Costa Rica (BNCR) | D10: Centro Costarricense de Producción Cinematográfica
A11: Banco Popular - Popular Valores, Puesto de Bolsa S.A. | D11: Centro Cultural e Histórico José Figueres Ferrer
A12: Banco Popular Operadora de Pensiones Complementarias S.A. | D12: Centro Nacional de la Música
A13: Banco Popular Sociedad Agencia de Seguros, S.A. | D13: Comisión de Ordenamiento y Manejo de la Cuenca Alta del Río Reventazón (CONCURE)
A14: Banco Popular Sociedad Fondos de Inversión S.A. | D14: Comisión Nacional de Conmemoraciones Históricas (CNCH)
A15: Banco Popular y de Desarrollo Comunal | D15: Comisión Nacional de Prevención de Riesgos y Atención de Emergencias (CNE)
A16: Banco Popular y de Desarrollo Comunal (BPDC) | D16: Comisión Nacional de Vacunación y Epidemiología
A17: BCAC Banco Credito Agricola de Cartago | D17: Comisión Nacional para la Gestión de la Biodiversidad (CONAGEBIO)
A18: BCR - Banco de Costa Rica | D18: Consejo de Salud Ocupacional (CSO)
A19: BCR - Operadora de Planes de Pensiónes Complemt S.A. | D19: Consejo de Seguridad Vial (COSEVI)
A20: BCR - Sociedad Administradora de Fondos de Inversión | D20: Consejo de Transporte Público (CTP)
A21: BCR - Valores, S.A. - Puesto de Bolsa | D21: Consejo Nacional de Clubes 4-S
A22: BCR- Corredora de Seguros, S.A | D22: Consejo Nacional de Concesiones (CNC)
A23: Benemérito Cuerpo de Bomberos de Costa Rica | D23: Consejo Nacional de la Persona Adulta Mayor (CONAPAM)
A24: BNCR - Banco Nacional de Costa Rica | D24: Consejo Nacional de la Política Pública de la Persona Joven (CPJ)
A25: BNCR - Banco Nacional Valores (BN VALORES) | D25: Consejo Nacional de Vialidad (CONAVI)
A26: BNCR - BN Vital Operadora de Pensiones Complementarias S.A. | D26: Consejo Superior de Educación (CSE)
A27: BNCR - Sociedad Administradora de Fondos de Inversión S.A. | D27: Consejo Técnico de Asistencia Médico Social (CTAMS)
A28: BNCR - Sociedad Corredora de Seguros, S.A. | D28: Consejo Técnico de Aviación Civil (CTAC)
A29: Caja Costarricense de Seguro Social (CCSS) | D29: Dirección de Geología y Minas
A30: Casa de Cultura de Puntarenas | D30: Dirección Ejecutora de Proyectos de Mideplan (DEP)
A31: Centro Costarricense de Producción Cinematográfica | D31: Dirección General del Servicio Civil
A32: Centro Costarricense de Producción Cinematográfica | D32: Dirección General del Servicio Civil (DGSC)
A33: Centro Cultural e Histórico José Figueres Ferrer | D33: Dirección Nacional de Centros de Educación y Nutrición y de Centros Infantiles de Atención Integral (Dirección de CEN-CINAI)
A34: Centro Cultural e Histórico José Figueres Ferrer | D34: Dirección Nacional de Notariado
A35: Centro Nacional de la Música | D35: Fondo de Desarrollo Social y Asignaciones Familiares (FODESAF)
A36: Centro Nacional de la Música | D36: Fondo de Preinversión de Mideplan
A37: Colegio San Luis Gonzaga de Cartago | D37: Fondo Especial del Servicio Nacional de Guardacostas
A38: Colegio Universitario de Cartago (CUC) | D38: Fondo Nacional de Becas (FONABE)
A39: Colegio Universitario de Limón (CUNLIMON) | D39: Fondo Nacional de Becas de Solidaridad Social
A40: Colegio Universitario de Limón (CUNLIMON) | D40: Fondo Nacional de Financiamiento Forestal (FONAFIFO)
A41: Comisión de Energía Atómica de Costa Rica | D41: Instituto Costarricense de Investigación y Enseñanza en Nutrición y Salud (INCIENSA)
A42: Comisión de Energía Atómica de Costa Rica (CEA) | D42: Instituto Costarricense sobre Drogas (ICD)
A43: Comisión de Ordenam y Man Cuenca Alta del Río Revent (COMCURE) | D43: Instituto de Desarrollo Profesional Uladislao Gámez Solano
A44: Comisión de Ordenamiento y Manejo de la Cuenca Alta del Río Reventazón (CONCURE) | D44: Instituto Meteorológico Nacional (IMN)
A45: Comisión Nacional de Asuntos Indígenas (CONAI) | D45: Instituto Nacional de Innovación y Transferencia en Tecnología Agropecuaria (INTA)
A46: Comisión Nacional de Asuntos Indígenas (CONAI) | D46: Instituto sobre Alcoholismo y Farmacodependencia (IAFA)
A47: Comisión Nacional de Conmemoraciones Históricas (CNCH) | D47: Junta Administrativa de la Dirección General de Migración y Extranjería (JADGME)
A48: Comisión Nacional de Préstamos para la Educación (CONAPE) | D48: Junta Administrativa de la Imprenta Nacional (JAIN)
A49: Comisión Nacional de Préstamos para la Educación (CONAPE). | D49: Junta Administrativa del Archivo Nacional (JAAN)
A50: Comisión Nacional de Prevención de Riesgos y Atención de Emergencias (CNE) | D50: Junta Administrativa del Registro Nacional
A51: Comisión Nacional de Vacunación y Epidemiología | D51: Junta Directiva Del Parque Recreativo Nacional Playas de Manuel Antonio
A52: Comisión Nacional de Vacunación y Epidemiología (CNVE) | D52: Laboratorio Costarricense de Metrología (LACOMET)
A53: Comisión Nacional para la Defensa del Idioma | D53: Museo de Arte Costarricense (MAC)
A54: Comisión Nacional para la Gestión de la Biodiversidad (CONAGEBIO) | D54: Museo de Arte y Diseño Contemporáneo (MADC)
A55: Compañía Nacional de Fuerza y Luz SA (CNFL) | D55: Museo Dr. Rafael Ángel Calderón Guardia
A56: Concejo Municipal de Distrito de Cervantes de Alvarado | D56: Museo Histórico Cultural Juan Santamaría
A57: Concejo Municipal de Distrito de Cóbano Puntarenas | D57: Museo Nacional de Costa Rica (MNCR)
A58: Concejo Municipal de Distrito de Colorado de Abangares | D58: Oficina de Cooperación Internacional de la Salud (OCIS)
A59: Concejo Municipal de Distrito de Lepanto de Puntarenas | D59: Parque Marino del Pacífico
A60: Concejo Municipal de Distrito de Monteverde de Puntarenas | D60: Patronato de Construcciones, Instalaciones y Adquisiciones de Bienes
A61: Concejo Municipal de Distrito de Paquera de Puntarenas | D61: Patronato Nacional de Ciegos (PANACI)
A62: Concejo Municipal de Distrito de Peñas Blancas de San Ramón | D62: Servicio Fitosanitario del Estado
A63: Concejo Municipal de Distrito de Tucurrique de Jiménez | D63: Servicio Nacional de Salud Animal (SENASA)
A64: Consejo de Salud Ocupacional (CSO) | D64: Sistema Nacional de Áreas de Conservación (SINAC)
A65: Consejo de Salud Ocupacional (CSO) | D65: Sistema Nacional de Educación Musical (SINEM)
A66: Consejo de Seguridad Vial (COSEVI) | D66: Teatro Nacional (TNCR)
A67: Consejo de Seguridad Vial (COSEVI) | D67: Teatro Popular Melico Salazar (TPMS)
A68: Consejo de Transporte Público (CTP) | D68: Tribunal Registral Administrativo (TRA)
A69: Consejo Nacional de Concesiones (CNC) | D69: Unidad Coordinadora del Programa de Mejoramiento de la Calidad de la Educación General Básica (PROMECE)
A70: Consejo Nacional de Concesiones (CNC) | D70: Unidad de Coordinación del Proyecto Limón Ciudad Puerto
A71: Consejo Nacional de Investig Cientif y Tecnológicas (CONICIT) | D71: Unidad Ejecutora del Proyecto(UEP)
A72: Consejo Nacional de Investigaciones Científicas y Tecnológicas (CONICIT) | D72: Unidad Ejecutora Programa Regularización del Catastro y Registro
A73: Consejo Nacional de la Persona Adulta Mayor (CONAPAM) | C73: Instituciones Descentralizadas No Empresariales | D73: Autoridad Reguladora de Servicios Públicos (ARESEP)
A74: Consejo Nacional de la Persona Adulta Mayor (CONAPAM) | D74: Benemérito Cuerpo de Bomberos de Costa Rica
A75: Consejo Nacional de la Política Pública de la Persona Joven (CPJ) | D75: Caja Costarricense de Seguro Social (CCSS)
A76: Consejo Nacional de Política Pública de la Persona Joven | D76: Colegio Universitario de Cartago (CUC)
A77: Consejo Nacional de Producción (CNP) | D77: Colegio Universitario de Limón (CUNLIMON)
A78: Consejo Nacional de Rectores (CONARE) | D78: Comisión de Energía Atómica de Costa Rica (CEA)
A79: Consejo Nacional de Rehabilitación y Educación Especial (CNREE) | D79: Comisión Nacional de Asuntos Indígenas (CONAI)
A80: Consejo Nacional de Vialidad (CONAVI) | D80: Consejo Nacional de Investigaciones Científicas y Tecnológicas (CONICIT)
A81: Consejo Rector Sistema de Banca para el Desarrollo | D81: Consejo Nacional de Rectores (CONARE)
A82: Consejo Superior de Educación | D82: Consejo Nacional de Rehabilitación y Educación Especial (CNREE)
A83: Consejo Superior de Educación (CSE) | D83: Fondo de Desarrollo de la Provincia de Limón (FODELI)
A84: Consejo Técnico de Asistencia Medico Social (CTAMS) | D84: Instituto Costarricense de Pesca y Acuicultura (INCOPESCA)
A85: Consejo Técnico de Asistencia Médico Social (CTAMS) | D85: Instituto Costarricense de Turismo (ICT)
A86: Consejo Técnico de Aviación Civil | D86: Instituto Costarricense del Deporte y la Recreación (ICODER)
A87: Consejo Técnico de Aviación Civil (CTAC) | D87: Instituto de Desarrollo Rural (INDER)
A88: Contraloría General de la República (CGR) | D88: Instituto de Fomento y Asesoría Municipal (IFAM)
A89: Corporación Bananera Nacional S.A. (CORBANA) | D89: Instituto Mixto de Ayuda Social (IMAS)
A90: Correos de Costa Rica SA (CORREOS) | D90: Instituto Nacional de Aprendizaje (INA)
A91: Correos de Costa Rica, S.A. | D91: Instituto Nacional de Estadística y Censos (INEC)
A92: Defensoría de los Habitantes de la República | D92: Instituto Nacional de las Mujeres (INAMU)
A93: Dirección de Geología y Minas | D93: Instituto Tecnológico de Costa Rica (ITCR)
A94: Dirección Ejecutora de Proyectos de Mideplan (DEP) | D94: Junta de Desarrollo Regional de la Zona Sur de la Provincia de Puntarenas (JUDESUR)
A95: Direccion General de Migracion y Extranjería | D95: Junta Administrativa Colegio San Luis Gonzaga (JACSLG)
A96: Dirección General del Servicio Civil | D96: Oficina Nacional de Semillas (ONS)
A97: Dirección Nacional de Centros de Educación y Nutrición y de Centros Infantiles de Atención Integral (Dirección de CEN-CINAI) | D97: Patronato Nacional de la Infancia (PANI)
A98: Dirección Nacional de la Imprenta Nacional | D98: Patronato Nacional de Rehabilitación (PANARE)
A99: Dirección Nacional de Notariado | D99: Programa Integral de Mercadeo Agropecuario (PIMA)
A100: Dirección Nacional de Notariado (DNN) | D100: Servicio Nacional de Aguas Subterráneas, Riego y Avenamiento (SENARA)
A101: Dirección Servicio Nacional de Guardacostas | D101: Sistema de Emergencias 911
A102: Editorial Costa Rica (ECR) | D102: Superintendencia de Telecomunicaciones (SUTEL)
A103: Editorial Costa Rica (ECR) | D103: Universidad de Costa Rica (UCR)
A104: Empresa de Servicios Públicos de Heredia SA (ESPH) | D104: Universidad Estatal a Distancia (UNED)
A105: Empresa Hidroeléctrica los Negros SA (EHLN SA) | D105: Universidad Nacional (UNA)
A106: Fideicomiso del Proyecto de Crédito y Desarrollo Agrícola para Pequeños Productores de la Zona Norte (PPZN) | D106: Universidad Técnica Nacional
A107: Fondo de Desarrollo de la Provincia de Limón (FODELI) | C107: Municipalidades | D107: Concejo Municipal de Distrito de Cervantes de Alvarado
A108: Fondo de Desarrollo Social y Asignaciones Familiares (FODESAF) | D108: Concejo Municipal de Distrito de Cóbano Puntarenas
A109: Fondo de Preinversión de Mideplan | D109: Concejo Municipal de Distrito de Colorado de Abangares
A110: Fondo Especial del Servicio Nacional de Guardacostas | D110: Concejo Municipal de Distrito de Lepanto de Puntarenas
A111: Fondo Nacional de Becas (FONABE) | D111: Concejo Municipal de Distrito de Monteverde de Puntarenas
A112: Fondo Nacional de Becas de Solidaridad Social | D112: Concejo Municipal de Distrito de Paquera de Puntarenas
A113: Fondo Nacional de Becas (FONABE) | D113: Concejo Municipal de Distrito de Peñas Blancas de San Ramón
A114: Fondo Nacional de Financ Forestal ( FONAFIFO) | D114: Concejo Municipal de Distrito de Tucurrique de Jiménez
A115: Fondo Nacional de Financiamiento Forestal (FONAFIFO) | D115: Municipalidad de Abangares
A116: Fundación Nacional de Clubes 4-S (FUNAC) | D116: Municipalidad de Acosta
A117: INS Insurance Servicios S.A. | D117: Municipalidad de Aguirre
A118: INS Sociedad Administradora de Fondos de Inversión S.A. (SAFI) | D118: Municipalidad de Alajuela
A119: INS Valores Puesto de Bolsa, S.A. | D119: Municipalidad de Alajuelita
A120: Instituto Costarricense de Acueductos y Alcantarillados (ICAA) | D120: Municipalidad de Alfaro Ruíz
A121: Instituto Costarricense de Deporte y la Recreación (ICODER) | D121: Municipalidad de Alvarado
A122: Instituto Costarricense de Electricidad (ICE) | D122: Municipalidad de Aserrí
A123: Instituto Costarricense de Ferrocarriles (INCOFER) | D123: Municipalidad de Atenas
A124: Instituto Costarricense de Investig y Enseñ en Nutrición y Salud (INCIENSA) | D124: Municipalidad de Bagaces
A125: Instituto Costarricense de Investigación y Enseñanza en Nutrición y Salud (INCIENSA) | D125: Municipalidad de Barva
A126: Instituto Costarricense de Pesca y Acuicultura (INCOPESCA) | D126: Municipalidad de Belén
A127: Instituto Costarricense de Pesca y Acuicultura (INCOPESCA) | D127: Municipalidad de Buenos Aires
A128: Instituto Costarricense de Puertos del Pacífico (INCOP) | D128: Municipalidad de Cañas
A129: Instituto Costarricense de Puertos del Pacífico (INCOP) | D129: Municipalidad de Carrillo
A130: Instituto Costarricense de Turismo (ICT) | D130: Municipalidad de Cartago
A131: Instituto Costarricense de Turismo (ICT) | D131: Municipalidad de Corredores
A132: Instituto Costarricense del Deporte y la Recreación (ICODER) | D132: Municipalidad de Coto Brus
A133: Instituto Costarricense sobre Drogas (ICD) | D133: Municipalidad de Curridabat
A134: Instituto de Desarrollo Agrario (IDA) | D134: Municipalidad de Desamparados
A135: Instituto de Desarrollo Profesional Uladislao Gámez Solano | D135: Municipalidad de Dota
A136: Instituto de Desarrollo Rural (INDER) | D136: Municipalidad de El Guarco
A137: Instituto de Fomento y Asesoría Municipal (IFAM) | D137: Municipalidad de Escazú
A138: Instituto de Fomento y Asesoría Municipal (IFAM) | D138: Municipalidad de Esparza
A139: Instituto Meteorológico Nacional (IMN) | D139: Municipalidad de Flores
A140: Instituto Mixto de Ayuda Social (IMAS) | D140: Municipalidad de Garabito
A141: Instituto Mixto de Ayuda Social (IMAS) | D141: Municipalidad de Goicoechea
A142: Instituto Nacional de Aprendizaje (INA) | D142: Municipalidad de Golfito
A143: Instituto Nacional de Aprendizaje (INA) | D143: Municipalidad de Grecia
A144: Instituto Nacional de Estadística y Censos (INEC) | D144: Municipalidad de Guácimo
A145: Instituto Nacional de Estadística y Censos (INEC) | D145: Municipalidad de Guatuso
A146: Instituto Nacional de Fomento Cooperativo (INFOCOOP) | D146: Municipalidad de Heredia
A147: Instituto Nacional de Fomento Cooperativo (INFOCOOP) | D147: Municipalidad de Hojancha
A148: Instituto Nacional de Innovación y Transferencia en Tecnología Agropecuaria (INTA) | D148: Municipalidad de Jiménez
A149: Instituto Nacional de Innovación y Transferencia Tecnológica Agropecuaria (INTA) | D149: Municipalidad de La Cruz
A150: Instituto Nacional de la Mujer (INAMU) | D150: Municipalidad de La Unión
A151: Instituto Nacional de las Mujeres (INAMU) | D151: Municipalidad de León Cortés
A152: Instituto Nacional de Seguros (INS) | D152: Municipalidad de Liberia
A153: Instituto Nacional de Vivienda y Urbanismo (INVU) | D153: Municipalidad de Limón
A154: Instituto Nacional de Vivienda y Urbanismo (INVU) | D154: Municipalidad de Los Chiles
A155: Instituto sobre Alcoholismo y Farmacodependencia (IAFA) | D155: Municipalidad de Matina
A156: Instituto Tecnológico de Costa Rica (ITCR) | D156: Municipalidad de Montes de Oca
A157: Junta de Desarrollo Regional de la Zona Sur de la Provincia de Puntarenas (JUDESUR) | D157: Municipalidad de Montes de Oro
A158: Junta Administrativa Colegio San Luis Gonzaga (JACSLG) | D158: Municipalidad de Mora
A159: Junta Administrativa de la Dirección General de Migración y Extranjería (JADGME) | D159: Municipalidad de Moravia
A160: Junta Administrativa de la Imprenta Nacional (JAIN) | D160: Municipalidad de Nandayure
A161: Junta Administrativa del Archivo Nacional (JAAN) | D161: Municipalidad de Naranjo
A162: Junta Administrativa del Registro Nacional | D162: Municipalidad de Nicoya
A163: Junta Administrativa del Registro Nacional | D163: Municipalidad de Oreamuno
A164: Junta Administrativa del Servicio Eléctrico de Cartago (JASEC) | D164: Municipalidad de Orotina
A165: Junta de Administración Portuaria y de Desarrollo de la Vertiente Atlántica (JAPDEVA) | D165: Municipalidad de Osa
A166: Junta de Desarrollo Regional de la Zona Sur (JUDESUR) | D166: Municipalidad de Palmares
A167: Junta de Pensiones y Jubilaciones del Magisterio Nacional (JUPEMA) | D167: Municipalidad de Paraíso
A168: Junta de Protección Social de San José (JPS) | D168: Municipalidad de Parrita
A169: Junta de Protección Social de San José (JPSSJ) | D169: Municipalidad de Pérez Zeledón
A170: Junta Directiva Del Parque Recreativo Nacional Playas de Manuel Antonio | D170: Municipalidad de Poás
A171: Laboratorio Costarricense de Metrología (LACOMET) | D171: Municipalidad de Pococí
A172: Laboratorio Costarricense de Metrología (LACOMET) | D172: Municipalidad de Puntarenas
A173: Minaet- Departamento de aguas | D173: Municipalidad de Puriscal
A174: Minaet- Instituto Meteorológico Nacional | D174: Municipalidad de San Carlos
A175: Municipalidad de Abangares | D175: Municipalidad de San Isidro
A176: Municipalidad de Acosta | D176: Municipalidad de San José
A177: Municipalidad de Aguirre | D177: Municipalidad de San Mateo
A178: Municipalidad de Alajuela | D178: Municipalidad de San Pablo
A179: Municipalidad de Alajuelita | D179: Municipalidad de San Rafael
A180: Municipalidad de Alfaro Ruíz | D180: Municipalidad de San Ramón
A181: Municipalidad de Alvarado | D181: Municipalidad de Santa Ana
A182: Municipalidad de Aserrí | D182: Municipalidad de Santa Barbara
A183: Municipalidad de Atenas | D183: Municipalidad de Santa Cruz
A184: Municipalidad de Bagaces | D184: Municipalidad de Santo Domingo
A185: Municipalidad de Barva | D185: Municipalidad de Sarapiquí
A186: Municipalidad de Belén | D186: Municipalidad de Siquirres
A187: Municipalidad de Buenos Aires | D187: Municipalidad de Talamanca
A188: Municipalidad de Cañas | D188: Municipalidad de Tarrazú
A189: Municipalidad de Carrillo | D189: Municipalidad de Tibás
A190: Municipalidad de Cartago | D190: Municipalidad de Tilarán
A191: Municipalidad de Corredores | D191: Municipalidad de Turrialba
A192: Municipalidad de Coto Brus | D192: Municipalidad de Turrubares
A193: Municipalidad de Curridabat | D193: Municipalidad de Upala
A194: Municipalidad de Desamparados | D194: Municipalidad de Valverde Vega
A195: Municipalidad de Dota | D195: Municipalidad de Vásquez de Coronado
A196: Municipalidad de El Guarco | C196: Empresas Públicas No Financieras Nacionales | D196: Compañía Nacional de Fuerza y Luz SA (CNFL)
A197: Municipalidad de Escazú | D197: Consejo Nacional de Producción (CNP)
A198: Municipalidad de Esparza | D198: Correos de Costa Rica SA (CORREOS)
A199: Municipalidad de Flores | D199: Editorial Costa Rica (ECR)
A200: Municipalidad de Garabito | D200: Instituto Costarricense de Acueductos y Alcantarillados (ICAA)
... 105 more rows

Sheet Bancos (hidden)
A2: =Principal!C5 -> Instituto Nacional de Innovación y Transferencia en Tecnología Agropecuaria (INTA)
A3: Auxiliar de Bancos
A4: en miles de colones.
A5: =Principal!C6&" de "&Principal!C7 -> 31 de diciembre de 2016
A7: Detalle | B7: Monto
A10: Sector Privado
A11: Sector Publico. (*1) | B11: =B680 -> 1280550.37
A12: FONDOS ESPECIALES | B12: =B351 -> 7601.09
A13: Total. (*2) | B13: =SUM(B10:B12) -> 1288151.46
A15: (*1) dicho auxiliar debe cerrar con el detalle del auxiliar de Bancos.
A16: (*2) dicho auxiliar debe cerrar con las Cuentas de Caja y Banco Cajero y Caja y Banco Fondos Especiales del Estado de Situación Financiera.
A19: Diferencia en Sector Público | B19: =B11-B680 -> 0
A20: Diferencia con Estado de Situación Financiera | B20: =IFERROR(B13-('Balance General'!C8+'Balance General'!#REF!),0) -> 0
A23: =Principal!C5 -> Instituto Nacional de Innovación y Transferencia en Tecnología Agropecuaria (INTA)
A24: Detalle FONDOS ESPECIALES
A25: en miles de colones.
A26: =Principal!C6&" de "&Principal!C7 -> 31 de diciembre de 2016
A28: Nombre de la Institución del Sector Público | B28: Monto | C28: Conciliado con dicha Institución | D28: Monto que les reportó la Institución | E28: Diferencia
A29: Banco de Costa Rica (BCR) | B29: 7601.09 | C29: SI | D29: 7601.09 | E29: =B29-D29 -> 0 | F29: FONDOS ESPECIALES
E30: 0
E31: 0
E32: 0
E33: 0
E34: 0
E35: 0
E36: 0
E37: 0
E38: 0
E39: 0
E40: 0
E41: 0
E42: 0
E43: 0
E44: 0
E45: 0
E46: 0
E47: 0
E48: 0
E49: 0
E50: 0
E51: 0
E52: 0
E53: 0
E54: 0
E55: 0
E56: 0
E57: 0
E58: 0
E59: 0
E60: 0
E61: 0
E62: 0
E63: 0
E64: 0
E65: 0
E66: 0
E67: 0
E68: 0
E69: 0
E70: 0
E71: 0
E72: 0
E73: 0
E74: 0
E75: 0
E76: 0
E77: 0
E78: 0
E79: 0
E80: 0
E81: 0
E82: 0
E83: 0
E84: 0
E85: 0
E86: 0
E87: 0
E88: 0
E89: 0
E90: 0
E91: 0
E92: 0
E93: 0
E94: 0
E95: 0
E96: 0
E97: 0
E98: 0
E99: 0
E100: 0
E101: 0
E102: 0
E103: 0
E104: 0
E105: 0
E106: 0
E107: 0
E108: 0
E109: 0
E110: 0
E111: 0
E112: 0
E113: 0
E114: 0
E115: 0
E116: 0
E117: 0
E118: 0
E119: 0
E120: 0
E121: 0
E122: 0
E123: 0
E124: 0
E125: 0
E126: 0
E127: 0
E128: 0
E129: 0
E130: 0
E131: 0
E132: 0
E133: 0
E134: 0
E135: 0
E136: 0
E137: 0
E138: 0
E139: 0
E140: 0
E141: 0
E142: 0
E143: 0
E144: 0
E145: 0
E146: 0
E147: 0
E148: 0
E149: 0
E150: 0
E151: 0
E152: 0
E153: 0
E154: 0
E155: 0
E156: 0
E157: 0
E158: 0
E159: 0
E160: 0
E161: 0
E162: 0
E163: 0
E164: 0
E165: 0
E166: 0
E167: 0
E168: 0
E169: 0
E170: 0
E171: 0
E172: 0
E173: 0
E174: 0
E175: 0
E176: 0
E177: 0
E178: 0
E179: 0
E180: 0
E181: 0
E182: 0
E183: 0
E184: 0
E185: 0
E186: 0
E187: 0
E188: 0
E189: 0
E190: 0
E191: 0
E192: 0
E193: 0
E194: 0
E195: 0
E196: 0
E197: 0
E198: 0
E199: 0
E200: 0
E201: 0
E202: 0
E203: 0
E204: 0
E205: 0
E206: 0
E207: 0
E208: 0
E209: 0
E210: 0
... 473 more rows

Sheet EXISTENCIAS (hidden)
A2: =Principal!C5 -> Instituto Nacional de Innovación y Transferencia en Tecnología Agropecuaria (INTA)
A3: Auxiliar de Existencias
A4: en miles de colones.
A5: =Principal!C6&" de "&Principal!C7 -> 31 de diciembre de 2016
A7: Detalle | B7: Monto
A10: Sector Privado | B10: 109000.85
A11: Sector Publico. (*1) | B11: =SUM(B29:B350) -> 0
A12: Total. (*2) | B12: =IFERROR(SUM(B9:B11),0) -> 109000.85
A14: (*1) dicho auxiliar debe cerrar con el detalle del auxiliar de Existencias
A18: Diferencia en Sector Público | B18: =B11-B351 -> 0
A19: Diferencia con Estado de Situación Financiera | B19: =IFERROR(B12-('Balance General'!C8+'Balance General'!#REF!),0) -> 0
A23: =Principal!C5 -> Instituto Nacional de Innovación y Transferencia en Tecnología Agropecuaria (INTA)
A24: Detalle Auxiliar
A25: en miles de colones.
A26: =Principal!C6&" de "&Principal!C7 -> 31 de diciembre de 2016
A28: Nombre de la Institución del Sector Público | B28: Monto | C28: Conciliado con dicha Institución | D28: Monto que les reportó la Institución | E28: Diferencia | F28: Por que la Diferencia
E29: =B29-D29 -> 0
E30: 0
E31: 0
E32: 0
E33: 0
E34: 0
E35: 0
E36: 0
E37: 0
E38: 0
E39: 0
E40: 0
E41: 0
E42: 0
E43: 0
E44: 0
E45: 0
E46: 0
E47: 0
E48: 0
E49: 0
E50: 0
E51: 0
E52: 0
E53: 0
E54: 0
E55: 0
E56: 0
E57: 0
E58: 0
E59: 0
E60: 0
E61: 0
E62: 0
E63: 0
E64: 0
E65: 0
E66: 0
E67: 0
E68: 0
E69: 0
E70: 0
E71: 0
E72: 0
E73: 0
E74: 0
E75: 0
E76: 0
E77: 0
E78: 0
E79: 0
E80: 0
E81: 0
E82: 0
E83: 0
E84: 0
E85: 0
E86: 0
E87: 0
E88: 0
E89: 0
E90: 0
E91: 0
E92: 0
E93: 0
E94: =B94-D94 -> 0
E95: 0
E96: 0
E97: 0
E98: 0
E99: 0
E100: 0
E101: 0
E102: 0
E103: 0
E104: 0
E105: 0
E106: 0
E107: 0
E108: 0
E109: 0
E110: 0
E111: 0
E112: 0
E113: 0
E114: 0
E115: 0
E116: 0
E117: 0
E118: 0
E119: 0
E120: 0
E121: 0
E122: 0
E123: 0
E124: 0
E125: 0
E126: 0
E127: 0
E128: 0
E129: 0
E130: 0
E131: 0
E132: 0
E133: 0
E134: 0
E135: 0
E136: 0
E137: 0
E138: 0
E139: 0
E140: 0
E141: 0
E142: 0
E143: 0
E144: 0
E145: 0
E146: 0
E147: 0
E148: 0
E149: 0
E150: 0
E151: 0
E152: 0
E153: 0
E154: 0
E155: 0
E156: 0
E157: 0
E158: =B158-D158 -> 0
E159: 0
E160: 0
E161: 0
E162: 0
E163: 0
E164: 0
E165: 0
E166: 0
E167: 0
E168: 0
E169: 0
E170: 0
E171: 0
E172: 0
E173: 0
E174: 0
E175: 0
E176: 0
E177: 0
E178: 0
E179: 0
E180: 0
E181: 0
E182: 0
E183: 0
E184: 0
E185: 0
E186: 0
E187: 0
E188: 0
E189: 0
E190: 0
E191: 0
E192: 0
E193: 0
E194: 0
E195: 0
E196: 0
E197: 0
E198: 0
E199: 0
E200: 0
E201: 0
E202: 0
E203: 0
E204: 0
E205: 0
E206: 0
E207: 0
E208: 0
E209: 0
E210: 0
E211: 0
E212: 0
... 143 more rows

Sheet MERCANCIA EN TRANSITO (hidden)
A2: =Principal!C5 -> Instituto Nacional de Innovación y Transferencia en Tecnología Agropecuaria (INTA)
A3: Auxiliar de Mercancia en Transito
A4: en miles de colones.
A5: =Principal!C6&" de "&Principal!C7 -> 31 de diciembre de 2016
A7: Detalle | B7: Monto
A10: Sector Privado
A11: Sector Publico. (*1) | B11: =SUM(B29:B350) -> 0
A12: Total. (*2) | B12: =IFERROR(SUM(B9:B11),0) -> 0
A14: (*1) dicho auxiliar debe cerrar con el detalle del auxiliar
A18: Diferencia en Sector Público | B18: =B11-B351 -> 0
A19: Diferencia con Estado de Situación Financiera | B19: =IFERROR(B12-('Balance General'!C8+'Balance General'!#REF!),0) -> 0
A23: =Principal!C5 -> Instituto Nacional de Innovación y Transferencia en Tecnología Agropecuaria (INTA)
A24: Detalle Auxiliar
A25: en miles de colones.
A26: =Principal!C6&" de "&Principal!C7 -> 31 de diciembre de 2016
A28: Nombre de la Institución del Sector Público | B28: Monto | C28: Conciliado con dicha Institución | D28: Monto que les reportó la Institución | E28: Diferencia | F28: Por que la Diferencia
E29: =B29-D29 -> 0
E30: 0
E31: 0
E32: 0
E33: 0
E34: 0
E35: 0
E36: 0
E37: 0
E38: 0
E39: 0
E40: 0
E41: 0
E42: 0
E43: 0
E44: 0
E45: 0
E46: 0
E47: 0
E48: 0
E49: 0
E50: 0
E51: 0
E52: 0
E53: 0
E54: 0
E55: 0
E56: 0
E57: 0
E58: 0
E59: 0
E60: 0
E61: 0
E62: 0
E63: 0
E64: 0
E65: 0
E66: 0
E67: 0
E68: 0
E69: 0
E70: 0
E71: 0
E72: 0
E73: 0
E74: 0
E75: 0
E76: 0
E77: 0
E78: 0
E79: 0
E80: 0
E81: 0
E82: 0
E83: 0
E84: 0
E85: 0
E86: 0
E87: 0
E88: 0
E89: 0
E90: 0
E91: 0
E92: 0
E93: 0
E94: =B94-D94 -> 0
E95: 0
E96: 0
E97: 0
E98: 0
E99: 0
E100: 0
E101: 0
E102: 0
E103: 0
E104: 0
E105: 0
E106: 0
E107: 0
E108: 0
E109: 0
E110: 0
E111: 0
E112: 0
E113: 0
E114: 0
E115: 0
E116: 0
E117: 0
E118: 0
E119: 0
E120: 0
E121: 0
E122: 0
E123: 0
E124: 0
E125: 0
E126: 0
E127: 0
E128: 0
E129: 0
E130: 0
E131: 0
E132: 0
E133: 0
E134: 0
E135: 0
E136: 0
E137: 0
E138: 0
E139: 0
E140: 0
E141: 0
E142: 0
E143: 0
E144: 0
E145: 0
E146: 0
E147: 0
E148: 0
E149: 0
E150: 0
E151: 0
E152: 0
E153: 0
E154: 0
E155: 0
E156: 0
E157: 0
E158: =B158-D158 -> 0
E159: 0
E160: 0
E161: 0
E162: 0
E163: 0
E164: 0
E165: 0
E166: 0
E167: 0
E168: 0
E169: 0
E170: 0
E171: 0
E172: 0
E173: 0
E174: 0
E175: 0
E176: 0
E177: 0
E178: 0
E179: 0
E180: 0
E181: 0
E182: 0
E183: 0
E184: 0
E185: 0
E186: 0
E187: 0
E188: 0
E189: 0
E190: 0
E191: 0
E192: 0
E193: 0
E194: 0
E195: 0
E196: 0
E197: 0
E198: 0
E199: 0
E200: 0
E201: 0
E202: 0
E203: 0
E204: 0
E205: 0
E206: 0
E207: 0
E208: 0
E209: 0
E210: 0
E211: 0
E212: 0
... 143 more rows

Sheet GTOS PAGADOS X ANTICIPADO (hidden)
A2: =Principal!C5 -> Instituto Nacional de Innovación y Transferencia en Tecnología Agropecuaria (INTA)
A3: Auxiliar de Gastos Pagados por Anticipado
A4: en miles de colones.
A5: =Principal!C6&" de "&Principal!C7 -> 31 de diciembre de 2016
A7: Detalle | B7: Monto
A10: Sector Privado | B10: 2036.47
A11: Sector Publico. (*1) | B11: =SUM(B29:B350) -> 0
A12: Total. (*2) | B12: =IFERROR(SUM(B9:B11),0) -> 2036.47
A14: (*1) dicho auxiliar debe cerrar con el detalle del auxiliar
A18: Diferencia en Sector Público | B18: =B11-B351 -> 0
A19: Diferencia con Estado de Situación Financiera | B19: =IFERROR(B12-('Balance General'!C8+'Balance General'!#REF!),0) -> 0
A23: =Principal!C5 -> Instituto Nacional de Innovación y Transferencia en Tecnología Agropecuaria (INTA)
A24: Detalle Auxiliar
A25: en miles de colones.
A26: =Principal!C6&" de "&Principal!C7 -> 31 de diciembre de 2016
A28: Nombre de la Institución del Sector Público | B28: Monto | C28: Conciliado con dicha Institución | D28: Monto que les reportó la Institución | E28: Diferencia | F28: Por que la Diferencia
E29: =B29-D29 -> 0
E30: 0
E31: 0
E32: 0
E33: 0
E34: 0
E35: 0
E36: 0
E37: 0
E38: 0
E39: 0
E40: 0
E41: 0
E42: 0
E43: 0
E44: 0
E45: 0
E46: 0
E47: 0
E48: 0
E49: 0
E50: 0
E51: 0
E52: 0
E53: 0
E54: 0
E55: 0
E56: 0
E57: 0
E58: 0
E59: 0
E60: 0
E61: 0
E62: 0
E63: 0
E64: 0
E65: 0
E66: 0
E67: 0
E68: 0
E69: 0
E70: 0
E71: 0
E72: 0
E73: 0
E74: 0
E75: 0
E76: 0
E77: 0
E78: 0
E79: 0
E80: 0
E81: 0
E82: 0
E83: 0
E84: 0
E85: 0
E86: 0
E87: 0
E88: 0
E89: 0
E90: 0
E91: 0
E92: 0
E93: 0
E94: =B94-D94 -> 0
E95: 0
E96: 0
E97: 0
E98: 0
E99: 0
E100: 0
E101: 0
E102: 0
E103: 0
E104: 0
E105: 0
E106: 0
E107: 0
E108: 0
E109: 0
E110: 0
E111: 0
E112: 0
E113: 0
E114: 0
E115: 0
E116: 0
E117: 0
E118: 0
E119: 0
E120: 0
E121: 0
E122: 0
E123: 0
E124: 0
E125: 0
E126: 0
E127: 0
E128: 0
E129: 0
E130: 0
E131: 0
E132: 0
E133: 0
E134: 0
E135: 0
E136: 0
E137: 0
E138: 0
E139: 0
E140: 0
E141: 0
E142: 0
E143: 0
E144: 0
E145: 0
E146: 0
E147: 0
E148: 0
E149: 0
E150: 0
E151: 0
E152: 0
E153: 0
E154: 0
E155: 0
E156: 0
E157: 0
E158: =B158-D158 -> 0
E159: 0
E160: 0
E161: 0
E162: 0
E163: 0
E164: 0
E165: 0
E166: 0
E167: 0
E168: 0
E169: 0
E170: 0
E171: 0
E172: 0
E173: 0
E174: 0
E175: 0
E176: 0
E177: 0
E178: 0
E179: 0
E180: 0
E181: 0
E182: 0
E183: 0
E184: 0
E185: 0
E186: 0
E187: 0
E188: 0
E189: 0
E190: 0
E191: 0
E192: 0
E193: 0
E194: 0
E195: 0
E196: 0
E197: 0
E198: 0
E199: 0
E200: 0
E201: 0
E202: 0
E203: 0
E204: 0
E205: 0
E206: 0
E207: 0
E208: 0
E209: 0
E210: 0
E211: 0
E212: 0
... 143 more rows

Sheet GTOS ACUMULADOS X PAGAR (hidden)
A2: =Principal!C5 -> Instituto Nacional de Innovación y Transferencia en Tecnología Agropecuaria (INTA)
A3: Auxiliar de Gastos Acumulados por Pagar
A4: en miles de colones.
A5: =Principal!C6 -> 31 de diciembre
A7: Detalle | B7: Monto
A10: Sector Privado
A11: Sector Publico. (*1) | B11: =SUM(B28:B350) -> 0
A12: Total. (*2) | B12: =IFERROR(SUM(B9:B11),0) -> 0
A14: (*1) dicho auxiliar debe cerrar con el detalle del auxiliar
A18: Diferencia en Sector Público | B18: =B11-B351 -> 0
A19: Diferencia con Balance General | B19: =IFERROR(B12-('Balance General'!C8+'Balance General'!#REF!),0) -> 0
A23: =Principal!C5 -> Instituto Nacional de Innovación y Transferencia en Tecnología Agropecuaria (INTA)
A24: Detalle Auxiliar
A25: en miles de colones.
A26: =Principal!C6 -> 31 de diciembre
A28: Nombre de la Institución del Sector Público | B28: Monto | C28: Conciliado con dicha Institución | D28: Monto que les reportó la Institución | E28: Diferencia | F28: Por que la Diferencia
E29: =B29-D29 -> 0
E30: 0
E31: 0
E32: 0
E33: 0
E34: 0
E35: 0
E36: 0
E37: 0
E38: 0
E39: 0
E40: 0
E41: 0
E42: 0
E43: 0
E44: 0
E45: 0
E46: 0
E47: 0
E48: 0
E49: 0
E50: 0
E51: 0
E52: 0
E53: 0
E54: 0
E55: 0
E56: 0
E57: 0
E58: 0
E59: 0
E60: 0
E61: 0
E62: 0
E63: 0
E64: 0
E65: 0
E66: 0
E67: 0
E68: 0
E69: 0
E70: 0
E71: 0
E72: 0
E73: 0
E74: 0
E75: 0
E76: 0
E77: 0
E78: 0
E79: 0
E80: 0
E81: 0
E82: 0
E83: 0
E84: 0
E85: 0
E86: 0
E87: 0
E88: 0
E89: 0
E90: 0
E91: 0
E92: 0
E93: 0
E94: =B94-D94 -> 0
E95: 0
E96: 0
E97: 0
E98: 0
E99: 0
E100: 0
E101: 0
E102: 0
E103: 0
E104: 0
E105: 0
E106: 0
E107: 0
E108: 0
E109: 0
E110: 0
E111: 0
E112: 0
E113: 0
E114: 0
E115: 0
E116: 0
E117: 0
E118: 0
E119: 0
E120: 0
E121: 0
E122: 0
E123: 0
E124: 0
E125: 0
E126: 0
E127: 0
E128: 0
E129: 0
E130: 0
E131: 0
E132: 0
E133: 0
E134: 0
E135: 0
E136: 0
E137: 0
E138: 0
E139: 0
E140: 0
E141: 0
E142: 0
E143: 0
E144: 0
E145: 0
E146: 0
E147: 0
E148: 0
E149: 0
E150: 0
E151: 0
E152: 0
E153: 0
E154: 0
E155: 0
E156: 0
E157: 0
E158: =B158-D158 -> 0
E159: 0
E160: 0
E161: 0
E162: 0
E163: 0
E164: 0
E165: 0
E166: 0
E167: 0
E168: 0
E169: 0
E170: 0
E171: 0
E172: 0
E173: 0
E174: 0
E175: 0
E176: 0
E177: 0
E178: 0
E179: 0
E180: 0
E181: 0
E182: 0
E183: 0
E184: 0
E185: 0
E186: 0
E187: 0
E188: 0
E189: 0
E190: 0
E191: 0
E192: 0
E193: 0
E194: 0
E195: 0
E196: 0
E197: 0
E198: 0
E199: 0
E200: 0
E201: 0
E202: 0
E203: 0
E204: 0
E205: 0
E206: 0
E207: 0
E208: 0
E209: 0
E210: 0
E211: 0
E212: 0
... 143 more rows

Sheet PROVISIONES (hidden)
A2: =Principal!C5 -> Instituto Nacional de Innovación y Transferencia en Tecnología Agropecuaria (INTA)
A3: Auxiliar de Provisiones
A4: en miles de colones.
A5: =Principal!C6&" de "&Principal!C7 -> 31 de diciembre de 2016
A7: Detalle | B7: Monto
A10: Sector Privado
A11: Sector Publico. (*1)
A12: Total. (*2) | B12: =IFERROR(SUM(B9:B11),0) -> 0
A14: (*1) dicho auxiliar debe cerrar con el detalle del auxiliar
A15: PROVISIONES del ACTIVO
A16: Provision para cobranza dudosa corto plazo | B16: -164.25
A17: Provision para cobranza dudosa Largo plazo | B17: -8322.16
A18: Provision Existencias | B18: 0
A19: Provisiones para Prestamos | B19: 0
A20: PROVISIONES del PASIVO
A21: Provisiones | B21: 0
A22: Provision para beneficios sociales
A29: =Principal!C5 -> Instituto Nacional de Innovación y Transferencia en Tecnología Agropecuaria (INTA)
A30: Detalle Auxiliar
A31: en miles de colones.
A32: =Principal!C6 -> 31 de diciembre
A34: Nombre de la Institución del Sector Público | B34: Monto | C34: Conciliado con dicha Institución | D34: Monto que les reportó la Institución | E34: Diferencia | F34: Por que la Diferencia
E35: =B35-D35 -> 0
E36: 0
E37: 0
E38: 0
E39: 0
E40: 0
E41: 0
E42: 0
E43: 0
E44: 0
E45: 0
E46: 0
E47: 0
E48: 0
E49: 0
E50: 0
E51: 0
E52: 0
E53: 0
E54: 0
E55: 0
E56: 0
E57: 0
E58: 0
E59: 0
E60: 0
E61: 0
E62: 0
E63: 0
E64: 0
E65: 0
E66: 0
E67: 0
E68: 0
E69: 0
E70: 0
E71: 0
E72: 0
E73: 0
E74: 0
E75: 0
E76: 0
E77: 0
E78: 0
E79: 0
E80: 0
E81: 0
E82: 0
E83: 0
E84: 0
E85: 0
E86: 0
E87: 0
E88: 0
E89: 0
E90: 0
E91: 0
E92: 0
E93: 0
E94: 0
E95: 0
E96: 0
E97: 0
E98: 0
E99: 0
E100: =B100-D100 -> 0
E101: 0
E102: 0
E103: 0
E104: 0
E105: 0
E106: 0
E107: 0
E108: 0
E109: 0
E110: 0
E111: 0
E112: 0
E113: 0
E114: 0
E115: 0
E116: 0
E117: 0
E118: 0
E119: 0
E120: 0
E121: 0
E122: 0
E123: 0
E124: 0
E125: 0
E126: 0
E127: 0
E128: 0
E129: 0
E130: 0
E131: 0
E132: 0
E133: 0
E134: 0
E135: 0
E136: 0
E137: 0
E138: 0
E139: 0
E140: 0
E141: 0
E142: 0
E143: 0
E144: 0
E145: 0
E146: 0
E147: 0
E148: 0
E149: 0
E150: 0
E151: 0
E152: 0
E153: 0
E154: 0
E155: 0
E156: 0
E157: 0
E158: 0
E159: 0
E160: 0
E161: 0
E162: 0
E163: 0
E164: =B164-D164 -> 0
E165: 0
E166: 0
E167: 0
E168: 0
E169: 0
E170: 0
E171: 0
E172: 0
E173: 0
E174: 0
E175: 0
E176: 0
E177: 0
E178: 0
E179: 0
E180: 0
E181: 0
E182: 0
E183: 0
E184: 0
E185: 0
E186: 0
E187: 0
E188: 0
E189: 0
E190: 0
E191: 0
E192: 0
E193: 0
E194: 0
E195: 0
E196: 0
E197: 0
E198: 0
E199: 0
E200: 0
E201: 0
E202: 0
E203: 0
E204: 0
E205: 0
E206: 0
E207: 0
E208: 0
E209: 0
E210: 0
E211: 0
E212: 0
... 149 more rows

Sheet ING. COBRADOS X ANTICIPADO (hidden)
A2: =Principal!C5 -> Instituto Nacional de Innovación y Transferencia en Tecnología Agropecuaria (INTA)
A3: Auxiliar de Ingresos cobrados por anticipado
A4: en miles de colones.
A5: =Principal!C6&" de "&Principal!C7 -> 31 de diciembre de 2016
A7: Detalle | B7: Monto
A10: Sector Privado
A11: Sector Publico. (*1) | B11: =SUM(B29:B350) -> 9000
A12: Total. (*2) | B12: =IFERROR(SUM(B9:B11),0) -> 9000
A14: (*1) dicho auxiliar debe cerrar con el detalle del auxiliar
A18: Diferencia en Sector Público | B18: =B11-B351 -> 0
A19: Diferencia con Estado de Situación Financiera | B19: =IFERROR(B12-('Balance General'!C8+'Balance General'!#REF!),0) -> 0
A23: =Principal!C5 -> Instituto Nacional de Innovación y Transferencia en Tecnología Agropecuaria (INTA)
A24: Detalle Auxiliar
A25: en miles de colones.
A26: =Principal!C6&" de "&Principal!C7 -> 31 de diciembre de 2016
A28: Nombre de la Institución del Sector Público | B28: Monto | C28: Conciliado con dicha Institución | D28: Monto que les reportó la Institución | E28: Diferencia | F28: Por que la Diferencia
A29: Instituto de Desarrollo Rural (INDER) | B29: 9000 | D29: 9000 | E29: =B29-D29 -> 0
E30: 0
E31: 0
E32: 0
E33: 0
E34: 0
E35: 0
E36: 0
E37: 0
E38: 0
E39: 0
E40: 0
E41: 0
E42: 0
E43: 0
E44: 0
E45: 0
E46: 0
E47: 0
E48: 0
E49: 0
E50: 0
E51: 0
E52: 0
E53: 0
E54: 0
E55: 0
E56: 0
E57: 0
E58: 0
E59: 0
E60: 0
E61: 0
E62: 0
E63: 0
E64: 0
E65: 0
E66: 0
E67: 0
E68: 0
E69: 0
E70: 0
E71: 0
E72: 0
E73: 0
E74: 0
E75: 0
E76: 0
E77: 0
E78: 0
E79: 0
E80: 0
E81: 0
E82: 0
E83: 0
E84: 0
E85: 0
E86: 0
E87: 0
E88: 0
E89: 0
E90: 0
E91: 0
E92: 0
E93: 0
E94: =B94-D94 -> 0
E95: 0
E96: 0
E97: 0
E98: 0
E99: 0
E100: 0
E101: 0
E102: 0
E103: 0
E104: 0
E105: 0
E106: 0
E107: 0
E108: 0
E109: 0
E110: 0
E111: 0
E112: 0
E113: 0
E114: 0
E115: 0
E116: 0
E117: 0
E118: 0
E119: 0
E120: 0
E121: 0
E122: 0
E123: 0
E124: 0
E125: 0
E126: 0
E127: 0
E128: 0
E129: 0
E130: 0
E131: 0
E132: 0
E133: 0
E134: 0
E135: 0
E136: 0
E137: 0
E138: 0
E139: 0
E140: 0
E141: 0
E142: 0
E143: 0
E144: 0
E145: 0
E146: 0
E147: 0
E148: 0
E149: 0
E150: 0
E151: 0
E152: 0
E153: 0
E154: 0
E155: 0
E156: 0
E157: 0
E158: =B158-D158 -> 0
E159: 0
E160: 0
E161: 0
E162: 0
E163: 0
E164: 0
E165: 0
E166: 0
E167: 0
E168: 0
E169: 0
E170: 0
E171: 0
E172: 0
E173: 0
E174: 0
E175: 0
E176: 0
E177: 0
E178: 0
E179: 0
E180: 0
E181: 0
E182: 0
E183: 0
E184: 0
E185: 0
E186: 0
E187: 0
E188: 0
E189: 0
E190: 0
E191: 0
E192: 0
E193: 0
E194: 0
E195: 0
E196: 0
E197: 0
E198: 0
E199: 0
E200: 0
E201: 0
E202: 0
E203: 0
E204: 0
E205: 0
E206: 0
E207: 0
E208: 0
E209: 0
E210: 0
E211: 0
E212: 0
... 143 more rows

Sheet JUBILACIONES (hidden)
A2: =Principal!C5 -> Instituto Nacional de Innovación y Transferencia en Tecnología Agropecuaria (INTA)
A3: Auxiliar de Jubilaciones
A4: en miles de colones.
A5: =Principal!C6&" de "&Principal!C7 -> 31 de diciembre de 2016
A7: Detalle | B7: Monto
A10: Sector Privado
A11: Sector Publico. (*1) | B11: =SUM(B29:B350) -> 0
A12: Total. (*2) | B12: =IFERROR(SUM(B9:B11),0) -> 0
A14: (*1) dicho auxiliar debe cerrar con el detalle del auxiliar
A18: Diferencia en Sector Público | B18: =B11-B351 -> 0
A19: Diferencia con Estado de Situación Financiera | B19: =IFERROR(B12-('Balance General'!C8+'Balance General'!#REF!),0) -> 0
A23: =Principal!C5 -> Instituto Nacional de Innovación y Transferencia en Tecnología Agropecuaria (INTA)
A24: Detalle Auxiliar
A25: en miles de colones.
A26: =Principal!C6&" de "&Principal!C7 -> 31 de diciembre de 2016
A28: Nombre de la Institución del Sector Público | B28: Monto | C28: Conciliado con dicha Institución | D28: Monto que les reportó la Institución | E28: Diferencia | F28: Por que la Diferencia
E29: =B29-D29 -> 0
E30: 0
E31: 0
E32: 0
E33: 0
E34: 0
E35: 0
E36: 0
E37: 0
E38: 0
E39: 0
E40: 0
E41: 0
E42: 0
E43: 0
E44: 0
E45: 0
E46: 0
E47: 0
E48: 0
E49: 0
E50: 0
E51: 0
E52: 0
E53: 0
E54: 0
E55: 0
E56: 0
E57: 0
E58: 0
E59: 0
E60: 0
E61: 0
E62: 0
E63: 0
E64: 0
E65: 0
E66: 0
E67: 0
E68: 0
E69: 0
E70: 0
E71: 0
E72: 0
E73: 0
E74: 0
E75: 0
E76: 0
E77: 0
E78: 0
E79: 0
E80: 0
E81: 0
E82: 0
E83: 0
E84: 0
E85: 0
E86: 0
E87: 0
E88: 0
E89: 0
E90: 0
E91: 0
E92: 0
E93: 0
E94: =B94-D94 -> 0
E95: 0
E96: 0
E97: 0
E98: 0
E99: 0
E100: 0
E101: 0
E102: 0
E103: 0
E104: 0
E105: 0
E106: 0
E107: 0
E108: 0
E109: 0
E110: 0
E111: 0
E112: 0
E113: 0
E114: 0
E115: 0
E116: 0
E117: 0
E118: 0
E119: 0
E120: 0
E121: 0
E122: 0
E123: 0
E124: 0
E125: 0
E126: 0
E127: 0
E128: 0
E129: 0
E130: 0
E131: 0
E132: 0
E133: 0
E134: 0
E135: 0
E136: 0
E137: 0
E138: 0
E139: 0
E140: 0
E141: 0
E142: 0
E143: 0
E144: 0
E145: 0
E146: 0
E147: 0
E148: 0
E149: 0
E150: 0
E151: 0
E152: 0
E153: 0
E154: 0
E155: 0
E156: 0
E157: 0
E158: =B158-D158 -> 0
E159: 0
E160: 0
E161: 0
E162: 0
E163: 0
E164: 0
E165: 0
E166: 0
E167: 0
E168: 0
E169: 0
E170: 0
E171: 0
E172: 0
E173: 0
E174: 0
E175: 0
E176: 0
E177: 0
E178: 0
E179: 0
E180: 0
E181: 0
E182: 0
E183: 0
E184: 0
E185: 0
E186: 0
E187: 0
E188: 0
E189: 0
E190: 0
E191: 0
E192: 0
E193: 0
E194: 0
E195: 0
E196: 0
E197: 0
E198: 0
E199: 0
E200: 0
E201: 0
E202: 0
E203: 0
E204: 0
E205: 0
E206: 0
E207: 0
E208: 0
E209: 0
E210: 0
E211: 0
E212: 0
... 143 more rows

Sheet OTRAS CUENTAS DE PASIVO (hidden)
A2: =Principal!C5 -> Instituto Nacional de Innovación y Transferencia en Tecnología Agropecuaria (INTA)
A3: Auxiliar de Otras Cuentas de Pasivo
A4: en miles de colones.
A5: =Principal!C6&" de "&Principal!C7 -> 31 de diciembre de 2016
A7: Detalle | B7: Monto
A10: Sector Privado
A11: Sector Publico. (*1) | B11: =SUM(B29:B350) -> 0
A12: Total. (*2) | B12: =IFERROR(SUM(B9:B11),0) -> 0
A14: (*1) dicho auxiliar debe cerrar con el detalle del auxiliar
A18: Diferencia en Sector Público | B18: =B11-B351 -> 0
A19: Diferencia con Estado de Situación Financiera | B19: =IFERROR(B12-('Balance General'!C8+'Balance General'!#REF!),0) -> 0
A23: =Principal!C5 -> Instituto Nacional de Innovación y Transferencia en Tecnología Agropecuaria (INTA)
A24: Detalle Auxiliar
A25: en miles de colones.
A26: =Principal!C6&" de "&Principal!C7 -> 31 de diciembre de 2016
A28: Nombre de la Institución del Sector Público | B28: Monto | C28: Conciliado con dicha Institución | D28: Monto que les reportó la Institución | E28: Diferencia | F28: Por que la Diferencia
E29: =B29-D29 -> 0
E30: 0
E31: 0
E32: 0
E33: 0
E34: 0
E35: 0
E36: 0
E37: 0
E38: 0
E39: 0
E40: 0
E41: 0
E42: 0
E43: 0
E44: 0
E45: 0
E46: 0
E47: 0
E48: 0
E49: 0
E50: 0
E51: 0
E52: 0
E53: 0
E54: 0
E55: 0
E56: 0
E57: 0
E58: 0
E59: 0
E60: 0
E61: 0
E62: 0
E63: 0
E64: 0
E65: 0
E66: 0
E67: 0
E68: 0
E69: 0
E70: 0
E71: 0
E72: 0
E73: 0
E74: 0
E75: 0
E76: 0
E77: 0
E78: 0
E79: 0
E80: 0
E81: 0
E82: 0
E83: 0
E84: 0
E85: 0
E86: 0
E87: 0
E88: 0
E89: 0
E90: 0
E91: 0
E92: 0
E93: 0
E94: =B94-D94 -> 0
E95: 0
E96: 0
E97: 0
E98: 0
E99: 0
E100: 0
E101: 0
E102: 0
E103: 0
E104: 0
E105: 0
E106: 0
E107: 0
E108: 0
E109: 0
E110: 0
E111: 0
E112: 0
E113: 0
E114: 0
E115: 0
E116: 0
E117: 0
E118: 0
E119: 0
E120: 0
E121: 0
E122: 0
E123: 0
E124: 0
E125: 0
E126: 0
E127: 0
E128: 0
E129: 0
E130: 0
E131: 0
E132: 0
E133: 0
E134: 0
E135: 0
E136: 0
E137: 0
E138: 0
E139: 0
E140: 0
E141: 0
E142: 0
E143: 0
E144: 0
E145: 0
E146: 0
E147: 0
E148: 0
E149: 0
E150: 0
E151: 0
E152: 0
E153: 0
E154: 0
E155: 0
E156: 0
E157: 0
E158: =B158-D158 -> 0
E159: 0
E160: 0
E161: 0
E162: 0
E163: 0
E164: 0
E165: 0
E166: 0
E167: 0
E168: 0
E169: 0
E170: 0
E171: 0
E172: 0
E173: 0
E174: 0
E175: 0
E176: 0
E177: 0
E178: 0
E179: 0
E180: 0
E181: 0
E182: 0
E183: 0
E184: 0
E185: 0
E186: 0
E187: 0
E188: 0
E189: 0
E190: 0
E191: 0
E192: 0
E193: 0
E194: 0
E195: 0
E196: 0
E197: 0
E198: 0
E199: 0
E200: 0
E201: 0
E202: 0
E203: 0
E204: 0
E205: 0
E206: 0
E207: 0
E208: 0
E209: 0
E210: 0
E211: 0
E212: 0
... 143 more rows

Sheet OTROS GASTOS (hidden)
A2: =Principal!C5 -> Instituto Nacional de Innovación y Transferencia en Tecnología Agropecuaria (INTA)
A3: Auxiliar de Otros Gastos
A4: en miles de colones.
A5: =Principal!C6&" de "&Principal!C7 -> 31 de diciembre de 2016
A7: Detalle | B7: Monto
A11: Sector Publico. (*1) | B11: =SUM(B16:B25) -> 717171.92
A12: Total. (*2) | B12: =IFERROR(SUM(B9:B11),0) -> 717171.92
A14: (*1) dicho auxiliar debe cerrar con el detalle del auxiliar
A15: Detalle | B15: Monto
A16: Pérdida en Venta o Retiro de Activos Fijos | B16: 0
A17: Diferencias Negativas Tipo de Cambio | B17: 165.85
A18: Gastos de Depreciación, Agotamiento | B18: 244461.19
A19: Gastos Diferido de Intangibles | B19: 0
A20: Pérdidas por Reclasificaciones de Activos Fijos | B20: 0
A21: Pérdidas por Cuentas Incobrables | B21: 0
A22: Pérdidas en Existencias | B22: 0
A23: Otros Gastos | B23: 472544.88
A24: Impuesto de renta | B24: 0
A25: Reservas | B25: 0
A27: Diferencia en Sector Público | B27: =B11-B360 -> 717171.92
A28: Diferencia con Balance General | B28: =IFERROR(B12-('Balance General'!C8),0) -> -563378.45
A32: =Principal!C5 -> Instituto Nacional de Innovación y Transferencia en Tecnología Agropecuaria (INTA)
A33: Detalle Auxiliar
A34: en miles de colones.
A35: =Principal!C6 -> 31 de diciembre
A37: GASTOS | B37: Monto | C37: Conciliado con dicha Institución | D37: Monto que les reportó la Institución | E37: Diferencia | F37: Por que la Diferencia
E38: =B38-D38 -> 0
E39: 0
E40: 0
E41: 0
E42: 0
E43: 0
E44: 0
E45: 0
E46: 0
E47: 0
E48: 0
E49: 0
E50: 0
E51: 0
E52: 0
E53: 0
E54: 0
E55: 0
E56: 0
E57: 0
E58: 0
E59: 0
E60: 0
E61: 0
E62: 0
E63: 0
E64: 0
E65: 0
E66: 0
E67: 0
E68: 0
E69: 0
E70: 0
E71: 0
E72: 0
E73: 0
E74: 0
E75: 0
E76: 0
E77: 0
E78: 0
E79: 0
E80: 0
E81: 0
E82: 0
E83: 0
E84: 0
E85: 0
E86: 0
E87: 0
E88: 0
E89: 0
E90: 0
E91: 0
E92: 0
E93: 0
E94: 0
E95: 0
E96: 0
E97: 0
E98: 0
E99: 0
E100: 0
E101: 0
E102: 0
E103: =B103-D103 -> 0
E104: 0
E105: 0
E106: 0
E107: 0
E108: 0
E109: 0
E110: 0
E111: 0
E112: 0
E113: 0
E114: 0
E115: 0
E116: 0
E117: 0
E118: 0
E119: 0
E120: 0
E121: 0
E122: 0
E123: 0
E124: 0
E125: 0
E126: 0
E127: 0
E128: 0
E129: 0
E130: 0
E131: 0
E132: 0
E133: 0
E134: 0
E135: 0
E136: 0
E137: 0
E138: 0
E139: 0
E140: 0
E141: 0
E142: 0
E143: 0
E144: 0
E145: 0
E146: 0
E147: 0
E148: 0
E149: 0
E150: 0
E151: 0
E152: 0
E153: 0
E154: 0
E155: 0
E156: 0
E157: 0
E158: 0
E159: 0
E160: 0
E161: 0
E162: 0
E163: 0
E164: 0
E165: 0
E166: 0
E167: =B167-D167 -> 0
E168: 0
E169: 0
E170: 0
E171: 0
E172: 0
E173: 0
E174: 0
E175: 0
E176: 0
E177: 0
E178: 0
E179: 0
E180: 0
E181: 0
E182: 0
E183: 0
E184: 0
E185: 0
E186: 0
E187: 0
E188: 0
E189: 0
E190: 0
E191: 0
E192: 0
E193: 0
E194: 0
E195: 0
E196: 0
E197: 0
E198: 0
E199: 0
E200: 0
E201: 0
E202: 0
E203: 0
E204: 0
E205: 0
E206: 0
E207: 0
E208: 0
E209: 0
E210: 0
E211: 0
... 153 more rows

Sheet GASTOS CORRIENTES (hidden)
A2: =Principal!C5 -> Instituto Nacional de Innovación y Transferencia en Tecnología Agropecuaria (INTA)
A3: Auxiliar de Gastos Corrientes
A4: en miles de colones.
A5: =Principal!C6&" de "&Principal!C7 -> 31 de diciembre de 2016
A7: Detalle | B7: Monto
A11: Sector Publico. (*1) | B11: =SUM(B15:B23) -> 1020639.6
A12: Total. (*2) | B12: =IFERROR(SUM(B9:B11),0) -> 1020639.6
A14: (*1) dicho auxiliar debe cerrar con el detalle del auxiliar
A15: Detalle | B15: Monto
A16: Remuneraciones | B16: 195004.72
A17: Servicios | B17: 650690.2
A18: Materiales y Suministros | B18: 174384.97
A19: Intereses y Comisiones | B19: 559.71
A20: Cuentas Especiales | B20: 0
A30: =Principal!C5 -> Instituto Nacional de Innovación y Transferencia en Tecnología Agropecuaria (INTA)
A31: Detalle Auxiliar
A32: en miles de colones.
A33: =Principal!C6 -> 31 de diciembre
A35: GASTOS | B35: Monto | C35: Conciliado con dicha Institución | D35: Monto que les reportó la Institución | E35: Diferencia | F35: Por que la Diferencia
E36: =B36-D36 -> 0
E37: 0
E38: 0
E39: 0
E40: 0
E41: 0
E42: 0
E43: 0
E44: 0
E45: 0
E46: 0
E47: 0
E48: 0
E49: 0
E50: 0
E51: 0
E52: 0
E53: 0
E54: 0
E55: 0
E56: 0
E57: 0
E58: 0
E59: 0
E60: 0
E61: 0
E62: 0
E63: 0
E64: 0
E65: 0
E66: 0
E67: 0
E68: 0
E69: 0
E70: 0
E71: 0
E72: 0
E73: 0
E74: 0
E75: 0
E76: 0
E77: 0
E78: 0
E79: 0
E80: 0
E81: 0
E82: 0
E83: 0
E84: 0
E85: 0
E86: 0
E87: 0
E88: 0
E89: 0
E90: 0
E91: 0
E92: 0
E93: 0
E94: 0
E95: 0
E96: 0
E97: 0
E98: 0
E99: 0
E100: 0
E101: =B101-D101 -> 0
E102: 0
E103: 0
E104: 0
E105: 0
E106: 0
E107: 0
E108: 0
E109: 0
E110: 0
E111: 0
E112: 0
E113: 0
E114: 0
E115: 0
E116: 0
E117: 0
E118: 0
E119: 0
E120: 0
E121: 0
E122: 0
E123: 0
E124: 0
E125: 0
E126: 0
E127: 0
E128: 0
E129: 0
E130: 0
E131: 0
E132: 0
E133: 0
E134: 0
E135: 0
E136: 0
E137: 0
E138: 0
E139: 0
E140: 0
E141: 0
E142: 0
E143: 0
E144: 0
E145: 0
E146: 0
E147: 0
E148: 0
E149: 0
E150: 0
E151: 0
E152: 0
E153: 0
E154: 0
E155: 0
E156: 0
E157: 0
E158: 0
E159: 0
E160: 0
E161: 0
E162: 0
E163: 0
E164: 0
E165: =B165-D165 -> 0
E166: 0
E167: 0
E168: 0
E169: 0
E170: 0
E171: 0
E172: 0
E173: 0
E174: 0
E175: 0
E176: 0
E177: 0
E178: 0
E179: 0
E180: 0
E181: 0
E182: 0
E183: 0
E184: 0
E185: 0
E186: 0
E187: 0
E188: 0
E189: 0
E190: 0
E191: 0
E192: 0
E193: 0
E194: 0
E195: 0
E196: 0
E197: 0
E198: 0
E199: 0
E200: 0
E201: 0
E202: 0
E203: 0
E204: 0
E205: 0
E206: 0
E207: 0
E208: 0
E209: 0
E210: 0
E211: 0
E212: 0
E213: 0
E214: 0
E215: 0
E216: 0
... 146 more rows

Sheet OTROS INGRESOS Y CONTRIBUCIONES (hidden)
A2: =Principal!C5 -> Instituto Nacional de Innovación y Transferencia en Tecnología Agropecuaria (INTA)
A3: Auxiliar de Otros Ingresos y Contribuciones sociales
A4: en miles de colones.
A5: =Principal!C6&" de "&Principal!C7 -> 31 de diciembre de 2016
A7: Detalle | B7: Monto
A11: Sector Publico. (*1) | B11: =SUM(B15:B23) -> 9770.49
A12: Total. (*2) | B12: =IFERROR(SUM(B9:B11),0) -> 9770.49
A14: (*1) dicho auxiliar debe cerrar con el detalle del auxiliar
A15: Detalle | B15: Monto
A16: Contribuciones Sociales
A17: Ganancia en venta de activo fijo | B17: 0
A18: Diferencia positiva de tipo de cambio | B18: 2521.42
A19: Ganancia por reclasificacion de activo fijo | B19: 0
A20: Otros Ingresos | B20: 7249.07
A30: =Principal!C5 -> Instituto Nacional de Innovación y Transferencia en Tecnología Agropecuaria (INTA)
A31: Detalle Auxiliar
A32: en miles de colones.
A33: =Principal!C6 -> 31 de diciembre
A35: INGRESOS | B35: Monto | C35: Conciliado con dicha Institución | D35: Monto que les reportó la Institución | E35: Diferencia | F35: Por que la Diferencia
E36: =B36-D36 -> 0
E37: 0
E38: 0
E39: 0
E40: 0
E41: 0
E42: 0
E43: 0
E44: 0
E45: 0
E46: 0
E47: 0
E48: 0
E49: 0
E50: 0
E51: 0
E52: 0
E53: 0
E54: 0
E55: 0
E56: 0
E57: 0
E58: 0
E59: 0
E60: 0
E61: 0
E62: 0
E63: 0
E64: 0
E65: 0
E66: 0
E67: 0
E68: 0
E69: 0
E70: 0
E71: 0
E72: 0
E73: 0
E74: 0
E75: 0
E76: 0
E77: 0
E78: 0
E79: 0
E80: 0
E81: 0
E82: 0
E83: 0
E84: 0
E85: 0
E86: 0
E87: 0
E88: 0
E89: 0
E90: 0
E91: 0
E92: 0
E93: 0
E94: 0
E95: 0
E96: 0
E97: 0
E98: 0
E99: 0
E100: 0
E101: =B101-D101 -> 0
E102: 0
E103: 0
E104: 0
E105: 0
E106: 0
E107: 0
E108: 0
E109: 0
E110: 0
E111: 0
E112: 0
E113: 0
E114: 0
E115: 0
E116: 0
E117: 0
E118: 0
E119: 0
E120: 0
E121: 0
E122: 0
E123: 0
E124: 0
E125: 0
E126: 0
E127: 0
E128: 0
E129: 0
E130: 0
E131: 0
E132: 0
E133: 0
E134: 0
E135: 0
E136: 0
E137: 0
E138: 0
E139: 0
E140: 0
E141: 0
E142: 0
E143: 0
E144: 0
E145: 0
E146: 0
E147: 0
E148: 0
E149: 0
E150: 0
E151: 0
E152: 0
E153: 0
E154: 0
E155: 0
E156: 0
E157: 0
E158: 0
E159: 0
E160: 0
E161: 0
E162: 0
E163: 0
E164: 0
E165: =B165-D165 -> 0
E166: 0
E167: 0
E168: 0
E169: 0
E170: 0
E171: 0
E172: 0
E173: 0
E174: 0
E175: 0
E176: 0
E177: 0
E178: 0
E179: 0
E180: 0
E181: 0
E182: 0
E183: 0
E184: 0
E185: 0
E186: 0
E187: 0
E188: 0
E189: 0
E190: 0
E191: 0
E192: 0
E193: 0
E194: 0
E195: 0
E196: 0
E197: 0
E198: 0
E199: 0
E200: 0
E201: 0
E202: 0
E203: 0
E204: 0
E205: 0
E206: 0
E207: 0
E208: 0
E209: 0
E210: 0
E211: 0
E212: 0
E213: 0
E214: 0
E215: 0
E216: 0
... 146 more rows

Sheet NOTAS AL BG (hidden)

Sheet NOTAS AL ER (hidden)

Sheet NOTAS AL EFE (hidden)

Sheet NOTAS 1 Y 2 (hidden)
